{"text_format":"3","workbook":"xlsx","n_sheets":5,"sheets":["INÍCIO","DESPESAS PLANEJADAS","DESPESAS REAIS","VARIAÇÕES DE DESPESAS","ANÁLISE DE DESPESAS"],"not_rendered":{"charts":2,"images":3,"defined_names":1},"read":"whole","date_system":"1900"}

{"sheet":"INÍCIO","index":0,"n_rows":8,"n_cols":2,"rows_kept":8}
[null,"SOBRE ESTE MODELO"]
[null,"Use esta pasta de trabalho de Orçamento de despesas comerciais para acompanhar as despesas planejadas e reais e as variações."]
[null,"Preencha com o Nome da empresa e adicione o logotipo."]
[null,"Insira as informações nas tabelas das planilhas Despesas planejadas e Despesas reais."]
[null,"As tabelas são atualizadas automaticamente na planilha Variação de despesas e os gráficos na planilha Análise de despesas"]
[null,"Observação: "]
[null,"há instruções adicionais na coluna A de cada planilha. Este texto está oculto de propósito. Para removê-lo, selecione a coluna A e selecione Excluir. Para reexibir o texto, selecione a coluna A e altere a cor da fonte."]
[null,"Para saber mais sobre tabelas, pressione SHIFT e, em seguida, F10 dentro de uma tabela, selecione a opção TABELA e, em seguida, selecione TEXTO ALTERNATIVO"]

{"sheet":"DESPESAS PLANEJADAS","index":1,"n_rows":37,"n_cols":16,"rows_kept":37,"merged":[[1,10,1,12],[2,10,2,12],[3,17,12,19]]}
[{"$nulls":15}," "]
[null,"Nome da Empresa",{"$nulls":8},"Estimativas detalhadas de despesas"]
[{"$nulls":10},"As células sombreadas são cálculos."]
[null,"DESPESAS PLANEJADAS","JAN","FEV","MAR","ABR","MAIO","JUN","JUL","AGO","SET","OUT","NOV","DEZ","ANO"]
[null,"Custos com funcionários","Jan","Fev","Mar","Abr","Maio","Jun","Jul","Ago","Set","Out","Nov","Dez","ANO"]
[null,"Salários",{"v":85000,"d":"R$ 85,000.00"},{"v":85000,"d":"R$ 85,000.00"},{"v":85000,"d":"R$ 85,000.00"},{"v":87500,"d":"R$ 87,500.00"},{"v":87500,"d":"R$ 87,500.00"},{"v":87500,"d":"R$ 87,500.00"},{"v":87500,"d":"R$ 87,500.00"},{"v":92400,"d":"R$ 92,400.00"},{"v":92400,"d":"R$ 92,400.00"},{"v":92400,"d":"R$ 92,400.00"},{"v":92400,"d":"R$ 92,400.00"},{"v":92400,"d":"R$ 92,400.00"},{"$f":"SUM(C6:N6)","v":{"v":1067000,"d":"R$ 1,067,000.00"}}]
[null,"Benefícios",{"$f":"C6*0.27","v":{"v":22950,"d":"R$ 22,950.00"}},{"v":22950,"d":"R$ 22,950.00"},{"v":22950,"d":"R$ 22,950.00"},{"v":23625,"d":"R$ 23,625.00"},{"v":23625,"d":"R$ 23,625.00"},{"v":23625,"d":"R$ 23,625.00"},{"v":23625,"d":"R$ 23,625.00"},{"v":24948,"d":"R$ 24,948.00"},{"v":24948,"d":"R$ 24,948.00"},{"v":24948,"d":"R$ 24,948.00"},{"v":24948,"d":"R$ 24,948.00"},{"v":24948,"d":"R$ 24,948.00"},{"$f":"SUM(C7:N7)","v":{"v":288090,"d":"R$ 288,090.00"}}]
[null,"Subtotal",{"$f":"SUBTOTAL(109,PlanejamentoDeFuncionário[Jan])","v":{"v":107950,"d":"R$ 107,950.00"}},{"$f":"SUBTOTAL(109,PlanejamentoDeFuncionário[Fev])","v":{"v":107950,"d":"R$ 107,950.00"}},{"$f":"SUBTOTAL(109,PlanejamentoDeFuncionário[Mar])","v":{"v":107950,"d":"R$ 107,950.00"}},{"$f":"SUBTOTAL(109,PlanejamentoDeFuncionário[Abr])","v":{"v":111125,"d":"R$ 111,125.00"}},{"$f":"SUBTOTAL(109,PlanejamentoDeFuncionário[Maio])","v":{"v":111125,"d":"R$ 111,125.00"}},{"$f":"SUBTOTAL(109,PlanejamentoDeFuncionário[Jun])","v":{"v":111125,"d":"R$ 111,125.00"}},{"$f":"SUBTOTAL(109,PlanejamentoDeFuncionário[Jul])","v":{"v":111125,"d":"R$ 111,125.00"}},{"$f":"SUBTOTAL(109,PlanejamentoDeFuncionário[Ago])","v":{"v":117348,"d":"R$ 117,348.00"}},{"$f":"SUBTOTAL(109,PlanejamentoDeFuncionário[Set])","v":{"v":117348,"d":"R$ 117,348.00"}},{"$f":"SUBTOTAL(109,PlanejamentoDeFuncionário[Out])","v":{"v":117348,"d":"R$ 117,348.00"}},{"$f":"SUBTOTAL(109,PlanejamentoDeFuncionário[Nov])","v":{"v":117348,"d":"R$ 117,348.00"}},{"$f":"SUBTOTAL(109,PlanejamentoDeFuncionário[Dez])","v":{"v":117348,"d":"R$ 117,348.00"}},{"$f":"SUBTOTAL(109,PlanejamentoDeFuncionário[ANO])","v":{"v":1355090,"d":"R$ 1,355,090.00"}}]
[]
[null,"Custos do escritório","Jan","Fev","Mar","Abr","Maio","Jun","Jul","Ago","Set","Out","Nov","Dez","ANO"]
[null,"Aluguel do escritório",{"v":9800,"d":"R$ 9,800.00"},{"v":9800,"d":"R$ 9,800.00"},{"v":9800,"d":"R$ 9,800.00"},{"v":9800,"d":"R$ 9,800.00"},{"v":9800,"d":"R$ 9,800.00"},{"v":9800,"d":"R$ 9,800.00"},{"v":9800,"d":"R$ 9,800.00"},{"v":9800,"d":"R$ 9,800.00"},{"v":9800,"d":"R$ 9,800.00"},{"v":9800,"d":"R$ 9,800.00"},{"v":9800,"d":"R$ 9,800.00"},{"v":9800,"d":"R$ 9,800.00"},{"$f":"SUM(C11:N11)","v":{"v":117600,"d":"R$ 117,600.00"}}]
[null,"Gás",null,{"v":400,"d":"R$ 400.00"},{"v":400,"d":"R$ 400.00"},{"v":100,"d":"R$ 100.00"},{"v":100,"d":"R$ 100.00"},{"v":100,"d":"R$ 100.00"},{"v":100,"d":"R$ 100.00"},{"v":100,"d":"R$ 100.00"},{"v":100,"d":"R$ 100.00"},{"v":100,"d":"R$ 100.00"},{"v":400,"d":"R$ 400.00"},{"v":400,"d":"R$ 400.00"},{"v":2300,"d":"R$ 2,300.00"}]
[null,"Eletricidade",{"v":300,"d":"R$ 300.00"},{"v":300,"d":"R$ 300.00"},{"v":300,"d":"R$ 300.00"},{"v":300,"d":"R$ 300.00"},{"v":300,"d":"R$ 300.00"},{"v":300,"d":"R$ 300.00"},{"v":300,"d":"R$ 300.00"},{"v":300,"d":"R$ 300.00"},{"v":300,"d":"R$ 300.00"},{"v":300,"d":"R$ 300.00"},{"v":300,"d":"R$ 300.00"},{"v":300,"d":"R$ 300.00"},{"v":3600,"d":"R$ 3,600.00"}]
[null,"Água",{"v":40,"d":"R$ 40.00"},{"v":40,"d":"R$ 40.00"},{"v":40,"d":"R$ 40.00"},{"v":40,"d":"R$ 40.00"},{"v":40,"d":"R$ 40.00"},{"v":40,"d":"R$ 40.00"},{"v":40,"d":"R$ 40.00"},{"v":40,"d":"R$ 40.00"},{"v":40,"d":"R$ 40.00"},{"v":40,"d":"R$ 40.00"},{"v":40,"d":"R$ 40.00"},{"v":40,"d":"R$ 40.00"},{"v":480,"d":"R$ 480.00"}]
[null,"Telefone",{"v":250,"d":"R$ 250.00"},{"v":250,"d":"R$ 250.00"},{"v":250,"d":"R$ 250.00"},{"v":250,"d":"R$ 250.00"},{"v":250,"d":"R$ 250.00"},{"v":250,"d":"R$ 250.00"},{"v":250,"d":"R$ 250.00"},{"v":250,"d":"R$ 250.00"},{"v":250,"d":"R$ 250.00"},{"v":250,"d":"R$ 250.00"},{"v":250,"d":"R$ 250.00"},{"v":250,"d":"R$ 250.00"},{"v":3000,"d":"R$ 3,000.00"}]
[null,"Acesso à Internet",{"v":180,"d":"R$ 180.00"},{"v":180,"d":"R$ 180.00"},{"v":180,"d":"R$ 180.00"},{"v":180,"d":"R$ 180.00"},{"v":180,"d":"R$ 180.00"},{"v":180,"d":"R$ 180.00"},{"v":180,"d":"R$ 180.00"},{"v":180,"d":"R$ 180.00"},{"v":180,"d":"R$ 180.00"},{"v":180,"d":"R$ 180.00"},{"v":180,"d":"R$ 180.00"},{"v":180,"d":"R$ 180.00"},{"v":2160,"d":"R$ 2,160.00"}]
[null,"Material de escritório",{"v":200,"d":"R$ 200.00"},{"v":200,"d":"R$ 200.00"},{"v":200,"d":"R$ 200.00"},{"v":200,"d":"R$ 200.00"},{"v":200,"d":"R$ 200.00"},{"v":200,"d":"R$ 200.00"},{"v":200,"d":"R$ 200.00"},{"v":200,"d":"R$ 200.00"},{"v":200,"d":"R$ 200.00"},{"v":200,"d":"R$ 200.00"},{"v":200,"d":"R$ 200.00"},{"v":200,"d":"R$ 200.00"},{"v":2400,"d":"R$ 2,400.00"}]
[null,"Segurança",{"v":600,"d":"R$ 600.00"},{"v":600,"d":"R$ 600.00"},{"v":600,"d":"R$ 600.00"},{"v":600,"d":"R$ 600.00"},{"v":600,"d":"R$ 600.00"},{"v":600,"d":"R$ 600.00"},{"v":600,"d":"R$ 600.00"},{"v":600,"d":"R$ 600.00"},{"v":600,"d":"R$ 600.00"},{"v":600,"d":"R$ 600.00"},{"v":600,"d":"R$ 600.00"},{"v":600,"d":"R$ 600.00"},{"v":7200,"d":"R$ 7,200.00"}]
[null,"Subtotal",{"$f":"SUBTOTAL(109,PlanejamentoDeEscritório[Jan])","v":{"v":11370,"d":"R$ 11,370.00"}},{"$f":"SUBTOTAL(109,PlanejamentoDeEscritório[Fev])","v":{"v":11770,"d":"R$ 11,770.00"}},{"$f":"SUBTOTAL(109,PlanejamentoDeEscritório[Mar])","v":{"v":11770,"d":"R$ 11,770.00"}},{"$f":"SUBTOTAL(109,PlanejamentoDeEscritório[Abr])","v":{"v":11470,"d":"R$ 11,470.00"}},{"$f":"SUBTOTAL(109,PlanejamentoDeEscritório[Maio])","v":{"v":11470,"d":"R$ 11,470.00"}},{"$f":"SUBTOTAL(109,PlanejamentoDeEscritório[Jun])","v":{"v":11470,"d":"R$ 11,470.00"}},{"$f":"SUBTOTAL(109,PlanejamentoDeEscritório[Jul])","v":{"v":11470,"d":"R$ 11,470.00"}},{"$f":"SUBTOTAL(109,PlanejamentoDeEscritório[Ago])","v":{"v":11470,"d":"R$ 11,470.00"}},{"$f":"SUBTOTAL(109,PlanejamentoDeEscritório[Set])","v":{"v":11470,"d":"R$ 11,470.00"}},{"$f":"SUBTOTAL(109,PlanejamentoDeEscritório[Out])","v":{"v":11470,"d":"R$ 11,470.00"}},{"$f":"SUBTOTAL(109,PlanejamentoDeEscritório[Nov])","v":{"v":11770,"d":"R$ 11,770.00"}},{"$f":"SUBTOTAL(109,PlanejamentoDeEscritório[Dez])","v":{"v":11770,"d":"R$ 11,770.00"}},{"$f":"SUBTOTAL(109,PlanejamentoDeEscritório[ANO])","v":{"v":138740,"d":"R$ 138,740.00"}}]
[]
[null,"Custos de marketing","Jan","Fev","Mar","Abr","Maio","Jun","Jul","Ago","Set","Out","Nov","Dez","ANO"]
[null,"Hospedagem de site",{"v":500,"d":"R$ 500.00"},{"v":500,"d":"R$ 500.00"},{"v":500,"d":"R$ 500.00"},{"v":500,"d":"R$ 500.00"},{"v":500,"d":"R$ 500.00"},{"v":500,"d":"R$ 500.00"},{"v":500,"d":"R$ 500.00"},{"v":500,"d":"R$ 500.00"},{"v":500,"d":"R$ 500.00"},{"v":500,"d":"R$ 500.00"},{"v":500,"d":"R$ 500.00"},{"v":500,"d":"R$ 500.00"},{"$f":"SUM(C22:N22)","v":{"v":6000,"d":"R$ 6,000.00"}}]
[null,"Atualizações do site",{"v":200,"d":"R$ 200.00"},{"v":200,"d":"R$ 200.00"},{"v":200,"d":"R$ 200.00"},{"v":200,"d":"R$ 200.00"},{"v":200,"d":"R$ 200.00"},{"v":1000,"d":"R$ 1,000.00"},{"v":200,"d":"R$ 200.00"},{"v":200,"d":"R$ 200.00"},{"v":200,"d":"R$ 200.00"},{"v":200,"d":"R$ 200.00"},{"v":200,"d":"R$ 200.00"},{"v":1000,"d":"R$ 1,000.00"},{"v":4000,"d":"R$ 4,000.00"}]
[null,"Preparação de materiais de referência",{"v":5000,"d":"R$ 5,000.00"},{"v":0,"d":"R$ 0.00"},{"v":0,"d":"R$ 0.00"},{"v":5000,"d":"R$ 5,000.00"},{"v":0,"d":"R$ 0.00"},{"v":0,"d":"R$ 0.00"},{"v":5000,"d":"R$ 5,000.00"},{"v":0,"d":"R$ 0.00"},{"v":0,"d":"R$ 0.00"},{"v":5000,"d":"R$ 5,000.00"},{"v":0,"d":"R$ 0.00"},{"v":0,"d":"R$ 0.00"},{"v":20000,"d":"R$ 20,000.00"}]
[null,"Impressão de materiais de referência",{"v":200,"d":"R$ 200.00"},{"v":200,"d":"R$ 200.00"},{"v":200,"d":"R$ 200.00"},{"v":200,"d":"R$ 200.00"},{"v":200,"d":"R$ 200.00"},{"v":200,"d":"R$ 200.00"},{"v":200,"d":"R$ 200.00"},{"v":200,"d":"R$ 200.00"},{"v":200,"d":"R$ 200.00"},{"v":200,"d":"R$ 200.00"},{"v":200,"d":"R$ 200.00"},{"v":200,"d":"R$ 200.00"},{"v":2400,"d":"R$ 2,400.00"}]
[null,"Eventos de marketing",{"v":2000,"d":"R$ 2,000.00"},{"v":2000,"d":"R$ 2,000.00"},{"v":2000,"d":"R$ 2,000.00"},{"v":5000,"d":"R$ 5,000.00"},{"v":2000,"d":"R$ 2,000.00"},{"v":2000,"d":"R$ 2,000.00"},{"v":2000,"d":"R$ 2,000.00"},{"v":5000,"d":"R$ 5,000.00"},{"v":2000,"d":"R$ 2,000.00"},{"v":2000,"d":"R$ 2,000.00"},{"v":2000,"d":"R$ 2,000.00"},{"v":5000,"d":"R$ 5,000.00"},{"v":33000,"d":"R$ 33,000.00"}]
[null,"Despesas diversas",{"v":200,"d":"R$ 200.00"},{"v":200,"d":"R$ 200.00"},{"v":200,"d":"R$ 200.00"},{"v":200,"d":"R$ 200.00"},{"v":200,"d":"R$ 200.00"},{"v":200,"d":"R$ 200.00"},{"v":200,"d":"R$ 200.00"},{"v":200,"d":"R$ 200.00"},{"v":200,"d":"R$ 200.00"},{"v":200,"d":"R$ 200.00"},{"v":200,"d":"R$ 200.00"},{"v":200,"d":"R$ 200.00"},{"v":2400,"d":"R$ 2,400.00"}]
[null,"Subtotal",{"$f":"SUBTOTAL(109,PlanejamentoDeMarketing[Jan])","v":{"v":8100,"d":"R$ 8,100.00"}},{"$f":"SUBTOTAL(109,PlanejamentoDeMarketing[Fev])","v":{"v":3100,"d":"R$ 3,100.00"}},{"$f":"SUBTOTAL(109,PlanejamentoDeMarketing[Mar])","v":{"v":3100,"d":"R$ 3,100.00"}},{"$f":"SUBTOTAL(109,PlanejamentoDeMarketing[Abr])","v":{"v":11100,"d":"R$ 11,100.00"}},{"$f":"SUBTOTAL(109,PlanejamentoDeMarketing[Maio])","v":{"v":3100,"d":"R$ 3,100.00"}},{"$f":"SUBTOTAL(109,PlanejamentoDeMarketing[Jun])","v":{"v":3900,"d":"R$ 3,900.00"}},{"$f":"SUBTOTAL(109,PlanejamentoDeMarketing[Jul])","v":{"v":8100,"d":"R$ 8,100.00"}},{"$f":"SUBTOTAL(109,PlanejamentoDeMarketing[Ago])","v":{"v":6100,"d":"R$ 6,100.00"}},{"$f":"SUBTOTAL(109,PlanejamentoDeMarketing[Set])","v":{"v":3100,"d":"R$ 3,100.00"}},{"$f":"SUBTOTAL(109,PlanejamentoDeMarketing[Out])","v":{"v":8100,"d":"R$ 8,100.00"}},{"$f":"SUBTOTAL(109,PlanejamentoDeMarketing[Nov])","v":{"v":3100,"d":"R$ 3,100.00"}},{"$f":"SUBTOTAL(109,PlanejamentoDeMarketing[Dez])","v":{"v":6900,"d":"R$ 6,900.00"}},{"$f":"SUBTOTAL(109,PlanejamentoDeMarketing[ANO])","v":{"v":67800,"d":"R$ 67,800.00"}}]
[]
[null,"Viagem/Treinamento","Jan","Fev","Mar","Abr","Maio","Jun","Jul","Ago","Set","Out","Nov","Dez","ANO"]
[null,"Sessões de treinamento",{"v":2000,"d":"R$ 2,000.00"},{"v":2000,"d":"R$ 2,000.00"},{"v":2000,"d":"R$ 2,000.00"},{"v":2000,"d":"R$ 2,000.00"},{"v":2000,"d":"R$ 2,000.00"},{"v":2000,"d":"R$ 2,000.00"},{"v":2000,"d":"R$ 2,000.00"},{"v":2000,"d":"R$ 2,000.00"},{"v":2000,"d":"R$ 2,000.00"},{"v":2000,"d":"R$ 2,000.00"},{"v":2000,"d":"R$ 2,000.00"},{"v":2000,"d":"R$ 2,000.00"},{"$f":"SUM(C31:N31)","v":{"v":24000,"d":"R$ 24,000.00"}}]
[null,"Custos com viagens para treinamento",{"v":2000,"d":"R$ 2,000.00"},{"v":2000,"d":"R$ 2,000.00"},{"v":2000,"d":"R$ 2,000.00"},{"v":2000,"d":"R$ 2,000.00"},{"v":2000,"d":"R$ 2,000.00"},{"v":2000,"d":"R$ 2,000.00"},{"v":2000,"d":"R$ 2,000.00"},{"v":2000,"d":"R$ 2,000.00"},{"v":2000,"d":"R$ 2,000.00"},{"v":2000,"d":"R$ 2,000.00"},{"v":2000,"d":"R$ 2,000.00"},{"v":2000,"d":"R$ 2,000.00"},{"$f":"SUM(C32:N32)","v":{"v":24000,"d":"R$ 24,000.00"}}]
[null,"Subtotal",{"$f":"SUBTOTAL(109,PlanejamentoDeViagemETreinamento[Jan])","v":{"v":4000,"d":"R$ 4,000.00"}},{"$f":"SUBTOTAL(109,PlanejamentoDeViagemETreinamento[Fev])","v":{"v":4000,"d":"R$ 4,000.00"}},{"$f":"SUBTOTAL(109,PlanejamentoDeViagemETreinamento[Mar])","v":{"v":4000,"d":"R$ 4,000.00"}},{"$f":"SUBTOTAL(109,PlanejamentoDeViagemETreinamento[Abr])","v":{"v":4000,"d":"R$ 4,000.00"}},{"$f":"SUBTOTAL(109,PlanejamentoDeViagemETreinamento[Maio])","v":{"v":4000,"d":"R$ 4,000.00"}},{"$f":"SUBTOTAL(109,PlanejamentoDeViagemETreinamento[Jun])","v":{"v":4000,"d":"R$ 4,000.00"}},{"$f":"SUBTOTAL(109,PlanejamentoDeViagemETreinamento[Jul])","v":{"v":4000,"d":"R$ 4,000.00"}},{"$f":"SUBTOTAL(109,PlanejamentoDeViagemETreinamento[Ago])","v":{"v":4000,"d":"R$ 4,000.00"}},{"$f":"SUBTOTAL(109,PlanejamentoDeViagemETreinamento[Set])","v":{"v":4000,"d":"R$ 4,000.00"}},{"$f":"SUBTOTAL(109,PlanejamentoDeViagemETreinamento[Out])","v":{"v":4000,"d":"R$ 4,000.00"}},{"$f":"SUBTOTAL(109,PlanejamentoDeViagemETreinamento[Nov])","v":{"v":4000,"d":"R$ 4,000.00"}},{"$f":"SUBTOTAL(109,PlanejamentoDeViagemETreinamento[Dez])","v":{"v":4000,"d":"R$ 4,000.00"}},{"$f":"SUBTOTAL(109,PlanejamentoDeViagemETreinamento[ANO])","v":{"v":48000,"d":"R$ 48,000.00"}}]
[]
[null,"TOTAIS","Jan","Fev","Mar","Abr","Mai","Jun","Jul","Ago","Set","Out","Nov","Dez","Ano"]
[null,"Despesas mensais planejadas",{"$f":"PlanejamentoDeViagemETreinamento[[#Totals],[Jan]]+PlanejamentoDeMarketing[[#Totals],[Jan]]+PlanejamentoDeEscritório[[#Totals],[Jan]]+PlanejamentoDeFuncionário[[#Totals],[Jan]]","v":{"v":131420,"d":"R$ 131,420.00"}},{"$f":"PlanejamentoDeViagemETreinamento[[#Totals],[Fev]]+PlanejamentoDeMarketing[[#Totals],[Fev]]+PlanejamentoDeEscritório[[#Totals],[Fev]]+PlanejamentoDeFuncionário[[#Totals],[Fev]]","v":{"v":126820,"d":"R$ 126,820.00"}},{"$f":"PlanejamentoDeViagemETreinamento[[#Totals],[Mar]]+PlanejamentoDeMarketing[[#Totals],[Mar]]+PlanejamentoDeEscritório[[#Totals],[Mar]]+PlanejamentoDeFuncionário[[#Totals],[Mar]]","v":{"v":126820,"d":"R$ 126,820.00"}},{"$f":"PlanejamentoDeViagemETreinamento[[#Totals],[Abr]]+PlanejamentoDeMarketing[[#Totals],[Abr]]+PlanejamentoDeEscritório[[#Totals],[Abr]]+PlanejamentoDeFuncionário[[#Totals],[Abr]]","v":{"v":137695,"d":"R$ 137,695.00"}},{"$f":"PlanejamentoDeViagemETreinamento[[#Totals],[Maio]]+PlanejamentoDeMarketing[[#Totals],[Maio]]+PlanejamentoDeEscritório[[#Totals],[Maio]]+PlanejamentoDeFuncionário[[#Totals],[Maio]]","v":{"v":129695,"d":"R$ 129,695.00"}},{"$f":"PlanejamentoDeViagemETreinamento[[#Totals],[Jun]]+PlanejamentoDeMarketing[[#Totals],[Jun]]+PlanejamentoDeEscritório[[#Totals],[Jun]]+PlanejamentoDeFuncionário[[#Totals],[Jun]]","v":{"v":130495,"d":"R$ 130,495.00"}},{"$f":"PlanejamentoDeViagemETreinamento[[#Totals],[Jul]]+PlanejamentoDeMarketing[[#Totals],[Jul]]+PlanejamentoDeEscritório[[#Totals],[Jul]]+PlanejamentoDeFuncionário[[#Totals],[Jul]]","v":{"v":134695,"d":"R$ 134,695.00"}},{"$f":"PlanejamentoDeViagemETreinamento[[#Totals],[Ago]]+PlanejamentoDeMarketing[[#Totals],[Ago]]+PlanejamentoDeEscritório[[#Totals],[Ago]]+PlanejamentoDeFuncionário[[#Totals],[Ago]]","v":{"v":138918,"d":"R$ 138,918.00"}},{"$f":"PlanejamentoDeViagemETreinamento[[#Totals],[Set]]+PlanejamentoDeMarketing[[#Totals],[Set]]+PlanejamentoDeEscritório[[#Totals],[Set]]+PlanejamentoDeFuncionário[[#Totals],[Set]]","v":{"v":135918,"d":"R$ 135,918.00"}},{"$f":"PlanejamentoDeViagemETreinamento[[#Totals],[Out]]+PlanejamentoDeMarketing[[#Totals],[Out]]+PlanejamentoDeEscritório[[#Totals],[Out]]+PlanejamentoDeFuncionário[[#Totals],[Out]]","v":{"v":140918,"d":"R$ 140,918.00"}},{"$f":"PlanejamentoDeViagemETreinamento[[#Totals],[Nov]]+PlanejamentoDeMarketing[[#Totals],[Nov]]+PlanejamentoDeEscritório[[#Totals],[Nov]]+PlanejamentoDeFuncionário[[#Totals],[Nov]]","v":{"v":136218,"d":"R$ 136,218.00"}},{"$f":"PlanejamentoDeViagemETreinamento[[#Totals],[Dez]]+PlanejamentoDeMarketing[[#Totals],[Dez]]+PlanejamentoDeEscritório[[#Totals],[Dez]]+PlanejamentoDeFuncionário[[#Totals],[Dez]]","v":{"v":140018,"d":"R$ 140,018.00"}},{"$f":"PlanejamentoDeViagemETreinamento[[#Totals],[ANO]]+PlanejamentoDeMarketing[[#Totals],[ANO]]+PlanejamentoDeEscritório[[#Totals],[ANO]]+PlanejamentoDeFuncionário[[#Totals],[ANO]]","v":{"v":1609630,"d":"R$ 1,609,630.00"}}]
[null,"TOTAL Despesas planejadas",{"$f":"SUM($C$36:C36)","v":{"v":131420,"d":"R$ 131,420.00"}},{"$f":"SUM($C$36:D36)","v":{"v":258240,"d":"R$ 258,240.00"}},{"$f":"SUM($C$36:E36)","v":{"v":385060,"d":"R$ 385,060.00"}},{"$f":"SUM($C$36:F36)","v":{"v":522755,"d":"R$ 522,755.00"}},{"$f":"SUM($C$36:G36)","v":{"v":652450,"d":"R$ 652,450.00"}},{"$f":"SUM($C$36:H36)","v":{"v":782945,"d":"R$ 782,945.00"}},{"$f":"SUM($C$36:I36)","v":{"v":917640,"d":"R$ 917,640.00"}},{"$f":"SUM($C$36:J36)","v":{"v":1056558,"d":"R$ 1,056,558.00"}},{"$f":"SUM($C$36:K36)","v":{"v":1192476,"d":"R$ 1,192,476.00"}},{"$f":"SUM($C$36:L36)","v":{"v":1333394,"d":"R$ 1,333,394.00"}},{"$f":"SUM($C$36:M36)","v":{"v":1469612,"d":"R$ 1,469,612.00"}},{"$f":"SUM($C$36:N36)","v":{"v":1609630,"d":"R$ 1,609,630.00"}}]

{"sheet":"DESPESAS REAIS","index":2,"n_rows":37,"n_cols":16,"rows_kept":37,"merged":[[1,10,1,12],[2,10,2,12]]}
[{"$nulls":15}," "]
[null,{"$f":"'DESPESAS PLANEJADAS'!B2:D3","v":"Nome da Empresa"},{"$nulls":8},{"$f":"título_da_planilha","v":"Estimativas detalhadas de despesas"}]
[{"$nulls":10},"As células sombreadas são cálculos."]
[null,"DESPESAS REAIS","JAN","FEV","MAR","ABR","MAIO","JUN","JUL","AGO","SET","OUT","NOV","DEZ","ANO"]
[null,"Custos com funcionários","Jan","Fev","Mar","Abr","Maio","Jun","Jul","Ago","Set","Out","Nov","Dez","ANO"]
[null,"Salários",{"v":85000,"d":"R$ 85,000.00"},{"v":85000,"d":"R$ 85,000.00"},{"v":85000,"d":"R$ 85,000.00"},{"v":88000,"d":"R$ 88,000.00"},{"v":88000,"d":"R$ 88,000.00"},{"v":88000,"d":"R$ 88,000.00"},{"$nulls":6},{"$f":"SUM(C6:N6)","v":{"v":519000,"d":"R$ 519,000.00"}}]
[null,"Benefícios",{"$f":"C6*0.27","v":{"v":22950,"d":"R$ 22,950.00"}},{"v":22950,"d":"R$ 22,950.00"},{"v":22950,"d":"R$ 22,950.00"},{"v":23760,"d":"R$ 23,760.00"},{"v":23760,"d":"R$ 23,760.00"},{"v":23760,"d":"R$ 23,760.00"},{"v":0,"d":"R$ 0.00"},{"v":0,"d":"R$ 0.00"},{"v":0,"d":"R$ 0.00"},{"v":0,"d":"R$ 0.00"},{"v":0,"d":"R$ 0.00"},{"v":0,"d":"R$ 0.00"},{"$f":"SUM(C7:N7)","v":{"v":140130,"d":"R$ 140,130.00"}}]
[null,"Subtotal",{"$f":"SUBTOTAL(109,FuncionárioReal[Jan])","v":{"v":107950,"d":"R$ 107,950.00"}},{"$f":"SUBTOTAL(109,FuncionárioReal[Fev])","v":{"v":107950,"d":"R$ 107,950.00"}},{"$f":"SUBTOTAL(109,FuncionárioReal[Mar])","v":{"v":107950,"d":"R$ 107,950.00"}},{"$f":"SUBTOTAL(109,FuncionárioReal[Abr])","v":{"v":111760,"d":"R$ 111,760.00"}},{"$f":"SUBTOTAL(109,FuncionárioReal[Maio])","v":{"v":111760,"d":"R$ 111,760.00"}},{"$f":"SUBTOTAL(109,FuncionárioReal[Jun])","v":{"v":111760,"d":"R$ 111,760.00"}},{"$f":"SUBTOTAL(109,FuncionárioReal[Jul])","v":{"v":0,"d":"R$ 0.00"}},{"$f":"SUBTOTAL(109,FuncionárioReal[Ago])","v":{"v":0,"d":"R$ 0.00"}},{"$f":"SUBTOTAL(109,FuncionárioReal[Set])","v":{"v":0,"d":"R$ 0.00"}},{"$f":"SUBTOTAL(109,FuncionárioReal[Out])","v":{"v":0,"d":"R$ 0.00"}},{"$f":"SUBTOTAL(109,FuncionárioReal[Nov])","v":{"v":0,"d":"R$ 0.00"}},{"$f":"SUBTOTAL(109,FuncionárioReal[Dez])","v":{"v":0,"d":"R$ 0.00"}},{"$f":"SUBTOTAL(109,FuncionárioReal[ANO])","v":{"v":659130,"d":"R$ 659,130.00"}}]
[]
[null,"Custos do escritório","Jan","Fev","Mar","Abr","Maio","Jun","Jul","Ago","Set","Out","Nov","Dez","ANO"]
[null,"Aluguel do escritório",{"v":9800,"d":"R$ 9,800.00"},{"v":9800,"d":"R$ 9,800.00"},{"v":9800,"d":"R$ 9,800.00"},{"v":9800,"d":"R$ 9,800.00"},{"v":9800,"d":"R$ 9,800.00"},{"v":9800,"d":"R$ 9,800.00"},{"$nulls":6},{"$f":"SUM(C11:N11)","v":{"v":58800,"d":"R$ 58,800.00"}}]
[null,"Gás",{"v":4,"d":"R$ 4.00"},{"v":430,"d":"R$ 430.00"},{"v":385,"d":"R$ 385.00"},{"v":230,"d":"R$ 230.00"},{"v":87,"d":"R$ 87.00"},{"v":88,"d":"R$ 88.00"},{"$nulls":6},{"v":1224,"d":"R$ 1,224.00"}]
[null,"Eletricidade",{"v":288,"d":"R$ 288.00"},{"v":278,"d":"R$ 278.00"},{"v":268,"d":"R$ 268.00"},{"v":299,"d":"R$ 299.00"},{"v":306,"d":"R$ 306.00"},{"v":290,"d":"R$ 290.00"},{"$nulls":6},{"v":1729,"d":"R$ 1,729.00"}]
[null,"Água",{"v":35,"d":"R$ 35.00"},{"v":33,"d":"R$ 33.00"},{"v":34,"d":"R$ 34.00"},{"v":36,"d":"R$ 36.00"},{"v":34,"d":"R$ 34.00"},{"v":36,"d":"R$ 36.00"},{"$nulls":6},{"v":208,"d":"R$ 208.00"}]
[null,"Telefone",{"v":224,"d":"R$ 224.00"},{"v":235,"d":"R$ 235.00"},{"v":265,"d":"R$ 265.00"},{"v":245,"d":"R$ 245.00"},{"v":245,"d":"R$ 245.00"},{"v":220,"d":"R$ 220.00"},{"$nulls":6},{"v":1434,"d":"R$ 1,434.00"}]
[null,"Acesso à Internet",{"v":180,"d":"R$ 180.00"},{"v":180,"d":"R$ 180.00"},{"v":180,"d":"R$ 180.00"},{"v":180,"d":"R$ 180.00"},{"v":180,"d":"R$ 180.00"},{"v":180,"d":"R$ 180.00"},{"$nulls":6},{"v":1080,"d":"R$ 1,080.00"}]
[null,"Material de escritório",{"v":256,"d":"R$ 256.00"},{"v":142,"d":"R$ 142.00"},{"v":160,"d":"R$ 160.00"},{"v":221,"d":"R$ 221.00"},{"v":256,"d":"R$ 256.00"},{"v":240,"d":"R$ 240.00"},{"$nulls":6},{"v":1275,"d":"R$ 1,275.00"}]
[null,"Segurança",{"v":600,"d":"R$ 600.00"},{"v":600,"d":"R$ 600.00"},{"v":600,"d":"R$ 600.00"},{"v":600,"d":"R$ 600.00"},{"v":600,"d":"R$ 600.00"},{"v":600,"d":"R$ 600.00"},{"$nulls":6},{"v":3600,"d":"R$ 3,600.00"}]
[null,"Subtotal",{"$f":"SUBTOTAL(109,EscritórioReal[Jan])","v":{"v":11387,"d":"R$ 11,387.00"}},{"$f":"SUBTOTAL(109,EscritórioReal[Fev])","v":{"v":11698,"d":"R$ 11,698.00"}},{"$f":"SUBTOTAL(109,EscritórioReal[Mar])","v":{"v":11692,"d":"R$ 11,692.00"}},{"$f":"SUBTOTAL(109,EscritórioReal[Abr])","v":{"v":11611,"d":"R$ 11,611.00"}},{"$f":"SUBTOTAL(109,EscritórioReal[Maio])","v":{"v":11508,"d":"R$ 11,508.00"}},{"$f":"SUBTOTAL(109,EscritórioReal[Jun])","v":{"v":11454,"d":"R$ 11,454.00"}},{"$f":"SUBTOTAL(109,EscritórioReal[Jul])","v":{"v":0,"d":"R$ 0.00"}},{"$f":"SUBTOTAL(109,EscritórioReal[Ago])","v":{"v":0,"d":"R$ 0.00"}},{"$f":"SUBTOTAL(109,EscritórioReal[Set])","v":{"v":0,"d":"R$ 0.00"}},{"$f":"SUBTOTAL(109,EscritórioReal[Out])","v":{"v":0,"d":"R$ 0.00"}},{"$f":"SUBTOTAL(109,EscritórioReal[Nov])","v":{"v":0,"d":"R$ 0.00"}},{"$f":"SUBTOTAL(109,EscritórioReal[Dez])","v":{"v":0,"d":"R$ 0.00"}},{"$f":"SUBTOTAL(109,EscritórioReal[ANO])","v":{"v":69350,"d":"R$ 69,350.00"}}]
[]
[null,"Custos de marketing","Jan","Fev","Mar","Abr","Maio","Jun","Jul","Ago","Set","Out","Nov","Dez","ANO"]
[null,"Hospedagem de site",{"v":500,"d":"R$ 500.00"},{"v":500,"d":"R$ 500.00"},{"v":500,"d":"R$ 500.00"},{"v":500,"d":"R$ 500.00"},{"v":500,"d":"R$ 500.00"},{"v":500,"d":"R$ 500.00"},{"$nulls":6},{"$f":"SUM(C22:N22)","v":{"v":3000,"d":"R$ 3,000.00"}}]
[null,"Atualizações do site",{"v":200,"d":"R$ 200.00"},{"v":200,"d":"R$ 200.00"},{"v":200,"d":"R$ 200.00"},{"v":200,"d":"R$ 200.00"},{"v":200,"d":"R$ 200.00"},{"v":1500,"d":"R$ 1,500.00"},{"$nulls":6},{"v":2500,"d":"R$ 2,500.00"}]
[null,"Preparação de materiais de referência",{"v":4800,"d":"R$ 4,800.00"},{"v":0,"d":"R$ 0.00"},{"v":0,"d":"R$ 0.00"},{"v":5500,"d":"R$ 5,500.00"},{"v":0,"d":"R$ 0.00"},{"v":0,"d":"R$ 0.00"},{"$nulls":6},{"v":10300,"d":"R$ 10,300.00"}]
[null,"Impressão de materiais de referência",{"v":100,"d":"R$ 100.00"},{"v":500,"d":"R$ 500.00"},{"v":100,"d":"R$ 100.00"},{"v":100,"d":"R$ 100.00"},{"v":600,"d":"R$ 600.00"},{"v":180,"d":"R$ 180.00"},{"$nulls":6},{"v":1580,"d":"R$ 1,580.00"}]
[null,"Eventos de marketing",{"v":1800,"d":"R$ 1,800.00"},{"v":2200,"d":"R$ 2,200.00"},{"v":2200,"d":"R$ 2,200.00"},{"v":4700,"d":"R$ 4,700.00"},{"v":1500,"d":"R$ 1,500.00"},{"v":2300,"d":"R$ 2,300.00"},{"$nulls":6},{"v":14700,"d":"R$ 14,700.00"}]
[null,"Despesas diversas",{"v":145,"d":"R$ 145.00"},{"v":156,"d":"R$ 156.00"},{"v":123,"d":"R$ 123.00"},{"v":223,"d":"R$ 223.00"},{"v":187,"d":"R$ 187.00"},{"v":245,"d":"R$ 245.00"},{"$nulls":6},{"v":1079,"d":"R$ 1,079.00"}]
[null,"Subtotal",{"$f":"SUBTOTAL(109,MarketingReal[Jan])","v":{"v":7545,"d":"R$ 7,545.00"}},{"$f":"SUBTOTAL(109,MarketingReal[Fev])","v":{"v":3556,"d":"R$ 3,556.00"}},{"$f":"SUBTOTAL(109,MarketingReal[Mar])","v":{"v":3123,"d":"R$ 3,123.00"}},{"$f":"SUBTOTAL(109,MarketingReal[Abr])","v":{"v":11223,"d":"R$ 11,223.00"}},{"$f":"SUBTOTAL(109,MarketingReal[Maio])","v":{"v":2987,"d":"R$ 2,987.00"}},{"$f":"SUBTOTAL(109,MarketingReal[Jun])","v":{"v":4725,"d":"R$ 4,725.00"}},{"$f":"SUBTOTAL(109,MarketingReal[Jul])","v":{"v":0,"d":"R$ 0.00"}},{"$f":"SUBTOTAL(109,MarketingReal[Ago])","v":{"v":0,"d":"R$ 0.00"}},{"$f":"SUBTOTAL(109,MarketingReal[Set])","v":{"v":0,"d":"R$ 0.00"}},{"$f":"SUBTOTAL(109,MarketingReal[Out])","v":{"v":0,"d":"R$ 0.00"}},{"$f":"SUBTOTAL(109,MarketingReal[Nov])","v":{"v":0,"d":"R$ 0.00"}},{"$f":"SUBTOTAL(109,MarketingReal[Dez])","v":{"v":0,"d":"R$ 0.00"}},{"$f":"SUBTOTAL(109,MarketingReal[ANO])","v":{"v":33159,"d":"R$ 33,159.00"}}]
[]
[null,"Viagem/Treinamento","Jan","Fev","Mar","Abr","Maio","Jun","Jul","Ago","Set","Out","Nov","Dez","ANO"]
[null,"Sessões de treinamento",{"v":1600,"d":"R$ 1,600.00"},{"v":2400,"d":"R$ 2,400.00"},{"v":1400,"d":"R$ 1,400.00"},{"v":1600,"d":"R$ 1,600.00"},{"v":1200,"d":"R$ 1,200.00"},{"v":2800,"d":"R$ 2,800.00"},{"$nulls":6},{"$f":"SUM(C31:N31)","v":{"v":11000,"d":"R$ 11,000.00"}}]
[null,"Custos com viagens para treinamento",{"v":1200,"d":"R$ 1,200.00"},{"v":2200,"d":"R$ 2,200.00"},{"v":1400,"d":"R$ 1,400.00"},{"v":1200,"d":"R$ 1,200.00"},{"v":800,"d":"R$ 800.00"},{"v":3500,"d":"R$ 3,500.00"},{"$nulls":6},{"$f":"SUM(C32:N32)","v":{"v":10300,"d":"R$ 10,300.00"}}]
[null,"Subtotal",{"$f":"SUBTOTAL(109,RealViagemETreinamento[Jan])","v":{"v":2800,"d":"R$ 2,800.00"}},{"$f":"SUBTOTAL(109,RealViagemETreinamento[Fev])","v":{"v":4600,"d":"R$ 4,600.00"}},{"$f":"SUBTOTAL(109,RealViagemETreinamento[Mar])","v":{"v":2800,"d":"R$ 2,800.00"}},{"$f":"SUBTOTAL(109,RealViagemETreinamento[Abr])","v":{"v":2800,"d":"R$ 2,800.00"}},{"$f":"SUBTOTAL(109,RealViagemETreinamento[Maio])","v":{"v":2000,"d":"R$ 2,000.00"}},{"$f":"SUBTOTAL(109,RealViagemETreinamento[Jun])","v":{"v":6300,"d":"R$ 6,300.00"}},{"$f":"SUBTOTAL(109,RealViagemETreinamento[Jul])","v":{"v":0,"d":"R$ 0.00"}},{"$f":"SUBTOTAL(109,RealViagemETreinamento[Ago])","v":{"v":0,"d":"R$ 0.00"}},{"$f":"SUBTOTAL(109,RealViagemETreinamento[Set])","v":{"v":0,"d":"R$ 0.00"}},{"$f":"SUBTOTAL(109,RealViagemETreinamento[Out])","v":{"v":0,"d":"R$ 0.00"}},{"$f":"SUBTOTAL(109,RealViagemETreinamento[Nov])","v":{"v":0,"d":"R$ 0.00"}},{"$f":"SUBTOTAL(109,RealViagemETreinamento[Dez])","v":{"v":0,"d":"R$ 0.00"}},{"$f":"SUBTOTAL(109,RealViagemETreinamento[ANO])","v":{"v":21300,"d":"R$ 21,300.00"}}]
[]
[null,"TOTAL Despesas planejadas","Jan","Fev","Mar","Abr","Mai","Jun","Jul","Ago","Set","Out","Nov","Dez","Ano"]
[null,"Despesas mensais reais",{"$f":"RealViagemETreinamento[[#Totals],[Jan]]+MarketingReal[[#Totals],[Jan]]+EscritórioReal[[#Totals],[Jan]]+FuncionárioReal[[#Totals],[Jan]]","v":{"v":129682,"d":"R$ 129,682.00"}},{"$f":"RealViagemETreinamento[[#Totals],[Fev]]+MarketingReal[[#Totals],[Fev]]+EscritórioReal[[#Totals],[Fev]]+FuncionárioReal[[#Totals],[Fev]]","v":{"v":127804,"d":"R$ 127,804.00"}},{"$f":"RealViagemETreinamento[[#Totals],[Mar]]+MarketingReal[[#Totals],[Mar]]+EscritórioReal[[#Totals],[Mar]]+FuncionárioReal[[#Totals],[Mar]]","v":{"v":125565,"d":"R$ 125,565.00"}},{"$f":"RealViagemETreinamento[[#Totals],[Abr]]+MarketingReal[[#Totals],[Abr]]+EscritórioReal[[#Totals],[Abr]]+FuncionárioReal[[#Totals],[Abr]]","v":{"v":137394,"d":"R$ 137,394.00"}},{"$f":"RealViagemETreinamento[[#Totals],[Maio]]+MarketingReal[[#Totals],[Maio]]+EscritórioReal[[#Totals],[Maio]]+FuncionárioReal[[#Totals],[Maio]]","v":{"v":128255,"d":"R$ 128,255.00"}},{"$f":"RealViagemETreinamento[[#Totals],[Jun]]+MarketingReal[[#Totals],[Jun]]+EscritórioReal[[#Totals],[Jun]]+FuncionárioReal[[#Totals],[Jun]]","v":{"v":134239,"d":"R$ 134,239.00"}},{"$f":"RealViagemETreinamento[[#Totals],[Jul]]+MarketingReal[[#Totals],[Jul]]+EscritórioReal[[#Totals],[Jul]]+FuncionárioReal[[#Totals],[Jul]]","v":{"v":0,"d":"R$ 0.00"}},{"$f":"RealViagemETreinamento[[#Totals],[Ago]]+MarketingReal[[#Totals],[Ago]]+EscritórioReal[[#Totals],[Ago]]+FuncionárioReal[[#Totals],[Ago]]","v":{"v":0,"d":"R$ 0.00"}},{"$f":"RealViagemETreinamento[[#Totals],[Set]]+MarketingReal[[#Totals],[Set]]+EscritórioReal[[#Totals],[Set]]+FuncionárioReal[[#Totals],[Set]]","v":{"v":0,"d":"R$ 0.00"}},{"$f":"RealViagemETreinamento[[#Totals],[Out]]+MarketingReal[[#Totals],[Out]]+EscritórioReal[[#Totals],[Out]]+FuncionárioReal[[#Totals],[Out]]","v":{"v":0,"d":"R$ 0.00"}},{"$f":"RealViagemETreinamento[[#Totals],[Nov]]+MarketingReal[[#Totals],[Nov]]+EscritórioReal[[#Totals],[Nov]]+FuncionárioReal[[#Totals],[Nov]]","v":{"v":0,"d":"R$ 0.00"}},{"$f":"RealViagemETreinamento[[#Totals],[Dez]]+MarketingReal[[#Totals],[Dez]]+EscritórioReal[[#Totals],[Dez]]+FuncionárioReal[[#Totals],[Dez]]","v":{"v":0,"d":"R$ 0.00"}},{"$f":"RealViagemETreinamento[[#Totals],[ANO]]+MarketingReal[[#Totals],[ANO]]+EscritórioReal[[#Totals],[ANO]]+FuncionárioReal[[#Totals],[ANO]]","v":{"v":782939,"d":"R$ 782,939.00"}}]
[null,"TOTAL Despesas reais",{"$f":"SUM($C$36:C36)","v":{"v":129682,"d":"R$ 129,682.00"}},{"$f":"SUM($C$36:D36)","v":{"v":257486,"d":"R$ 257,486.00"}},{"$f":"SUM($C$36:E36)","v":{"v":383051,"d":"R$ 383,051.00"}},{"$f":"SUM($C$36:F36)","v":{"v":520445,"d":"R$ 520,445.00"}},{"$f":"SUM($C$36:G36)","v":{"v":648700,"d":"R$ 648,700.00"}},{"$f":"SUM($C$36:H36)","v":{"v":782939,"d":"R$ 782,939.00"}},{"$f":"SUM($C$36:I36)","v":{"v":782939,"d":"R$ 782,939.00"}},{"$f":"SUM($C$36:J36)","v":{"v":782939,"d":"R$ 782,939.00"}},{"$f":"SUM($C$36:K36)","v":{"v":782939,"d":"R$ 782,939.00"}},{"$f":"SUM($C$36:L36)","v":{"v":782939,"d":"R$ 782,939.00"}},{"$f":"SUM($C$36:M36)","v":{"v":782939,"d":"R$ 782,939.00"}},{"$f":"SUM($C$36:N36)","v":{"v":782939,"d":"R$ 782,939.00"}}]

{"sheet":"VARIAÇÕES DE DESPESAS","index":3,"n_rows":37,"n_cols":16,"rows_kept":37,"merged":[[1,10,1,12],[2,10,2,12]]}
[{"$nulls":15}," "]
[null,{"$f":"'DESPESAS PLANEJADAS'!B2:D3","v":"Nome da Empresa"},{"$nulls":8},{"$f":"título_da_planilha","v":"Estimativas detalhadas de despesas"}]
[{"$nulls":10},"As células sombreadas são cálculos."]
[null,"VARIAÇÕES DE DESPESAS","JAN","FEV","MAR","ABR","MAIO","JUN","JUL","AGO","SET","OUT","NOV","DEZ","ANO"]
[null,"Custos com funcionários","Jan","Fev","Mar","Abr","Maio","Jun","Jul","Ago","Set","Out","Nov","Dez","ANO"]
[null,"Salários",{"$f":"INDEX(PlanejamentoDeFuncionário[],MATCH(INDEX(VariaçõesDeFuncionários[],ROW()-ROW(VariaçõesDeFuncionários[[#Headers],[Jan]]),1),INDEX(PlanejamentoDeFuncionário[],,1),0),MATCH(VariaçõesDeFuncionários[[#Headers],[Jan]],PlanejamentoDeFuncionário[#Headers],0))-INDEX(FuncionárioReal[],MATCH(INDEX(VariaçõesDeFuncionários[],ROW()-ROW(VariaçõesDeFuncionários[[#Headers],[Jan]]),1),INDEX(PlanejamentoDeFuncionário[],,1),0),MATCH(VariaçõesDeFuncionários[[#Headers],[Jan]],FuncionárioReal[#Headers],0))","v":{"v":0,"d":"R$ 0.00"}},{"$f":"INDEX(PlanejamentoDeFuncionário[],MATCH(INDEX(VariaçõesDeFuncionários[],ROW()-ROW(VariaçõesDeFuncionários[[#Headers],[Fev]]),1),INDEX(PlanejamentoDeFuncionário[],,1),0),MATCH(VariaçõesDeFuncionários[[#Headers],[Fev]],PlanejamentoDeFuncionário[#Headers],0))-INDEX(FuncionárioReal[],MATCH(INDEX(VariaçõesDeFuncionários[],ROW()-ROW(VariaçõesDeFuncionários[[#Headers],[Fev]]),1),INDEX(PlanejamentoDeFuncionário[],,1),0),MATCH(VariaçõesDeFuncionários[[#Headers],[Fev]],FuncionárioReal[#Headers],0))","v":{"v":0,"d":"R$ 0.00"}},{"$f":"INDEX(PlanejamentoDeFuncionário[],MATCH(INDEX(VariaçõesDeFuncionários[],ROW()-ROW(VariaçõesDeFuncionários[[#Headers],[Mar]]),1),INDEX(PlanejamentoDeFuncionário[],,1),0),MATCH(VariaçõesDeFuncionários[[#Headers],[Mar]],PlanejamentoDeFuncionário[#Headers],0))-INDEX(FuncionárioReal[],MATCH(INDEX(VariaçõesDeFuncionários[],ROW()-ROW(VariaçõesDeFuncionários[[#Headers],[Mar]]),1),INDEX(PlanejamentoDeFuncionário[],,1),0),MATCH(VariaçõesDeFuncionários[[#Headers],[Mar]],FuncionárioReal[#Headers],0))","v":{"v":0,"d":"R$ 0.00"}},{"$f":"INDEX(PlanejamentoDeFuncionário[],MATCH(INDEX(VariaçõesDeFuncionários[],ROW()-ROW(VariaçõesDeFuncionários[[#Headers],[Abr]]),1),INDEX(PlanejamentoDeFuncionário[],,1),0),MATCH(VariaçõesDeFuncionários[[#Headers],[Abr]],PlanejamentoDeFuncionário[#Headers],0))-INDEX(FuncionárioReal[],MATCH(INDEX(VariaçõesDeFuncionários[],ROW()-ROW(VariaçõesDeFuncionários[[#Headers],[Abr]]),1),INDEX(PlanejamentoDeFuncionário[],,1),0),MATCH(VariaçõesDeFuncionários[[#Headers],[Abr]],FuncionárioReal[#Headers],0))","v":{"v":-500,"d":"-R$ 500.00"}},{"$f":"INDEX(PlanejamentoDeFuncionário[],MATCH(INDEX(VariaçõesDeFuncionários[],ROW()-ROW(VariaçõesDeFuncionários[[#Headers],[Maio]]),1),INDEX(PlanejamentoDeFuncionário[],,1),0),MATCH(VariaçõesDeFuncionários[[#Headers],[Maio]],PlanejamentoDeFuncionário[#Headers],0))-INDEX(FuncionárioReal[],MATCH(INDEX(VariaçõesDeFuncionários[],ROW()-ROW(VariaçõesDeFuncionários[[#Headers],[Maio]]),1),INDEX(PlanejamentoDeFuncionário[],,1),0),MATCH(VariaçõesDeFuncionários[[#Headers],[Maio]],FuncionárioReal[#Headers],0))","v":{"v":-500,"d":"-R$ 500.00"}},{"$f":"INDEX(PlanejamentoDeFuncionário[],MATCH(INDEX(VariaçõesDeFuncionários[],ROW()-ROW(VariaçõesDeFuncionários[[#Headers],[Jun]]),1),INDEX(PlanejamentoDeFuncionário[],,1),0),MATCH(VariaçõesDeFuncionários[[#Headers],[Jun]],PlanejamentoDeFuncionário[#Headers],0))-INDEX(FuncionárioReal[],MATCH(INDEX(VariaçõesDeFuncionários[],ROW()-ROW(VariaçõesDeFuncionários[[#Headers],[Jun]]),1),INDEX(PlanejamentoDeFuncionário[],,1),0),MATCH(VariaçõesDeFuncionários[[#Headers],[Jun]],FuncionárioReal[#Headers],0))","v":{"v":-500,"d":"-R$ 500.00"}},{"$f":"INDEX(PlanejamentoDeFuncionário[],MATCH(INDEX(VariaçõesDeFuncionários[],ROW()-ROW(VariaçõesDeFuncionários[[#Headers],[Jul]]),1),INDEX(PlanejamentoDeFuncionário[],,1),0),MATCH(VariaçõesDeFuncionários[[#Headers],[Jul]],PlanejamentoDeFuncionário[#Headers],0))-INDEX(FuncionárioReal[],MATCH(INDEX(VariaçõesDeFuncionários[],ROW()-ROW(VariaçõesDeFuncionários[[#Headers],[Jul]]),1),INDEX(PlanejamentoDeFuncionário[],,1),0),MATCH(VariaçõesDeFuncionários[[#Headers],[Jul]],FuncionárioReal[#Headers],0))","v":{"v":87500,"d":"R$ 87,500.00"}},{"$f":"INDEX(PlanejamentoDeFuncionário[],MATCH(INDEX(VariaçõesDeFuncionários[],ROW()-ROW(VariaçõesDeFuncionários[[#Headers],[Ago]]),1),INDEX(PlanejamentoDeFuncionário[],,1),0),MATCH(VariaçõesDeFuncionários[[#Headers],[Ago]],PlanejamentoDeFuncionário[#Headers],0))-INDEX(FuncionárioReal[],MATCH(INDEX(VariaçõesDeFuncionários[],ROW()-ROW(VariaçõesDeFuncionários[[#Headers],[Ago]]),1),INDEX(PlanejamentoDeFuncionário[],,1),0),MATCH(VariaçõesDeFuncionários[[#Headers],[Ago]],FuncionárioReal[#Headers],0))","v":{"v":92400,"d":"R$ 92,400.00"}},{"$f":"INDEX(PlanejamentoDeFuncionário[],MATCH(INDEX(VariaçõesDeFuncionários[],ROW()-ROW(VariaçõesDeFuncionários[[#Headers],[Set]]),1),INDEX(PlanejamentoDeFuncionário[],,1),0),MATCH(VariaçõesDeFuncionários[[#Headers],[Set]],PlanejamentoDeFuncionário[#Headers],0))-INDEX(FuncionárioReal[],MATCH(INDEX(VariaçõesDeFuncionários[],ROW()-ROW(VariaçõesDeFuncionários[[#Headers],[Set]]),1),INDEX(PlanejamentoDeFuncionário[],,1),0),MATCH(VariaçõesDeFuncionários[[#Headers],[Set]],FuncionárioReal[#Headers],0))","v":{"v":92400,"d":"R$ 92,400.00"}},{"$f":"INDEX(PlanejamentoDeFuncionário[],MATCH(INDEX(VariaçõesDeFuncionários[],ROW()-ROW(VariaçõesDeFuncionários[[#Headers],[Out]]),1),INDEX(PlanejamentoDeFuncionário[],,1),0),MATCH(VariaçõesDeFuncionários[[#Headers],[Out]],PlanejamentoDeFuncionário[#Headers],0))-INDEX(FuncionárioReal[],MATCH(INDEX(VariaçõesDeFuncionários[],ROW()-ROW(VariaçõesDeFuncionários[[#Headers],[Out]]),1),INDEX(PlanejamentoDeFuncionário[],,1),0),MATCH(VariaçõesDeFuncionários[[#Headers],[Out]],FuncionárioReal[#Headers],0))","v":{"v":92400,"d":"R$ 92,400.00"}},{"$f":"INDEX(PlanejamentoDeFuncionário[],MATCH(INDEX(VariaçõesDeFuncionários[],ROW()-ROW(VariaçõesDeFuncionários[[#Headers],[Nov]]),1),INDEX(PlanejamentoDeFuncionário[],,1),0),MATCH(VariaçõesDeFuncionários[[#Headers],[Nov]],PlanejamentoDeFuncionário[#Headers],0))-INDEX(FuncionárioReal[],MATCH(INDEX(VariaçõesDeFuncionários[],ROW()-ROW(VariaçõesDeFuncionários[[#Headers],[Nov]]),1),INDEX(PlanejamentoDeFuncionário[],,1),0),MATCH(VariaçõesDeFuncionários[[#Headers],[Nov]],FuncionárioReal[#Headers],0))","v":{"v":92400,"d":"R$ 92,400.00"}},{"$f":"INDEX(PlanejamentoDeFuncionário[],MATCH(INDEX(VariaçõesDeFuncionários[],ROW()-ROW(VariaçõesDeFuncionários[[#Headers],[Dez]]),1),INDEX(PlanejamentoDeFuncionário[],,1),0),MATCH(VariaçõesDeFuncionários[[#Headers],[Dez]],PlanejamentoDeFuncionário[#Headers],0))-INDEX(FuncionárioReal[],MATCH(INDEX(VariaçõesDeFuncionários[],ROW()-ROW(VariaçõesDeFuncionários[[#Headers],[Dez]]),1),INDEX(PlanejamentoDeFuncionário[],,1),0),MATCH(VariaçõesDeFuncionários[[#Headers],[Dez]],FuncionárioReal[#Headers],0))","v":{"v":92400,"d":"R$ 92,400.00"}},{"$f":"SUM(VariaçõesDeFuncionários[[#This Row],[Jan]:[Dez]])","v":{"v":548000,"d":"R$ 548,000.00"}}]
[null,"Benefícios",{"$f":"INDEX(PlanejamentoDeFuncionário[],MATCH(INDEX(VariaçõesDeFuncionários[],ROW()-ROW(VariaçõesDeFuncionários[[#Headers],[Jan]]),1),INDEX(PlanejamentoDeFuncionário[],,1),0),MATCH(VariaçõesDeFuncionários[[#Headers],[Jan]],PlanejamentoDeFuncionário[#Headers],0))-INDEX(FuncionárioReal[],MATCH(INDEX(VariaçõesDeFuncionários[],ROW()-ROW(VariaçõesDeFuncionários[[#Headers],[Jan]]),1),INDEX(PlanejamentoDeFuncionário[],,1),0),MATCH(VariaçõesDeFuncionários[[#Headers],[Jan]],FuncionárioReal[#Headers],0))","v":{"v":0,"d":"R$ 0.00"}},{"$f":"INDEX(PlanejamentoDeFuncionário[],MATCH(INDEX(VariaçõesDeFuncionários[],ROW()-ROW(VariaçõesDeFuncionários[[#Headers],[Fev]]),1),INDEX(PlanejamentoDeFuncionário[],,1),0),MATCH(VariaçõesDeFuncionários[[#Headers],[Fev]],PlanejamentoDeFuncionário[#Headers],0))-INDEX(FuncionárioReal[],MATCH(INDEX(VariaçõesDeFuncionários[],ROW()-ROW(VariaçõesDeFuncionários[[#Headers],[Fev]]),1),INDEX(PlanejamentoDeFuncionário[],,1),0),MATCH(VariaçõesDeFuncionários[[#Headers],[Fev]],FuncionárioReal[#Headers],0))","v":{"v":0,"d":"R$ 0.00"}},{"$f":"INDEX(PlanejamentoDeFuncionário[],MATCH(INDEX(VariaçõesDeFuncionários[],ROW()-ROW(VariaçõesDeFuncionários[[#Headers],[Mar]]),1),INDEX(PlanejamentoDeFuncionário[],,1),0),MATCH(VariaçõesDeFuncionários[[#Headers],[Mar]],PlanejamentoDeFuncionário[#Headers],0))-INDEX(FuncionárioReal[],MATCH(INDEX(VariaçõesDeFuncionários[],ROW()-ROW(VariaçõesDeFuncionários[[#Headers],[Mar]]),1),INDEX(PlanejamentoDeFuncionário[],,1),0),MATCH(VariaçõesDeFuncionários[[#Headers],[Mar]],FuncionárioReal[#Headers],0))","v":{"v":0,"d":"R$ 0.00"}},{"$f":"INDEX(PlanejamentoDeFuncionário[],MATCH(INDEX(VariaçõesDeFuncionários[],ROW()-ROW(VariaçõesDeFuncionários[[#Headers],[Abr]]),1),INDEX(PlanejamentoDeFuncionário[],,1),0),MATCH(VariaçõesDeFuncionários[[#Headers],[Abr]],PlanejamentoDeFuncionário[#Headers],0))-INDEX(FuncionárioReal[],MATCH(INDEX(VariaçõesDeFuncionários[],ROW()-ROW(VariaçõesDeFuncionários[[#Headers],[Abr]]),1),INDEX(PlanejamentoDeFuncionário[],,1),0),MATCH(VariaçõesDeFuncionários[[#Headers],[Abr]],FuncionárioReal[#Headers],0))","v":{"v":-135,"d":"-R$ 135.00"}},{"$f":"INDEX(PlanejamentoDeFuncionário[],MATCH(INDEX(VariaçõesDeFuncionários[],ROW()-ROW(VariaçõesDeFuncionários[[#Headers],[Maio]]),1),INDEX(PlanejamentoDeFuncionário[],,1),0),MATCH(VariaçõesDeFuncionários[[#Headers],[Maio]],PlanejamentoDeFuncionário[#Headers],0))-INDEX(FuncionárioReal[],MATCH(INDEX(VariaçõesDeFuncionários[],ROW()-ROW(VariaçõesDeFuncionários[[#Headers],[Maio]]),1),INDEX(PlanejamentoDeFuncionário[],,1),0),MATCH(VariaçõesDeFuncionários[[#Headers],[Maio]],FuncionárioReal[#Headers],0))","v":{"v":-135,"d":"-R$ 135.00"}},{"$f":"INDEX(PlanejamentoDeFuncionário[],MATCH(INDEX(VariaçõesDeFuncionários[],ROW()-ROW(VariaçõesDeFuncionários[[#Headers],[Jun]]),1),INDEX(PlanejamentoDeFuncionário[],,1),0),MATCH(VariaçõesDeFuncionários[[#Headers],[Jun]],PlanejamentoDeFuncionário[#Headers],0))-INDEX(FuncionárioReal[],MATCH(INDEX(VariaçõesDeFuncionários[],ROW()-ROW(VariaçõesDeFuncionários[[#Headers],[Jun]]),1),INDEX(PlanejamentoDeFuncionário[],,1),0),MATCH(VariaçõesDeFuncionários[[#Headers],[Jun]],FuncionárioReal[#Headers],0))","v":{"v":-135,"d":"-R$ 135.00"}},{"$f":"INDEX(PlanejamentoDeFuncionário[],MATCH(INDEX(VariaçõesDeFuncionários[],ROW()-ROW(VariaçõesDeFuncionários[[#Headers],[Jul]]),1),INDEX(PlanejamentoDeFuncionário[],,1),0),MATCH(VariaçõesDeFuncionários[[#Headers],[Jul]],PlanejamentoDeFuncionário[#Headers],0))-INDEX(FuncionárioReal[],MATCH(INDEX(VariaçõesDeFuncionários[],ROW()-ROW(VariaçõesDeFuncionários[[#Headers],[Jul]]),1),INDEX(PlanejamentoDeFuncionário[],,1),0),MATCH(VariaçõesDeFuncionários[[#Headers],[Jul]],FuncionárioReal[#Headers],0))","v":{"v":23625,"d":"R$ 23,625.00"}},{"$f":"INDEX(PlanejamentoDeFuncionário[],MATCH(INDEX(VariaçõesDeFuncionários[],ROW()-ROW(VariaçõesDeFuncionários[[#Headers],[Ago]]),1),INDEX(PlanejamentoDeFuncionário[],,1),0),MATCH(VariaçõesDeFuncionários[[#Headers],[Ago]],PlanejamentoDeFuncionário[#Headers],0))-INDEX(FuncionárioReal[],MATCH(INDEX(VariaçõesDeFuncionários[],ROW()-ROW(VariaçõesDeFuncionários[[#Headers],[Ago]]),1),INDEX(PlanejamentoDeFuncionário[],,1),0),MATCH(VariaçõesDeFuncionários[[#Headers],[Ago]],FuncionárioReal[#Headers],0))","v":{"v":24948,"d":"R$ 24,948.00"}},{"$f":"INDEX(PlanejamentoDeFuncionário[],MATCH(INDEX(VariaçõesDeFuncionários[],ROW()-ROW(VariaçõesDeFuncionários[[#Headers],[Set]]),1),INDEX(PlanejamentoDeFuncionário[],,1),0),MATCH(VariaçõesDeFuncionários[[#Headers],[Set]],PlanejamentoDeFuncionário[#Headers],0))-INDEX(FuncionárioReal[],MATCH(INDEX(VariaçõesDeFuncionários[],ROW()-ROW(VariaçõesDeFuncionários[[#Headers],[Set]]),1),INDEX(PlanejamentoDeFuncionário[],,1),0),MATCH(VariaçõesDeFuncionários[[#Headers],[Set]],FuncionárioReal[#Headers],0))","v":{"v":24948,"d":"R$ 24,948.00"}},{"$f":"INDEX(PlanejamentoDeFuncionário[],MATCH(INDEX(VariaçõesDeFuncionários[],ROW()-ROW(VariaçõesDeFuncionários[[#Headers],[Out]]),1),INDEX(PlanejamentoDeFuncionário[],,1),0),MATCH(VariaçõesDeFuncionários[[#Headers],[Out]],PlanejamentoDeFuncionário[#Headers],0))-INDEX(FuncionárioReal[],MATCH(INDEX(VariaçõesDeFuncionários[],ROW()-ROW(VariaçõesDeFuncionários[[#Headers],[Out]]),1),INDEX(PlanejamentoDeFuncionário[],,1),0),MATCH(VariaçõesDeFuncionários[[#Headers],[Out]],FuncionárioReal[#Headers],0))","v":{"v":24948,"d":"R$ 24,948.00"}},{"$f":"INDEX(PlanejamentoDeFuncionário[],MATCH(INDEX(VariaçõesDeFuncionários[],ROW()-ROW(VariaçõesDeFuncionários[[#Headers],[Nov]]),1),INDEX(PlanejamentoDeFuncionário[],,1),0),MATCH(VariaçõesDeFuncionários[[#Headers],[Nov]],PlanejamentoDeFuncionário[#Headers],0))-INDEX(FuncionárioReal[],MATCH(INDEX(VariaçõesDeFuncionários[],ROW()-ROW(VariaçõesDeFuncionários[[#Headers],[Nov]]),1),INDEX(PlanejamentoDeFuncionário[],,1),0),MATCH(VariaçõesDeFuncionários[[#Headers],[Nov]],FuncionárioReal[#Headers],0))","v":{"v":24948,"d":"R$ 24,948.00"}},{"$f":"INDEX(PlanejamentoDeFuncionário[],MATCH(INDEX(VariaçõesDeFuncionários[],ROW()-ROW(VariaçõesDeFuncionários[[#Headers],[Dez]]),1),INDEX(PlanejamentoDeFuncionário[],,1),0),MATCH(VariaçõesDeFuncionários[[#Headers],[Dez]],PlanejamentoDeFuncionário[#Headers],0))-INDEX(FuncionárioReal[],MATCH(INDEX(VariaçõesDeFuncionários[],ROW()-ROW(VariaçõesDeFuncionários[[#Headers],[Dez]]),1),INDEX(PlanejamentoDeFuncionário[],,1),0),MATCH(VariaçõesDeFuncionários[[#Headers],[Dez]],FuncionárioReal[#Headers],0))","v":{"v":24948,"d":"R$ 24,948.00"}},{"$f":"SUM(VariaçõesDeFuncionários[[#This Row],[Jan]:[Dez]])","v":{"v":147960,"d":"R$ 147,960.00"}}]
[null,"Subtotal",{"$f":"SUBTOTAL(109,VariaçõesDeFuncionários[Jan])","v":{"v":0,"d":"R$ 0.00"}},{"$f":"SUBTOTAL(109,VariaçõesDeFuncionários[Fev])","v":{"v":0,"d":"R$ 0.00"}},{"$f":"SUBTOTAL(109,VariaçõesDeFuncionários[Mar])","v":{"v":0,"d":"R$ 0.00"}},{"$f":"SUBTOTAL(109,VariaçõesDeFuncionários[Abr])","v":{"v":-635,"d":"-R$ 635.00"}},{"$f":"SUBTOTAL(109,VariaçõesDeFuncionários[Maio])","v":{"v":-635,"d":"-R$ 635.00"}},{"$f":"SUBTOTAL(109,VariaçõesDeFuncionários[Jun])","v":{"v":-635,"d":"-R$ 635.00"}},{"$f":"SUBTOTAL(109,VariaçõesDeFuncionários[Jul])","v":{"v":111125,"d":"R$ 111,125.00"}},{"$f":"SUBTOTAL(109,VariaçõesDeFuncionários[Ago])","v":{"v":117348,"d":"R$ 117,348.00"}},{"$f":"SUBTOTAL(109,VariaçõesDeFuncionários[Set])","v":{"v":117348,"d":"R$ 117,348.00"}},{"$f":"SUBTOTAL(109,VariaçõesDeFuncionários[Out])","v":{"v":117348,"d":"R$ 117,348.00"}},{"$f":"SUBTOTAL(109,VariaçõesDeFuncionários[Nov])","v":{"v":117348,"d":"R$ 117,348.00"}},{"$f":"SUBTOTAL(109,VariaçõesDeFuncionários[Dez])","v":{"v":117348,"d":"R$ 117,348.00"}},{"$f":"SUBTOTAL(109,VariaçõesDeFuncionários[ANO])","v":{"v":695960,"d":"R$ 695,960.00"}}]
[]
[null,"Custos do escritório","Jan","Fev","Mar","Abr","Maio","Jun","Jul","Ago","Set","Out","Nov","Dez","ANO"]
[null,"Aluguel do escritório",{"$f":"INDEX(PlanejamentoDeEscritório[],MATCH(INDEX(VariaçõesDoEscritório[],ROW()-ROW(VariaçõesDoEscritório[[#Headers],[Jan]]),1),INDEX(PlanejamentoDeEscritório[],,1),0),MATCH(VariaçõesDoEscritório[[#Headers],[Jan]],PlanejamentoDeEscritório[#Headers],0))-INDEX(EscritórioReal[],MATCH(INDEX(VariaçõesDoEscritório[],ROW()-ROW(VariaçõesDoEscritório[[#Headers],[Jan]]),1),INDEX(EscritórioReal[],,1),0),MATCH(VariaçõesDoEscritório[[#Headers],[Jan]],EscritórioReal[#Headers],0))","v":{"v":0,"d":"R$ 0.00"}},{"$f":"INDEX(PlanejamentoDeEscritório[],MATCH(INDEX(VariaçõesDoEscritório[],ROW()-ROW(VariaçõesDoEscritório[[#Headers],[Fev]]),1),INDEX(PlanejamentoDeEscritório[],,1),0),MATCH(VariaçõesDoEscritório[[#Headers],[Fev]],PlanejamentoDeEscritório[#Headers],0))-INDEX(EscritórioReal[],MATCH(INDEX(VariaçõesDoEscritório[],ROW()-ROW(VariaçõesDoEscritório[[#Headers],[Fev]]),1),INDEX(EscritórioReal[],,1),0),MATCH(VariaçõesDoEscritório[[#Headers],[Fev]],EscritórioReal[#Headers],0))","v":{"v":0,"d":"R$ 0.00"}},{"$f":"INDEX(PlanejamentoDeEscritório[],MATCH(INDEX(VariaçõesDoEscritório[],ROW()-ROW(VariaçõesDoEscritório[[#Headers],[Mar]]),1),INDEX(PlanejamentoDeEscritório[],,1),0),MATCH(VariaçõesDoEscritório[[#Headers],[Mar]],PlanejamentoDeEscritório[#Headers],0))-INDEX(EscritórioReal[],MATCH(INDEX(VariaçõesDoEscritório[],ROW()-ROW(VariaçõesDoEscritório[[#Headers],[Mar]]),1),INDEX(EscritórioReal[],,1),0),MATCH(VariaçõesDoEscritório[[#Headers],[Mar]],EscritórioReal[#Headers],0))","v":{"v":0,"d":"R$ 0.00"}},{"$f":"INDEX(PlanejamentoDeEscritório[],MATCH(INDEX(VariaçõesDoEscritório[],ROW()-ROW(VariaçõesDoEscritório[[#Headers],[Abr]]),1),INDEX(PlanejamentoDeEscritório[],,1),0),MATCH(VariaçõesDoEscritório[[#Headers],[Abr]],PlanejamentoDeEscritório[#Headers],0))-INDEX(EscritórioReal[],MATCH(INDEX(VariaçõesDoEscritório[],ROW()-ROW(VariaçõesDoEscritório[[#Headers],[Abr]]),1),INDEX(EscritórioReal[],,1),0),MATCH(VariaçõesDoEscritório[[#Headers],[Abr]],EscritórioReal[#Headers],0))","v":{"v":0,"d":"R$ 0.00"}},{"$f":"INDEX(PlanejamentoDeEscritório[],MATCH(INDEX(VariaçõesDoEscritório[],ROW()-ROW(VariaçõesDoEscritório[[#Headers],[Maio]]),1),INDEX(PlanejamentoDeEscritório[],,1),0),MATCH(VariaçõesDoEscritório[[#Headers],[Maio]],PlanejamentoDeEscritório[#Headers],0))-INDEX(EscritórioReal[],MATCH(INDEX(VariaçõesDoEscritório[],ROW()-ROW(VariaçõesDoEscritório[[#Headers],[Maio]]),1),INDEX(EscritórioReal[],,1),0),MATCH(VariaçõesDoEscritório[[#Headers],[Maio]],EscritórioReal[#Headers],0))","v":{"v":0,"d":"R$ 0.00"}},{"$f":"INDEX(PlanejamentoDeEscritório[],MATCH(INDEX(VariaçõesDoEscritório[],ROW()-ROW(VariaçõesDoEscritório[[#Headers],[Jun]]),1),INDEX(PlanejamentoDeEscritório[],,1),0),MATCH(VariaçõesDoEscritório[[#Headers],[Jun]],PlanejamentoDeEscritório[#Headers],0))-INDEX(EscritórioReal[],MATCH(INDEX(VariaçõesDoEscritório[],ROW()-ROW(VariaçõesDoEscritório[[#Headers],[Jun]]),1),INDEX(EscritórioReal[],,1),0),MATCH(VariaçõesDoEscritório[[#Headers],[Jun]],EscritórioReal[#Headers],0))","v":{"v":0,"d":"R$ 0.00"}},{"$f":"INDEX(PlanejamentoDeEscritório[],MATCH(INDEX(VariaçõesDoEscritório[],ROW()-ROW(VariaçõesDoEscritório[[#Headers],[Jul]]),1),INDEX(PlanejamentoDeEscritório[],,1),0),MATCH(VariaçõesDoEscritório[[#Headers],[Jul]],PlanejamentoDeEscritório[#Headers],0))-INDEX(EscritórioReal[],MATCH(INDEX(VariaçõesDoEscritório[],ROW()-ROW(VariaçõesDoEscritório[[#Headers],[Jul]]),1),INDEX(EscritórioReal[],,1),0),MATCH(VariaçõesDoEscritório[[#Headers],[Jul]],EscritórioReal[#Headers],0))","v":{"v":9800,"d":"R$ 9,800.00"}},{"$f":"INDEX(PlanejamentoDeEscritório[],MATCH(INDEX(VariaçõesDoEscritório[],ROW()-ROW(VariaçõesDoEscritório[[#Headers],[Ago]]),1),INDEX(PlanejamentoDeEscritório[],,1),0),MATCH(VariaçõesDoEscritório[[#Headers],[Ago]],PlanejamentoDeEscritório[#Headers],0))-INDEX(EscritórioReal[],MATCH(INDEX(VariaçõesDoEscritório[],ROW()-ROW(VariaçõesDoEscritório[[#Headers],[Ago]]),1),INDEX(EscritórioReal[],,1),0),MATCH(VariaçõesDoEscritório[[#Headers],[Ago]],EscritórioReal[#Headers],0))","v":{"v":9800,"d":"R$ 9,800.00"}},{"$f":"INDEX(PlanejamentoDeEscritório[],MATCH(INDEX(VariaçõesDoEscritório[],ROW()-ROW(VariaçõesDoEscritório[[#Headers],[Set]]),1),INDEX(PlanejamentoDeEscritório[],,1),0),MATCH(VariaçõesDoEscritório[[#Headers],[Set]],PlanejamentoDeEscritório[#Headers],0))-INDEX(EscritórioReal[],MATCH(INDEX(VariaçõesDoEscritório[],ROW()-ROW(VariaçõesDoEscritório[[#Headers],[Set]]),1),INDEX(EscritórioReal[],,1),0),MATCH(VariaçõesDoEscritório[[#Headers],[Set]],EscritórioReal[#Headers],0))","v":{"v":9800,"d":"R$ 9,800.00"}},{"$f":"INDEX(PlanejamentoDeEscritório[],MATCH(INDEX(VariaçõesDoEscritório[],ROW()-ROW(VariaçõesDoEscritório[[#Headers],[Out]]),1),INDEX(PlanejamentoDeEscritório[],,1),0),MATCH(VariaçõesDoEscritório[[#Headers],[Out]],PlanejamentoDeEscritório[#Headers],0))-INDEX(EscritórioReal[],MATCH(INDEX(VariaçõesDoEscritório[],ROW()-ROW(VariaçõesDoEscritório[[#Headers],[Out]]),1),INDEX(EscritórioReal[],,1),0),MATCH(VariaçõesDoEscritório[[#Headers],[Out]],EscritórioReal[#Headers],0))","v":{"v":9800,"d":"R$ 9,800.00"}},{"$f":"INDEX(PlanejamentoDeEscritório[],MATCH(INDEX(VariaçõesDoEscritório[],ROW()-ROW(VariaçõesDoEscritório[[#Headers],[Nov]]),1),INDEX(PlanejamentoDeEscritório[],,1),0),MATCH(VariaçõesDoEscritório[[#Headers],[Nov]],PlanejamentoDeEscritório[#Headers],0))-INDEX(EscritórioReal[],MATCH(INDEX(VariaçõesDoEscritório[],ROW()-ROW(VariaçõesDoEscritório[[#Headers],[Nov]]),1),INDEX(EscritórioReal[],,1),0),MATCH(VariaçõesDoEscritório[[#Headers],[Nov]],EscritórioReal[#Headers],0))","v":{"v":9800,"d":"R$ 9,800.00"}},{"$f":"INDEX(PlanejamentoDeEscritório[],MATCH(INDEX(VariaçõesDoEscritório[],ROW()-ROW(VariaçõesDoEscritório[[#Headers],[Dez]]),1),INDEX(PlanejamentoDeEscritório[],,1),0),MATCH(VariaçõesDoEscritório[[#Headers],[Dez]],PlanejamentoDeEscritório[#Headers],0))-INDEX(EscritórioReal[],MATCH(INDEX(VariaçõesDoEscritório[],ROW()-ROW(VariaçõesDoEscritório[[#Headers],[Dez]]),1),INDEX(EscritórioReal[],,1),0),MATCH(VariaçõesDoEscritório[[#Headers],[Dez]],EscritórioReal[#Headers],0))","v":{"v":9800,"d":"R$ 9,800.00"}},{"$f":"SUM(VariaçõesDoEscritório[[#This Row],[Jan]:[Dez]])","v":{"v":58800,"d":"R$ 58,800.00"}}]
[null,"Gás",{"$f":"INDEX(PlanejamentoDeEscritório[],MATCH(INDEX(VariaçõesDoEscritório[],ROW()-ROW(VariaçõesDoEscritório[[#Headers],[Jan]]),1),INDEX(PlanejamentoDeEscritório[],,1),0),MATCH(VariaçõesDoEscritório[[#Headers],[Jan]],PlanejamentoDeEscritório[#Headers],0))-INDEX(EscritórioReal[],MATCH(INDEX(VariaçõesDoEscritório[],ROW()-ROW(VariaçõesDoEscritório[[#Headers],[Jan]]),1),INDEX(EscritórioReal[],,1),0),MATCH(VariaçõesDoEscritório[[#Headers],[Jan]],EscritórioReal[#Headers],0))","v":{"v":-4,"d":"-R$ 4.00"}},{"$f":"INDEX(PlanejamentoDeEscritório[],MATCH(INDEX(VariaçõesDoEscritório[],ROW()-ROW(VariaçõesDoEscritório[[#Headers],[Fev]]),1),INDEX(PlanejamentoDeEscritório[],,1),0),MATCH(VariaçõesDoEscritório[[#Headers],[Fev]],PlanejamentoDeEscritório[#Headers],0))-INDEX(EscritórioReal[],MATCH(INDEX(VariaçõesDoEscritório[],ROW()-ROW(VariaçõesDoEscritório[[#Headers],[Fev]]),1),INDEX(EscritórioReal[],,1),0),MATCH(VariaçõesDoEscritório[[#Headers],[Fev]],EscritórioReal[#Headers],0))","v":{"v":-30,"d":"-R$ 30.00"}},{"$f":"INDEX(PlanejamentoDeEscritório[],MATCH(INDEX(VariaçõesDoEscritório[],ROW()-ROW(VariaçõesDoEscritório[[#Headers],[Mar]]),1),INDEX(PlanejamentoDeEscritório[],,1),0),MATCH(VariaçõesDoEscritório[[#Headers],[Mar]],PlanejamentoDeEscritório[#Headers],0))-INDEX(EscritórioReal[],MATCH(INDEX(VariaçõesDoEscritório[],ROW()-ROW(VariaçõesDoEscritório[[#Headers],[Mar]]),1),INDEX(EscritórioReal[],,1),0),MATCH(VariaçõesDoEscritório[[#Headers],[Mar]],EscritórioReal[#Headers],0))","v":{"v":15,"d":"R$ 15.00"}},{"$f":"INDEX(PlanejamentoDeEscritório[],MATCH(INDEX(VariaçõesDoEscritório[],ROW()-ROW(VariaçõesDoEscritório[[#Headers],[Abr]]),1),INDEX(PlanejamentoDeEscritório[],,1),0),MATCH(VariaçõesDoEscritório[[#Headers],[Abr]],PlanejamentoDeEscritório[#Headers],0))-INDEX(EscritórioReal[],MATCH(INDEX(VariaçõesDoEscritório[],ROW()-ROW(VariaçõesDoEscritório[[#Headers],[Abr]]),1),INDEX(EscritórioReal[],,1),0),MATCH(VariaçõesDoEscritório[[#Headers],[Abr]],EscritórioReal[#Headers],0))","v":{"v":-130,"d":"-R$ 130.00"}},{"$f":"INDEX(PlanejamentoDeEscritório[],MATCH(INDEX(VariaçõesDoEscritório[],ROW()-ROW(VariaçõesDoEscritório[[#Headers],[Maio]]),1),INDEX(PlanejamentoDeEscritório[],,1),0),MATCH(VariaçõesDoEscritório[[#Headers],[Maio]],PlanejamentoDeEscritório[#Headers],0))-INDEX(EscritórioReal[],MATCH(INDEX(VariaçõesDoEscritório[],ROW()-ROW(VariaçõesDoEscritório[[#Headers],[Maio]]),1),INDEX(EscritórioReal[],,1),0),MATCH(VariaçõesDoEscritório[[#Headers],[Maio]],EscritórioReal[#Headers],0))","v":{"v":13,"d":"R$ 13.00"}},{"$f":"INDEX(PlanejamentoDeEscritório[],MATCH(INDEX(VariaçõesDoEscritório[],ROW()-ROW(VariaçõesDoEscritório[[#Headers],[Jun]]),1),INDEX(PlanejamentoDeEscritório[],,1),0),MATCH(VariaçõesDoEscritório[[#Headers],[Jun]],PlanejamentoDeEscritório[#Headers],0))-INDEX(EscritórioReal[],MATCH(INDEX(VariaçõesDoEscritório[],ROW()-ROW(VariaçõesDoEscritório[[#Headers],[Jun]]),1),INDEX(EscritórioReal[],,1),0),MATCH(VariaçõesDoEscritório[[#Headers],[Jun]],EscritórioReal[#Headers],0))","v":{"v":12,"d":"R$ 12.00"}},{"$f":"INDEX(PlanejamentoDeEscritório[],MATCH(INDEX(VariaçõesDoEscritório[],ROW()-ROW(VariaçõesDoEscritório[[#Headers],[Jul]]),1),INDEX(PlanejamentoDeEscritório[],,1),0),MATCH(VariaçõesDoEscritório[[#Headers],[Jul]],PlanejamentoDeEscritório[#Headers],0))-INDEX(EscritórioReal[],MATCH(INDEX(VariaçõesDoEscritório[],ROW()-ROW(VariaçõesDoEscritório[[#Headers],[Jul]]),1),INDEX(EscritórioReal[],,1),0),MATCH(VariaçõesDoEscritório[[#Headers],[Jul]],EscritórioReal[#Headers],0))","v":{"v":100,"d":"R$ 100.00"}},{"$f":"INDEX(PlanejamentoDeEscritório[],MATCH(INDEX(VariaçõesDoEscritório[],ROW()-ROW(VariaçõesDoEscritório[[#Headers],[Ago]]),1),INDEX(PlanejamentoDeEscritório[],,1),0),MATCH(VariaçõesDoEscritório[[#Headers],[Ago]],PlanejamentoDeEscritório[#Headers],0))-INDEX(EscritórioReal[],MATCH(INDEX(VariaçõesDoEscritório[],ROW()-ROW(VariaçõesDoEscritório[[#Headers],[Ago]]),1),INDEX(EscritórioReal[],,1),0),MATCH(VariaçõesDoEscritório[[#Headers],[Ago]],EscritórioReal[#Headers],0))","v":{"v":100,"d":"R$ 100.00"}},{"$f":"INDEX(PlanejamentoDeEscritório[],MATCH(INDEX(VariaçõesDoEscritório[],ROW()-ROW(VariaçõesDoEscritório[[#Headers],[Set]]),1),INDEX(PlanejamentoDeEscritório[],,1),0),MATCH(VariaçõesDoEscritório[[#Headers],[Set]],PlanejamentoDeEscritório[#Headers],0))-INDEX(EscritórioReal[],MATCH(INDEX(VariaçõesDoEscritório[],ROW()-ROW(VariaçõesDoEscritório[[#Headers],[Set]]),1),INDEX(EscritórioReal[],,1),0),MATCH(VariaçõesDoEscritório[[#Headers],[Set]],EscritórioReal[#Headers],0))","v":{"v":100,"d":"R$ 100.00"}},{"$f":"INDEX(PlanejamentoDeEscritório[],MATCH(INDEX(VariaçõesDoEscritório[],ROW()-ROW(VariaçõesDoEscritório[[#Headers],[Out]]),1),INDEX(PlanejamentoDeEscritório[],,1),0),MATCH(VariaçõesDoEscritório[[#Headers],[Out]],PlanejamentoDeEscritório[#Headers],0))-INDEX(EscritórioReal[],MATCH(INDEX(VariaçõesDoEscritório[],ROW()-ROW(VariaçõesDoEscritório[[#Headers],[Out]]),1),INDEX(EscritórioReal[],,1),0),MATCH(VariaçõesDoEscritório[[#Headers],[Out]],EscritórioReal[#Headers],0))","v":{"v":100,"d":"R$ 100.00"}},{"$f":"INDEX(PlanejamentoDeEscritório[],MATCH(INDEX(VariaçõesDoEscritório[],ROW()-ROW(VariaçõesDoEscritório[[#Headers],[Nov]]),1),INDEX(PlanejamentoDeEscritório[],,1),0),MATCH(VariaçõesDoEscritório[[#Headers],[Nov]],PlanejamentoDeEscritório[#Headers],0))-INDEX(EscritórioReal[],MATCH(INDEX(VariaçõesDoEscritório[],ROW()-ROW(VariaçõesDoEscritório[[#Headers],[Nov]]),1),INDEX(EscritórioReal[],,1),0),MATCH(VariaçõesDoEscritório[[#Headers],[Nov]],EscritórioReal[#Headers],0))","v":{"v":400,"d":"R$ 400.00"}},{"$f":"INDEX(PlanejamentoDeEscritório[],MATCH(INDEX(VariaçõesDoEscritório[],ROW()-ROW(VariaçõesDoEscritório[[#Headers],[Dez]]),1),INDEX(PlanejamentoDeEscritório[],,1),0),MATCH(VariaçõesDoEscritório[[#Headers],[Dez]],PlanejamentoDeEscritório[#Headers],0))-INDEX(EscritórioReal[],MATCH(INDEX(VariaçõesDoEscritório[],ROW()-ROW(VariaçõesDoEscritório[[#Headers],[Dez]]),1),INDEX(EscritórioReal[],,1),0),MATCH(VariaçõesDoEscritório[[#Headers],[Dez]],EscritórioReal[#Headers],0))","v":{"v":400,"d":"R$ 400.00"}},{"$f":"SUM(VariaçõesDoEscritório[[#This Row],[Jan]:[Dez]])","v":{"v":1076,"d":"R$ 1,076.00"}}]
[null,"Eletricidade",{"$f":"INDEX(PlanejamentoDeEscritório[],MATCH(INDEX(VariaçõesDoEscritório[],ROW()-ROW(VariaçõesDoEscritório[[#Headers],[Jan]]),1),INDEX(PlanejamentoDeEscritório[],,1),0),MATCH(VariaçõesDoEscritório[[#Headers],[Jan]],PlanejamentoDeEscritório[#Headers],0))-INDEX(EscritórioReal[],MATCH(INDEX(VariaçõesDoEscritório[],ROW()-ROW(VariaçõesDoEscritório[[#Headers],[Jan]]),1),INDEX(EscritórioReal[],,1),0),MATCH(VariaçõesDoEscritório[[#Headers],[Jan]],EscritórioReal[#Headers],0))","v":{"v":12,"d":"R$ 12.00"}},{"$f":"INDEX(PlanejamentoDeEscritório[],MATCH(INDEX(VariaçõesDoEscritório[],ROW()-ROW(VariaçõesDoEscritório[[#Headers],[Fev]]),1),INDEX(PlanejamentoDeEscritório[],,1),0),MATCH(VariaçõesDoEscritório[[#Headers],[Fev]],PlanejamentoDeEscritório[#Headers],0))-INDEX(EscritórioReal[],MATCH(INDEX(VariaçõesDoEscritório[],ROW()-ROW(VariaçõesDoEscritório[[#Headers],[Fev]]),1),INDEX(EscritórioReal[],,1),0),MATCH(VariaçõesDoEscritório[[#Headers],[Fev]],EscritórioReal[#Headers],0))","v":{"v":22,"d":"R$ 22.00"}},{"$f":"INDEX(PlanejamentoDeEscritório[],MATCH(INDEX(VariaçõesDoEscritório[],ROW()-ROW(VariaçõesDoEscritório[[#Headers],[Mar]]),1),INDEX(PlanejamentoDeEscritório[],,1),0),MATCH(VariaçõesDoEscritório[[#Headers],[Mar]],PlanejamentoDeEscritório[#Headers],0))-INDEX(EscritórioReal[],MATCH(INDEX(VariaçõesDoEscritório[],ROW()-ROW(VariaçõesDoEscritório[[#Headers],[Mar]]),1),INDEX(EscritórioReal[],,1),0),MATCH(VariaçõesDoEscritório[[#Headers],[Mar]],EscritórioReal[#Headers],0))","v":{"v":32,"d":"R$ 32.00"}},{"$f":"INDEX(PlanejamentoDeEscritório[],MATCH(INDEX(VariaçõesDoEscritório[],ROW()-ROW(VariaçõesDoEscritório[[#Headers],[Abr]]),1),INDEX(PlanejamentoDeEscritório[],,1),0),MATCH(VariaçõesDoEscritório[[#Headers],[Abr]],PlanejamentoDeEscritório[#Headers],0))-INDEX(EscritórioReal[],MATCH(INDEX(VariaçõesDoEscritório[],ROW()-ROW(VariaçõesDoEscritório[[#Headers],[Abr]]),1),INDEX(EscritórioReal[],,1),0),MATCH(VariaçõesDoEscritório[[#Headers],[Abr]],EscritórioReal[#Headers],0))","v":{"v":1,"d":"R$ 1.00"}},{"$f":"INDEX(PlanejamentoDeEscritório[],MATCH(INDEX(VariaçõesDoEscritório[],ROW()-ROW(VariaçõesDoEscritório[[#Headers],[Maio]]),1),INDEX(PlanejamentoDeEscritório[],,1),0),MATCH(VariaçõesDoEscritório[[#Headers],[Maio]],PlanejamentoDeEscritório[#Headers],0))-INDEX(EscritórioReal[],MATCH(INDEX(VariaçõesDoEscritório[],ROW()-ROW(VariaçõesDoEscritório[[#Headers],[Maio]]),1),INDEX(EscritórioReal[],,1),0),MATCH(VariaçõesDoEscritório[[#Headers],[Maio]],EscritórioReal[#Headers],0))","v":{"v":-6,"d":"-R$ 6.00"}},{"$f":"INDEX(PlanejamentoDeEscritório[],MATCH(INDEX(VariaçõesDoEscritório[],ROW()-ROW(VariaçõesDoEscritório[[#Headers],[Jun]]),1),INDEX(PlanejamentoDeEscritório[],,1),0),MATCH(VariaçõesDoEscritório[[#Headers],[Jun]],PlanejamentoDeEscritório[#Headers],0))-INDEX(EscritórioReal[],MATCH(INDEX(VariaçõesDoEscritório[],ROW()-ROW(VariaçõesDoEscritório[[#Headers],[Jun]]),1),INDEX(EscritórioReal[],,1),0),MATCH(VariaçõesDoEscritório[[#Headers],[Jun]],EscritórioReal[#Headers],0))","v":{"v":10,"d":"R$ 10.00"}},{"$f":"INDEX(PlanejamentoDeEscritório[],MATCH(INDEX(VariaçõesDoEscritório[],ROW()-ROW(VariaçõesDoEscritório[[#Headers],[Jul]]),1),INDEX(PlanejamentoDeEscritório[],,1),0),MATCH(VariaçõesDoEscritório[[#Headers],[Jul]],PlanejamentoDeEscritório[#Headers],0))-INDEX(EscritórioReal[],MATCH(INDEX(VariaçõesDoEscritório[],ROW()-ROW(VariaçõesDoEscritório[[#Headers],[Jul]]),1),INDEX(EscritórioReal[],,1),0),MATCH(VariaçõesDoEscritório[[#Headers],[Jul]],EscritórioReal[#Headers],0))","v":{"v":300,"d":"R$ 300.00"}},{"$f":"INDEX(PlanejamentoDeEscritório[],MATCH(INDEX(VariaçõesDoEscritório[],ROW()-ROW(VariaçõesDoEscritório[[#Headers],[Ago]]),1),INDEX(PlanejamentoDeEscritório[],,1),0),MATCH(VariaçõesDoEscritório[[#Headers],[Ago]],PlanejamentoDeEscritório[#Headers],0))-INDEX(EscritórioReal[],MATCH(INDEX(VariaçõesDoEscritório[],ROW()-ROW(VariaçõesDoEscritório[[#Headers],[Ago]]),1),INDEX(EscritórioReal[],,1),0),MATCH(VariaçõesDoEscritório[[#Headers],[Ago]],EscritórioReal[#Headers],0))","v":{"v":300,"d":"R$ 300.00"}},{"$f":"INDEX(PlanejamentoDeEscritório[],MATCH(INDEX(VariaçõesDoEscritório[],ROW()-ROW(VariaçõesDoEscritório[[#Headers],[Set]]),1),INDEX(PlanejamentoDeEscritório[],,1),0),MATCH(VariaçõesDoEscritório[[#Headers],[Set]],PlanejamentoDeEscritório[#Headers],0))-INDEX(EscritórioReal[],MATCH(INDEX(VariaçõesDoEscritório[],ROW()-ROW(VariaçõesDoEscritório[[#Headers],[Set]]),1),INDEX(EscritórioReal[],,1),0),MATCH(VariaçõesDoEscritório[[#Headers],[Set]],EscritórioReal[#Headers],0))","v":{"v":300,"d":"R$ 300.00"}},{"$f":"INDEX(PlanejamentoDeEscritório[],MATCH(INDEX(VariaçõesDoEscritório[],ROW()-ROW(VariaçõesDoEscritório[[#Headers],[Out]]),1),INDEX(PlanejamentoDeEscritório[],,1),0),MATCH(VariaçõesDoEscritório[[#Headers],[Out]],PlanejamentoDeEscritório[#Headers],0))-INDEX(EscritórioReal[],MATCH(INDEX(VariaçõesDoEscritório[],ROW()-ROW(VariaçõesDoEscritório[[#Headers],[Out]]),1),INDEX(EscritórioReal[],,1),0),MATCH(VariaçõesDoEscritório[[#Headers],[Out]],EscritórioReal[#Headers],0))","v":{"v":300,"d":"R$ 300.00"}},{"$f":"INDEX(PlanejamentoDeEscritório[],MATCH(INDEX(VariaçõesDoEscritório[],ROW()-ROW(VariaçõesDoEscritório[[#Headers],[Nov]]),1),INDEX(PlanejamentoDeEscritório[],,1),0),MATCH(VariaçõesDoEscritório[[#Headers],[Nov]],PlanejamentoDeEscritório[#Headers],0))-INDEX(EscritórioReal[],MATCH(INDEX(VariaçõesDoEscritório[],ROW()-ROW(VariaçõesDoEscritório[[#Headers],[Nov]]),1),INDEX(EscritórioReal[],,1),0),MATCH(VariaçõesDoEscritório[[#Headers],[Nov]],EscritórioReal[#Headers],0))","v":{"v":300,"d":"R$ 300.00"}},{"$f":"INDEX(PlanejamentoDeEscritório[],MATCH(INDEX(VariaçõesDoEscritório[],ROW()-ROW(VariaçõesDoEscritório[[#Headers],[Dez]]),1),INDEX(PlanejamentoDeEscritório[],,1),0),MATCH(VariaçõesDoEscritório[[#Headers],[Dez]],PlanejamentoDeEscritório[#Headers],0))-INDEX(EscritórioReal[],MATCH(INDEX(VariaçõesDoEscritório[],ROW()-ROW(VariaçõesDoEscritório[[#Headers],[Dez]]),1),INDEX(EscritórioReal[],,1),0),MATCH(VariaçõesDoEscritório[[#Headers],[Dez]],EscritórioReal[#Headers],0))","v":{"v":300,"d":"R$ 300.00"}},{"$f":"SUM(VariaçõesDoEscritório[[#This Row],[Jan]:[Dez]])","v":{"v":1871,"d":"R$ 1,871.00"}}]
[null,"Água",{"$f":"INDEX(PlanejamentoDeEscritório[],MATCH(INDEX(VariaçõesDoEscritório[],ROW()-ROW(VariaçõesDoEscritório[[#Headers],[Jan]]),1),INDEX(PlanejamentoDeEscritório[],,1),0),MATCH(VariaçõesDoEscritório[[#Headers],[Jan]],PlanejamentoDeEscritório[#Headers],0))-INDEX(EscritórioReal[],MATCH(INDEX(VariaçõesDoEscritório[],ROW()-ROW(VariaçõesDoEscritório[[#Headers],[Jan]]),1),INDEX(EscritórioReal[],,1),0),MATCH(VariaçõesDoEscritório[[#Headers],[Jan]],EscritórioReal[#Headers],0))","v":{"v":5,"d":"R$ 5.00"}},{"$f":"INDEX(PlanejamentoDeEscritório[],MATCH(INDEX(VariaçõesDoEscritório[],ROW()-ROW(VariaçõesDoEscritório[[#Headers],[Fev]]),1),INDEX(PlanejamentoDeEscritório[],,1),0),MATCH(VariaçõesDoEscritório[[#Headers],[Fev]],PlanejamentoDeEscritório[#Headers],0))-INDEX(EscritórioReal[],MATCH(INDEX(VariaçõesDoEscritório[],ROW()-ROW(VariaçõesDoEscritório[[#Headers],[Fev]]),1),INDEX(EscritórioReal[],,1),0),MATCH(VariaçõesDoEscritório[[#Headers],[Fev]],EscritórioReal[#Headers],0))","v":{"v":7,"d":"R$ 7.00"}},{"$f":"INDEX(PlanejamentoDeEscritório[],MATCH(INDEX(VariaçõesDoEscritório[],ROW()-ROW(VariaçõesDoEscritório[[#Headers],[Mar]]),1),INDEX(PlanejamentoDeEscritório[],,1),0),MATCH(VariaçõesDoEscritório[[#Headers],[Mar]],PlanejamentoDeEscritório[#Headers],0))-INDEX(EscritórioReal[],MATCH(INDEX(VariaçõesDoEscritório[],ROW()-ROW(VariaçõesDoEscritório[[#Headers],[Mar]]),1),INDEX(EscritórioReal[],,1),0),MATCH(VariaçõesDoEscritório[[#Headers],[Mar]],EscritórioReal[#Headers],0))","v":{"v":6,"d":"R$ 6.00"}},{"$f":"INDEX(PlanejamentoDeEscritório[],MATCH(INDEX(VariaçõesDoEscritório[],ROW()-ROW(VariaçõesDoEscritório[[#Headers],[Abr]]),1),INDEX(PlanejamentoDeEscritório[],,1),0),MATCH(VariaçõesDoEscritório[[#Headers],[Abr]],PlanejamentoDeEscritório[#Headers],0))-INDEX(EscritórioReal[],MATCH(INDEX(VariaçõesDoEscritório[],ROW()-ROW(VariaçõesDoEscritório[[#Headers],[Abr]]),1),INDEX(EscritórioReal[],,1),0),MATCH(VariaçõesDoEscritório[[#Headers],[Abr]],EscritórioReal[#Headers],0))","v":{"v":4,"d":"R$ 4.00"}},{"$f":"INDEX(PlanejamentoDeEscritório[],MATCH(INDEX(VariaçõesDoEscritório[],ROW()-ROW(VariaçõesDoEscritório[[#Headers],[Maio]]),1),INDEX(PlanejamentoDeEscritório[],,1),0),MATCH(VariaçõesDoEscritório[[#Headers],[Maio]],PlanejamentoDeEscritório[#Headers],0))-INDEX(EscritórioReal[],MATCH(INDEX(VariaçõesDoEscritório[],ROW()-ROW(VariaçõesDoEscritório[[#Headers],[Maio]]),1),INDEX(EscritórioReal[],,1),0),MATCH(VariaçõesDoEscritório[[#Headers],[Maio]],EscritórioReal[#Headers],0))","v":{"v":6,"d":"R$ 6.00"}},{"$f":"INDEX(PlanejamentoDeEscritório[],MATCH(INDEX(VariaçõesDoEscritório[],ROW()-ROW(VariaçõesDoEscritório[[#Headers],[Jun]]),1),INDEX(PlanejamentoDeEscritório[],,1),0),MATCH(VariaçõesDoEscritório[[#Headers],[Jun]],PlanejamentoDeEscritório[#Headers],0))-INDEX(EscritórioReal[],MATCH(INDEX(VariaçõesDoEscritório[],ROW()-ROW(VariaçõesDoEscritório[[#Headers],[Jun]]),1),INDEX(EscritórioReal[],,1),0),MATCH(VariaçõesDoEscritório[[#Headers],[Jun]],EscritórioReal[#Headers],0))","v":{"v":4,"d":"R$ 4.00"}},{"$f":"INDEX(PlanejamentoDeEscritório[],MATCH(INDEX(VariaçõesDoEscritório[],ROW()-ROW(VariaçõesDoEscritório[[#Headers],[Jul]]),1),INDEX(PlanejamentoDeEscritório[],,1),0),MATCH(VariaçõesDoEscritório[[#Headers],[Jul]],PlanejamentoDeEscritório[#Headers],0))-INDEX(EscritórioReal[],MATCH(INDEX(VariaçõesDoEscritório[],ROW()-ROW(VariaçõesDoEscritório[[#Headers],[Jul]]),1),INDEX(EscritórioReal[],,1),0),MATCH(VariaçõesDoEscritório[[#Headers],[Jul]],EscritórioReal[#Headers],0))","v":{"v":40,"d":"R$ 40.00"}},{"$f":"INDEX(PlanejamentoDeEscritório[],MATCH(INDEX(VariaçõesDoEscritório[],ROW()-ROW(VariaçõesDoEscritório[[#Headers],[Ago]]),1),INDEX(PlanejamentoDeEscritório[],,1),0),MATCH(VariaçõesDoEscritório[[#Headers],[Ago]],PlanejamentoDeEscritório[#Headers],0))-INDEX(EscritórioReal[],MATCH(INDEX(VariaçõesDoEscritório[],ROW()-ROW(VariaçõesDoEscritório[[#Headers],[Ago]]),1),INDEX(EscritórioReal[],,1),0),MATCH(VariaçõesDoEscritório[[#Headers],[Ago]],EscritórioReal[#Headers],0))","v":{"v":40,"d":"R$ 40.00"}},{"$f":"INDEX(PlanejamentoDeEscritório[],MATCH(INDEX(VariaçõesDoEscritório[],ROW()-ROW(VariaçõesDoEscritório[[#Headers],[Set]]),1),INDEX(PlanejamentoDeEscritório[],,1),0),MATCH(VariaçõesDoEscritório[[#Headers],[Set]],PlanejamentoDeEscritório[#Headers],0))-INDEX(EscritórioReal[],MATCH(INDEX(VariaçõesDoEscritório[],ROW()-ROW(VariaçõesDoEscritório[[#Headers],[Set]]),1),INDEX(EscritórioReal[],,1),0),MATCH(VariaçõesDoEscritório[[#Headers],[Set]],EscritórioReal[#Headers],0))","v":{"v":40,"d":"R$ 40.00"}},{"$f":"INDEX(PlanejamentoDeEscritório[],MATCH(INDEX(VariaçõesDoEscritório[],ROW()-ROW(VariaçõesDoEscritório[[#Headers],[Out]]),1),INDEX(PlanejamentoDeEscritório[],,1),0),MATCH(VariaçõesDoEscritório[[#Headers],[Out]],PlanejamentoDeEscritório[#Headers],0))-INDEX(EscritórioReal[],MATCH(INDEX(VariaçõesDoEscritório[],ROW()-ROW(VariaçõesDoEscritório[[#Headers],[Out]]),1),INDEX(EscritórioReal[],,1),0),MATCH(VariaçõesDoEscritório[[#Headers],[Out]],EscritórioReal[#Headers],0))","v":{"v":40,"d":"R$ 40.00"}},{"$f":"INDEX(PlanejamentoDeEscritório[],MATCH(INDEX(VariaçõesDoEscritório[],ROW()-ROW(VariaçõesDoEscritório[[#Headers],[Nov]]),1),INDEX(PlanejamentoDeEscritório[],,1),0),MATCH(VariaçõesDoEscritório[[#Headers],[Nov]],PlanejamentoDeEscritório[#Headers],0))-INDEX(EscritórioReal[],MATCH(INDEX(VariaçõesDoEscritório[],ROW()-ROW(VariaçõesDoEscritório[[#Headers],[Nov]]),1),INDEX(EscritórioReal[],,1),0),MATCH(VariaçõesDoEscritório[[#Headers],[Nov]],EscritórioReal[#Headers],0))","v":{"v":40,"d":"R$ 40.00"}},{"$f":"INDEX(PlanejamentoDeEscritório[],MATCH(INDEX(VariaçõesDoEscritório[],ROW()-ROW(VariaçõesDoEscritório[[#Headers],[Dez]]),1),INDEX(PlanejamentoDeEscritório[],,1),0),MATCH(VariaçõesDoEscritório[[#Headers],[Dez]],PlanejamentoDeEscritório[#Headers],0))-INDEX(EscritórioReal[],MATCH(INDEX(VariaçõesDoEscritório[],ROW()-ROW(VariaçõesDoEscritório[[#Headers],[Dez]]),1),INDEX(EscritórioReal[],,1),0),MATCH(VariaçõesDoEscritório[[#Headers],[Dez]],EscritórioReal[#Headers],0))","v":{"v":40,"d":"R$ 40.00"}},{"$f":"SUM(VariaçõesDoEscritório[[#This Row],[Jan]:[Dez]])","v":{"v":272,"d":"R$ 272.00"}}]
[null,"Telefone",{"$f":"INDEX(PlanejamentoDeEscritório[],MATCH(INDEX(VariaçõesDoEscritório[],ROW()-ROW(VariaçõesDoEscritório[[#Headers],[Jan]]),1),INDEX(PlanejamentoDeEscritório[],,1),0),MATCH(VariaçõesDoEscritório[[#Headers],[Jan]],PlanejamentoDeEscritório[#Headers],0))-INDEX(EscritórioReal[],MATCH(INDEX(VariaçõesDoEscritório[],ROW()-ROW(VariaçõesDoEscritório[[#Headers],[Jan]]),1),INDEX(EscritórioReal[],,1),0),MATCH(VariaçõesDoEscritório[[#Headers],[Jan]],EscritórioReal[#Headers],0))","v":{"v":26,"d":"R$ 26.00"}},{"$f":"INDEX(PlanejamentoDeEscritório[],MATCH(INDEX(VariaçõesDoEscritório[],ROW()-ROW(VariaçõesDoEscritório[[#Headers],[Fev]]),1),INDEX(PlanejamentoDeEscritório[],,1),0),MATCH(VariaçõesDoEscritório[[#Headers],[Fev]],PlanejamentoDeEscritório[#Headers],0))-INDEX(EscritórioReal[],MATCH(INDEX(VariaçõesDoEscritório[],ROW()-ROW(VariaçõesDoEscritório[[#Headers],[Fev]]),1),INDEX(EscritórioReal[],,1),0),MATCH(VariaçõesDoEscritório[[#Headers],[Fev]],EscritórioReal[#Headers],0))","v":{"v":15,"d":"R$ 15.00"}},{"$f":"INDEX(PlanejamentoDeEscritório[],MATCH(INDEX(VariaçõesDoEscritório[],ROW()-ROW(VariaçõesDoEscritório[[#Headers],[Mar]]),1),INDEX(PlanejamentoDeEscritório[],,1),0),MATCH(VariaçõesDoEscritório[[#Headers],[Mar]],PlanejamentoDeEscritório[#Headers],0))-INDEX(EscritórioReal[],MATCH(INDEX(VariaçõesDoEscritório[],ROW()-ROW(VariaçõesDoEscritório[[#Headers],[Mar]]),1),INDEX(EscritórioReal[],,1),0),MATCH(VariaçõesDoEscritório[[#Headers],[Mar]],EscritórioReal[#Headers],0))","v":{"v":-15,"d":"-R$ 15.00"}},{"$f":"INDEX(PlanejamentoDeEscritório[],MATCH(INDEX(VariaçõesDoEscritório[],ROW()-ROW(VariaçõesDoEscritório[[#Headers],[Abr]]),1),INDEX(PlanejamentoDeEscritório[],,1),0),MATCH(VariaçõesDoEscritório[[#Headers],[Abr]],PlanejamentoDeEscritório[#Headers],0))-INDEX(EscritórioReal[],MATCH(INDEX(VariaçõesDoEscritório[],ROW()-ROW(VariaçõesDoEscritório[[#Headers],[Abr]]),1),INDEX(EscritórioReal[],,1),0),MATCH(VariaçõesDoEscritório[[#Headers],[Abr]],EscritórioReal[#Headers],0))","v":{"v":5,"d":"R$ 5.00"}},{"$f":"INDEX(PlanejamentoDeEscritório[],MATCH(INDEX(VariaçõesDoEscritório[],ROW()-ROW(VariaçõesDoEscritório[[#Headers],[Maio]]),1),INDEX(PlanejamentoDeEscritório[],,1),0),MATCH(VariaçõesDoEscritório[[#Headers],[Maio]],PlanejamentoDeEscritório[#Headers],0))-INDEX(EscritórioReal[],MATCH(INDEX(VariaçõesDoEscritório[],ROW()-ROW(VariaçõesDoEscritório[[#Headers],[Maio]]),1),INDEX(EscritórioReal[],,1),0),MATCH(VariaçõesDoEscritório[[#Headers],[Maio]],EscritórioReal[#Headers],0))","v":{"v":5,"d":"R$ 5.00"}},{"$f":"INDEX(PlanejamentoDeEscritório[],MATCH(INDEX(VariaçõesDoEscritório[],ROW()-ROW(VariaçõesDoEscritório[[#Headers],[Jun]]),1),INDEX(PlanejamentoDeEscritório[],,1),0),MATCH(VariaçõesDoEscritório[[#Headers],[Jun]],PlanejamentoDeEscritório[#Headers],0))-INDEX(EscritórioReal[],MATCH(INDEX(VariaçõesDoEscritório[],ROW()-ROW(VariaçõesDoEscritório[[#Headers],[Jun]]),1),INDEX(EscritórioReal[],,1),0),MATCH(VariaçõesDoEscritório[[#Headers],[Jun]],EscritórioReal[#Headers],0))","v":{"v":30,"d":"R$ 30.00"}},{"$f":"INDEX(PlanejamentoDeEscritório[],MATCH(INDEX(VariaçõesDoEscritório[],ROW()-ROW(VariaçõesDoEscritório[[#Headers],[Jul]]),1),INDEX(PlanejamentoDeEscritório[],,1),0),MATCH(VariaçõesDoEscritório[[#Headers],[Jul]],PlanejamentoDeEscritório[#Headers],0))-INDEX(EscritórioReal[],MATCH(INDEX(VariaçõesDoEscritório[],ROW()-ROW(VariaçõesDoEscritório[[#Headers],[Jul]]),1),INDEX(EscritórioReal[],,1),0),MATCH(VariaçõesDoEscritório[[#Headers],[Jul]],EscritórioReal[#Headers],0))","v":{"v":250,"d":"R$ 250.00"}},{"$f":"INDEX(PlanejamentoDeEscritório[],MATCH(INDEX(VariaçõesDoEscritório[],ROW()-ROW(VariaçõesDoEscritório[[#Headers],[Ago]]),1),INDEX(PlanejamentoDeEscritório[],,1),0),MATCH(VariaçõesDoEscritório[[#Headers],[Ago]],PlanejamentoDeEscritório[#Headers],0))-INDEX(EscritórioReal[],MATCH(INDEX(VariaçõesDoEscritório[],ROW()-ROW(VariaçõesDoEscritório[[#Headers],[Ago]]),1),INDEX(EscritórioReal[],,1),0),MATCH(VariaçõesDoEscritório[[#Headers],[Ago]],EscritórioReal[#Headers],0))","v":{"v":250,"d":"R$ 250.00"}},{"$f":"INDEX(PlanejamentoDeEscritório[],MATCH(INDEX(VariaçõesDoEscritório[],ROW()-ROW(VariaçõesDoEscritório[[#Headers],[Set]]),1),INDEX(PlanejamentoDeEscritório[],,1),0),MATCH(VariaçõesDoEscritório[[#Headers],[Set]],PlanejamentoDeEscritório[#Headers],0))-INDEX(EscritórioReal[],MATCH(INDEX(VariaçõesDoEscritório[],ROW()-ROW(VariaçõesDoEscritório[[#Headers],[Set]]),1),INDEX(EscritórioReal[],,1),0),MATCH(VariaçõesDoEscritório[[#Headers],[Set]],EscritórioReal[#Headers],0))","v":{"v":250,"d":"R$ 250.00"}},{"$f":"INDEX(PlanejamentoDeEscritório[],MATCH(INDEX(VariaçõesDoEscritório[],ROW()-ROW(VariaçõesDoEscritório[[#Headers],[Out]]),1),INDEX(PlanejamentoDeEscritório[],,1),0),MATCH(VariaçõesDoEscritório[[#Headers],[Out]],PlanejamentoDeEscritório[#Headers],0))-INDEX(EscritórioReal[],MATCH(INDEX(VariaçõesDoEscritório[],ROW()-ROW(VariaçõesDoEscritório[[#Headers],[Out]]),1),INDEX(EscritórioReal[],,1),0),MATCH(VariaçõesDoEscritório[[#Headers],[Out]],EscritórioReal[#Headers],0))","v":{"v":250,"d":"R$ 250.00"}},{"$f":"INDEX(PlanejamentoDeEscritório[],MATCH(INDEX(VariaçõesDoEscritório[],ROW()-ROW(VariaçõesDoEscritório[[#Headers],[Nov]]),1),INDEX(PlanejamentoDeEscritório[],,1),0),MATCH(VariaçõesDoEscritório[[#Headers],[Nov]],PlanejamentoDeEscritório[#Headers],0))-INDEX(EscritórioReal[],MATCH(INDEX(VariaçõesDoEscritório[],ROW()-ROW(VariaçõesDoEscritório[[#Headers],[Nov]]),1),INDEX(EscritórioReal[],,1),0),MATCH(VariaçõesDoEscritório[[#Headers],[Nov]],EscritórioReal[#Headers],0))","v":{"v":250,"d":"R$ 250.00"}},{"$f":"INDEX(PlanejamentoDeEscritório[],MATCH(INDEX(VariaçõesDoEscritório[],ROW()-ROW(VariaçõesDoEscritório[[#Headers],[Dez]]),1),INDEX(PlanejamentoDeEscritório[],,1),0),MATCH(VariaçõesDoEscritório[[#Headers],[Dez]],PlanejamentoDeEscritório[#Headers],0))-INDEX(EscritórioReal[],MATCH(INDEX(VariaçõesDoEscritório[],ROW()-ROW(VariaçõesDoEscritório[[#Headers],[Dez]]),1),INDEX(EscritórioReal[],,1),0),MATCH(VariaçõesDoEscritório[[#Headers],[Dez]],EscritórioReal[#Headers],0))","v":{"v":250,"d":"R$ 250.00"}},{"$f":"SUM(VariaçõesDoEscritório[[#This Row],[Jan]:[Dez]])","v":{"v":1566,"d":"R$ 1,566.00"}}]
[null,"Acesso à Internet",{"$f":"INDEX(PlanejamentoDeEscritório[],MATCH(INDEX(VariaçõesDoEscritório[],ROW()-ROW(VariaçõesDoEscritório[[#Headers],[Jan]]),1),INDEX(PlanejamentoDeEscritório[],,1),0),MATCH(VariaçõesDoEscritório[[#Headers],[Jan]],PlanejamentoDeEscritório[#Headers],0))-INDEX(EscritórioReal[],MATCH(INDEX(VariaçõesDoEscritório[],ROW()-ROW(VariaçõesDoEscritório[[#Headers],[Jan]]),1),INDEX(EscritórioReal[],,1),0),MATCH(VariaçõesDoEscritório[[#Headers],[Jan]],EscritórioReal[#Headers],0))","v":{"v":0,"d":"R$ 0.00"}},{"$f":"INDEX(PlanejamentoDeEscritório[],MATCH(INDEX(VariaçõesDoEscritório[],ROW()-ROW(VariaçõesDoEscritório[[#Headers],[Fev]]),1),INDEX(PlanejamentoDeEscritório[],,1),0),MATCH(VariaçõesDoEscritório[[#Headers],[Fev]],PlanejamentoDeEscritório[#Headers],0))-INDEX(EscritórioReal[],MATCH(INDEX(VariaçõesDoEscritório[],ROW()-ROW(VariaçõesDoEscritório[[#Headers],[Fev]]),1),INDEX(EscritórioReal[],,1),0),MATCH(VariaçõesDoEscritório[[#Headers],[Fev]],EscritórioReal[#Headers],0))","v":{"v":0,"d":"R$ 0.00"}},{"$f":"INDEX(PlanejamentoDeEscritório[],MATCH(INDEX(VariaçõesDoEscritório[],ROW()-ROW(VariaçõesDoEscritório[[#Headers],[Mar]]),1),INDEX(PlanejamentoDeEscritório[],,1),0),MATCH(VariaçõesDoEscritório[[#Headers],[Mar]],PlanejamentoDeEscritório[#Headers],0))-INDEX(EscritórioReal[],MATCH(INDEX(VariaçõesDoEscritório[],ROW()-ROW(VariaçõesDoEscritório[[#Headers],[Mar]]),1),INDEX(EscritórioReal[],,1),0),MATCH(VariaçõesDoEscritório[[#Headers],[Mar]],EscritórioReal[#Headers],0))","v":{"v":0,"d":"R$ 0.00"}},{"$f":"INDEX(PlanejamentoDeEscritório[],MATCH(INDEX(VariaçõesDoEscritório[],ROW()-ROW(VariaçõesDoEscritório[[#Headers],[Abr]]),1),INDEX(PlanejamentoDeEscritório[],,1),0),MATCH(VariaçõesDoEscritório[[#Headers],[Abr]],PlanejamentoDeEscritório[#Headers],0))-INDEX(EscritórioReal[],MATCH(INDEX(VariaçõesDoEscritório[],ROW()-ROW(VariaçõesDoEscritório[[#Headers],[Abr]]),1),INDEX(EscritórioReal[],,1),0),MATCH(VariaçõesDoEscritório[[#Headers],[Abr]],EscritórioReal[#Headers],0))","v":{"v":0,"d":"R$ 0.00"}},{"$f":"INDEX(PlanejamentoDeEscritório[],MATCH(INDEX(VariaçõesDoEscritório[],ROW()-ROW(VariaçõesDoEscritório[[#Headers],[Maio]]),1),INDEX(PlanejamentoDeEscritório[],,1),0),MATCH(VariaçõesDoEscritório[[#Headers],[Maio]],PlanejamentoDeEscritório[#Headers],0))-INDEX(EscritórioReal[],MATCH(INDEX(VariaçõesDoEscritório[],ROW()-ROW(VariaçõesDoEscritório[[#Headers],[Maio]]),1),INDEX(EscritórioReal[],,1),0),MATCH(VariaçõesDoEscritório[[#Headers],[Maio]],EscritórioReal[#Headers],0))","v":{"v":0,"d":"R$ 0.00"}},{"$f":"INDEX(PlanejamentoDeEscritório[],MATCH(INDEX(VariaçõesDoEscritório[],ROW()-ROW(VariaçõesDoEscritório[[#Headers],[Jun]]),1),INDEX(PlanejamentoDeEscritório[],,1),0),MATCH(VariaçõesDoEscritório[[#Headers],[Jun]],PlanejamentoDeEscritório[#Headers],0))-INDEX(EscritórioReal[],MATCH(INDEX(VariaçõesDoEscritório[],ROW()-ROW(VariaçõesDoEscritório[[#Headers],[Jun]]),1),INDEX(EscritórioReal[],,1),0),MATCH(VariaçõesDoEscritório[[#Headers],[Jun]],EscritórioReal[#Headers],0))","v":{"v":0,"d":"R$ 0.00"}},{"$f":"INDEX(PlanejamentoDeEscritório[],MATCH(INDEX(VariaçõesDoEscritório[],ROW()-ROW(VariaçõesDoEscritório[[#Headers],[Jul]]),1),INDEX(PlanejamentoDeEscritório[],,1),0),MATCH(VariaçõesDoEscritório[[#Headers],[Jul]],PlanejamentoDeEscritório[#Headers],0))-INDEX(EscritórioReal[],MATCH(INDEX(VariaçõesDoEscritório[],ROW()-ROW(VariaçõesDoEscritório[[#Headers],[Jul]]),1),INDEX(EscritórioReal[],,1),0),MATCH(VariaçõesDoEscritório[[#Headers],[Jul]],EscritórioReal[#Headers],0))","v":{"v":180,"d":"R$ 180.00"}},{"$f":"INDEX(PlanejamentoDeEscritório[],MATCH(INDEX(VariaçõesDoEscritório[],ROW()-ROW(VariaçõesDoEscritório[[#Headers],[Ago]]),1),INDEX(PlanejamentoDeEscritório[],,1),0),MATCH(VariaçõesDoEscritório[[#Headers],[Ago]],PlanejamentoDeEscritório[#Headers],0))-INDEX(EscritórioReal[],MATCH(INDEX(VariaçõesDoEscritório[],ROW()-ROW(VariaçõesDoEscritório[[#Headers],[Ago]]),1),INDEX(EscritórioReal[],,1),0),MATCH(VariaçõesDoEscritório[[#Headers],[Ago]],EscritórioReal[#Headers],0))","v":{"v":180,"d":"R$ 180.00"}},{"$f":"INDEX(PlanejamentoDeEscritório[],MATCH(INDEX(VariaçõesDoEscritório[],ROW()-ROW(VariaçõesDoEscritório[[#Headers],[Set]]),1),INDEX(PlanejamentoDeEscritório[],,1),0),MATCH(VariaçõesDoEscritório[[#Headers],[Set]],PlanejamentoDeEscritório[#Headers],0))-INDEX(EscritórioReal[],MATCH(INDEX(VariaçõesDoEscritório[],ROW()-ROW(VariaçõesDoEscritório[[#Headers],[Set]]),1),INDEX(EscritórioReal[],,1),0),MATCH(VariaçõesDoEscritório[[#Headers],[Set]],EscritórioReal[#Headers],0))","v":{"v":180,"d":"R$ 180.00"}},{"$f":"INDEX(PlanejamentoDeEscritório[],MATCH(INDEX(VariaçõesDoEscritório[],ROW()-ROW(VariaçõesDoEscritório[[#Headers],[Out]]),1),INDEX(PlanejamentoDeEscritório[],,1),0),MATCH(VariaçõesDoEscritório[[#Headers],[Out]],PlanejamentoDeEscritório[#Headers],0))-INDEX(EscritórioReal[],MATCH(INDEX(VariaçõesDoEscritório[],ROW()-ROW(VariaçõesDoEscritório[[#Headers],[Out]]),1),INDEX(EscritórioReal[],,1),0),MATCH(VariaçõesDoEscritório[[#Headers],[Out]],EscritórioReal[#Headers],0))","v":{"v":180,"d":"R$ 180.00"}},{"$f":"INDEX(PlanejamentoDeEscritório[],MATCH(INDEX(VariaçõesDoEscritório[],ROW()-ROW(VariaçõesDoEscritório[[#Headers],[Nov]]),1),INDEX(PlanejamentoDeEscritório[],,1),0),MATCH(VariaçõesDoEscritório[[#Headers],[Nov]],PlanejamentoDeEscritório[#Headers],0))-INDEX(EscritórioReal[],MATCH(INDEX(VariaçõesDoEscritório[],ROW()-ROW(VariaçõesDoEscritório[[#Headers],[Nov]]),1),INDEX(EscritórioReal[],,1),0),MATCH(VariaçõesDoEscritório[[#Headers],[Nov]],EscritórioReal[#Headers],0))","v":{"v":180,"d":"R$ 180.00"}},{"$f":"INDEX(PlanejamentoDeEscritório[],MATCH(INDEX(VariaçõesDoEscritório[],ROW()-ROW(VariaçõesDoEscritório[[#Headers],[Dez]]),1),INDEX(PlanejamentoDeEscritório[],,1),0),MATCH(VariaçõesDoEscritório[[#Headers],[Dez]],PlanejamentoDeEscritório[#Headers],0))-INDEX(EscritórioReal[],MATCH(INDEX(VariaçõesDoEscritório[],ROW()-ROW(VariaçõesDoEscritório[[#Headers],[Dez]]),1),INDEX(EscritórioReal[],,1),0),MATCH(VariaçõesDoEscritório[[#Headers],[Dez]],EscritórioReal[#Headers],0))","v":{"v":180,"d":"R$ 180.00"}},{"$f":"SUM(VariaçõesDoEscritório[[#This Row],[Jan]:[Dez]])","v":{"v":1080,"d":"R$ 1,080.00"}}]
[null,"Material de escritório",{"$f":"INDEX(PlanejamentoDeEscritório[],MATCH(INDEX(VariaçõesDoEscritório[],ROW()-ROW(VariaçõesDoEscritório[[#Headers],[Jan]]),1),INDEX(PlanejamentoDeEscritório[],,1),0),MATCH(VariaçõesDoEscritório[[#Headers],[Jan]],PlanejamentoDeEscritório[#Headers],0))-INDEX(EscritórioReal[],MATCH(INDEX(VariaçõesDoEscritório[],ROW()-ROW(VariaçõesDoEscritório[[#Headers],[Jan]]),1),INDEX(EscritórioReal[],,1),0),MATCH(VariaçõesDoEscritório[[#Headers],[Jan]],EscritórioReal[#Headers],0))","v":{"v":-56,"d":"-R$ 56.00"}},{"$f":"INDEX(PlanejamentoDeEscritório[],MATCH(INDEX(VariaçõesDoEscritório[],ROW()-ROW(VariaçõesDoEscritório[[#Headers],[Fev]]),1),INDEX(PlanejamentoDeEscritório[],,1),0),MATCH(VariaçõesDoEscritório[[#Headers],[Fev]],PlanejamentoDeEscritório[#Headers],0))-INDEX(EscritórioReal[],MATCH(INDEX(VariaçõesDoEscritório[],ROW()-ROW(VariaçõesDoEscritório[[#Headers],[Fev]]),1),INDEX(EscritórioReal[],,1),0),MATCH(VariaçõesDoEscritório[[#Headers],[Fev]],EscritórioReal[#Headers],0))","v":{"v":58,"d":"R$ 58.00"}},{"$f":"INDEX(PlanejamentoDeEscritório[],MATCH(INDEX(VariaçõesDoEscritório[],ROW()-ROW(VariaçõesDoEscritório[[#Headers],[Mar]]),1),INDEX(PlanejamentoDeEscritório[],,1),0),MATCH(VariaçõesDoEscritório[[#Headers],[Mar]],PlanejamentoDeEscritório[#Headers],0))-INDEX(EscritórioReal[],MATCH(INDEX(VariaçõesDoEscritório[],ROW()-ROW(VariaçõesDoEscritório[[#Headers],[Mar]]),1),INDEX(EscritórioReal[],,1),0),MATCH(VariaçõesDoEscritório[[#Headers],[Mar]],EscritórioReal[#Headers],0))","v":{"v":40,"d":"R$ 40.00"}},{"$f":"INDEX(PlanejamentoDeEscritório[],MATCH(INDEX(VariaçõesDoEscritório[],ROW()-ROW(VariaçõesDoEscritório[[#Headers],[Abr]]),1),INDEX(PlanejamentoDeEscritório[],,1),0),MATCH(VariaçõesDoEscritório[[#Headers],[Abr]],PlanejamentoDeEscritório[#Headers],0))-INDEX(EscritórioReal[],MATCH(INDEX(VariaçõesDoEscritório[],ROW()-ROW(VariaçõesDoEscritório[[#Headers],[Abr]]),1),INDEX(EscritórioReal[],,1),0),MATCH(VariaçõesDoEscritório[[#Headers],[Abr]],EscritórioReal[#Headers],0))","v":{"v":-21,"d":"-R$ 21.00"}},{"$f":"INDEX(PlanejamentoDeEscritório[],MATCH(INDEX(VariaçõesDoEscritório[],ROW()-ROW(VariaçõesDoEscritório[[#Headers],[Maio]]),1),INDEX(PlanejamentoDeEscritório[],,1),0),MATCH(VariaçõesDoEscritório[[#Headers],[Maio]],PlanejamentoDeEscritório[#Headers],0))-INDEX(EscritórioReal[],MATCH(INDEX(VariaçõesDoEscritório[],ROW()-ROW(VariaçõesDoEscritório[[#Headers],[Maio]]),1),INDEX(EscritórioReal[],,1),0),MATCH(VariaçõesDoEscritório[[#Headers],[Maio]],EscritórioReal[#Headers],0))","v":{"v":-56,"d":"-R$ 56.00"}},{"$f":"INDEX(PlanejamentoDeEscritório[],MATCH(INDEX(VariaçõesDoEscritório[],ROW()-ROW(VariaçõesDoEscritório[[#Headers],[Jun]]),1),INDEX(PlanejamentoDeEscritório[],,1),0),MATCH(VariaçõesDoEscritório[[#Headers],[Jun]],PlanejamentoDeEscritório[#Headers],0))-INDEX(EscritórioReal[],MATCH(INDEX(VariaçõesDoEscritório[],ROW()-ROW(VariaçõesDoEscritório[[#Headers],[Jun]]),1),INDEX(EscritórioReal[],,1),0),MATCH(VariaçõesDoEscritório[[#Headers],[Jun]],EscritórioReal[#Headers],0))","v":{"v":-40,"d":"-R$ 40.00"}},{"$f":"INDEX(PlanejamentoDeEscritório[],MATCH(INDEX(VariaçõesDoEscritório[],ROW()-ROW(VariaçõesDoEscritório[[#Headers],[Jul]]),1),INDEX(PlanejamentoDeEscritório[],,1),0),MATCH(VariaçõesDoEscritório[[#Headers],[Jul]],PlanejamentoDeEscritório[#Headers],0))-INDEX(EscritórioReal[],MATCH(INDEX(VariaçõesDoEscritório[],ROW()-ROW(VariaçõesDoEscritório[[#Headers],[Jul]]),1),INDEX(EscritórioReal[],,1),0),MATCH(VariaçõesDoEscritório[[#Headers],[Jul]],EscritórioReal[#Headers],0))","v":{"v":200,"d":"R$ 200.00"}},{"$f":"INDEX(PlanejamentoDeEscritório[],MATCH(INDEX(VariaçõesDoEscritório[],ROW()-ROW(VariaçõesDoEscritório[[#Headers],[Ago]]),1),INDEX(PlanejamentoDeEscritório[],,1),0),MATCH(VariaçõesDoEscritório[[#Headers],[Ago]],PlanejamentoDeEscritório[#Headers],0))-INDEX(EscritórioReal[],MATCH(INDEX(VariaçõesDoEscritório[],ROW()-ROW(VariaçõesDoEscritório[[#Headers],[Ago]]),1),INDEX(EscritórioReal[],,1),0),MATCH(VariaçõesDoEscritório[[#Headers],[Ago]],EscritórioReal[#Headers],0))","v":{"v":200,"d":"R$ 200.00"}},{"$f":"INDEX(PlanejamentoDeEscritório[],MATCH(INDEX(VariaçõesDoEscritório[],ROW()-ROW(VariaçõesDoEscritório[[#Headers],[Set]]),1),INDEX(PlanejamentoDeEscritório[],,1),0),MATCH(VariaçõesDoEscritório[[#Headers],[Set]],PlanejamentoDeEscritório[#Headers],0))-INDEX(EscritórioReal[],MATCH(INDEX(VariaçõesDoEscritório[],ROW()-ROW(VariaçõesDoEscritório[[#Headers],[Set]]),1),INDEX(EscritórioReal[],,1),0),MATCH(VariaçõesDoEscritório[[#Headers],[Set]],EscritórioReal[#Headers],0))","v":{"v":200,"d":"R$ 200.00"}},{"$f":"INDEX(PlanejamentoDeEscritório[],MATCH(INDEX(VariaçõesDoEscritório[],ROW()-ROW(VariaçõesDoEscritório[[#Headers],[Out]]),1),INDEX(PlanejamentoDeEscritório[],,1),0),MATCH(VariaçõesDoEscritório[[#Headers],[Out]],PlanejamentoDeEscritório[#Headers],0))-INDEX(EscritórioReal[],MATCH(INDEX(VariaçõesDoEscritório[],ROW()-ROW(VariaçõesDoEscritório[[#Headers],[Out]]),1),INDEX(EscritórioReal[],,1),0),MATCH(VariaçõesDoEscritório[[#Headers],[Out]],EscritórioReal[#Headers],0))","v":{"v":200,"d":"R$ 200.00"}},{"$f":"INDEX(PlanejamentoDeEscritório[],MATCH(INDEX(VariaçõesDoEscritório[],ROW()-ROW(VariaçõesDoEscritório[[#Headers],[Nov]]),1),INDEX(PlanejamentoDeEscritório[],,1),0),MATCH(VariaçõesDoEscritório[[#Headers],[Nov]],PlanejamentoDeEscritório[#Headers],0))-INDEX(EscritórioReal[],MATCH(INDEX(VariaçõesDoEscritório[],ROW()-ROW(VariaçõesDoEscritório[[#Headers],[Nov]]),1),INDEX(EscritórioReal[],,1),0),MATCH(VariaçõesDoEscritório[[#Headers],[Nov]],EscritórioReal[#Headers],0))","v":{"v":200,"d":"R$ 200.00"}},{"$f":"INDEX(PlanejamentoDeEscritório[],MATCH(INDEX(VariaçõesDoEscritório[],ROW()-ROW(VariaçõesDoEscritório[[#Headers],[Dez]]),1),INDEX(PlanejamentoDeEscritório[],,1),0),MATCH(VariaçõesDoEscritório[[#Headers],[Dez]],PlanejamentoDeEscritório[#Headers],0))-INDEX(EscritórioReal[],MATCH(INDEX(VariaçõesDoEscritório[],ROW()-ROW(VariaçõesDoEscritório[[#Headers],[Dez]]),1),INDEX(EscritórioReal[],,1),0),MATCH(VariaçõesDoEscritório[[#Headers],[Dez]],EscritórioReal[#Headers],0))","v":{"v":200,"d":"R$ 200.00"}},{"$f":"SUM(VariaçõesDoEscritório[[#This Row],[Jan]:[Dez]])","v":{"v":1125,"d":"R$ 1,125.00"}}]
[null,"Segurança",{"$f":"INDEX(PlanejamentoDeEscritório[],MATCH(INDEX(VariaçõesDoEscritório[],ROW()-ROW(VariaçõesDoEscritório[[#Headers],[Jan]]),1),INDEX(PlanejamentoDeEscritório[],,1),0),MATCH(VariaçõesDoEscritório[[#Headers],[Jan]],PlanejamentoDeEscritório[#Headers],0))-INDEX(EscritórioReal[],MATCH(INDEX(VariaçõesDoEscritório[],ROW()-ROW(VariaçõesDoEscritório[[#Headers],[Jan]]),1),INDEX(EscritórioReal[],,1),0),MATCH(VariaçõesDoEscritório[[#Headers],[Jan]],EscritórioReal[#Headers],0))","v":{"v":0,"d":"R$ 0.00"}},{"$f":"INDEX(PlanejamentoDeEscritório[],MATCH(INDEX(VariaçõesDoEscritório[],ROW()-ROW(VariaçõesDoEscritório[[#Headers],[Fev]]),1),INDEX(PlanejamentoDeEscritório[],,1),0),MATCH(VariaçõesDoEscritório[[#Headers],[Fev]],PlanejamentoDeEscritório[#Headers],0))-INDEX(EscritórioReal[],MATCH(INDEX(VariaçõesDoEscritório[],ROW()-ROW(VariaçõesDoEscritório[[#Headers],[Fev]]),1),INDEX(EscritórioReal[],,1),0),MATCH(VariaçõesDoEscritório[[#Headers],[Fev]],EscritórioReal[#Headers],0))","v":{"v":0,"d":"R$ 0.00"}},{"$f":"INDEX(PlanejamentoDeEscritório[],MATCH(INDEX(VariaçõesDoEscritório[],ROW()-ROW(VariaçõesDoEscritório[[#Headers],[Mar]]),1),INDEX(PlanejamentoDeEscritório[],,1),0),MATCH(VariaçõesDoEscritório[[#Headers],[Mar]],PlanejamentoDeEscritório[#Headers],0))-INDEX(EscritórioReal[],MATCH(INDEX(VariaçõesDoEscritório[],ROW()-ROW(VariaçõesDoEscritório[[#Headers],[Mar]]),1),INDEX(EscritórioReal[],,1),0),MATCH(VariaçõesDoEscritório[[#Headers],[Mar]],EscritórioReal[#Headers],0))","v":{"v":0,"d":"R$ 0.00"}},{"$f":"INDEX(PlanejamentoDeEscritório[],MATCH(INDEX(VariaçõesDoEscritório[],ROW()-ROW(VariaçõesDoEscritório[[#Headers],[Abr]]),1),INDEX(PlanejamentoDeEscritório[],,1),0),MATCH(VariaçõesDoEscritório[[#Headers],[Abr]],PlanejamentoDeEscritório[#Headers],0))-INDEX(EscritórioReal[],MATCH(INDEX(VariaçõesDoEscritório[],ROW()-ROW(VariaçõesDoEscritório[[#Headers],[Abr]]),1),INDEX(EscritórioReal[],,1),0),MATCH(VariaçõesDoEscritório[[#Headers],[Abr]],EscritórioReal[#Headers],0))","v":{"v":0,"d":"R$ 0.00"}},{"$f":"INDEX(PlanejamentoDeEscritório[],MATCH(INDEX(VariaçõesDoEscritório[],ROW()-ROW(VariaçõesDoEscritório[[#Headers],[Maio]]),1),INDEX(PlanejamentoDeEscritório[],,1),0),MATCH(VariaçõesDoEscritório[[#Headers],[Maio]],PlanejamentoDeEscritório[#Headers],0))-INDEX(EscritórioReal[],MATCH(INDEX(VariaçõesDoEscritório[],ROW()-ROW(VariaçõesDoEscritório[[#Headers],[Maio]]),1),INDEX(EscritórioReal[],,1),0),MATCH(VariaçõesDoEscritório[[#Headers],[Maio]],EscritórioReal[#Headers],0))","v":{"v":0,"d":"R$ 0.00"}},{"$f":"INDEX(PlanejamentoDeEscritório[],MATCH(INDEX(VariaçõesDoEscritório[],ROW()-ROW(VariaçõesDoEscritório[[#Headers],[Jun]]),1),INDEX(PlanejamentoDeEscritório[],,1),0),MATCH(VariaçõesDoEscritório[[#Headers],[Jun]],PlanejamentoDeEscritório[#Headers],0))-INDEX(EscritórioReal[],MATCH(INDEX(VariaçõesDoEscritório[],ROW()-ROW(VariaçõesDoEscritório[[#Headers],[Jun]]),1),INDEX(EscritórioReal[],,1),0),MATCH(VariaçõesDoEscritório[[#Headers],[Jun]],EscritórioReal[#Headers],0))","v":{"v":0,"d":"R$ 0.00"}},{"$f":"INDEX(PlanejamentoDeEscritório[],MATCH(INDEX(VariaçõesDoEscritório[],ROW()-ROW(VariaçõesDoEscritório[[#Headers],[Jul]]),1),INDEX(PlanejamentoDeEscritório[],,1),0),MATCH(VariaçõesDoEscritório[[#Headers],[Jul]],PlanejamentoDeEscritório[#Headers],0))-INDEX(EscritórioReal[],MATCH(INDEX(VariaçõesDoEscritório[],ROW()-ROW(VariaçõesDoEscritório[[#Headers],[Jul]]),1),INDEX(EscritórioReal[],,1),0),MATCH(VariaçõesDoEscritório[[#Headers],[Jul]],EscritórioReal[#Headers],0))","v":{"v":600,"d":"R$ 600.00"}},{"$f":"INDEX(PlanejamentoDeEscritório[],MATCH(INDEX(VariaçõesDoEscritório[],ROW()-ROW(VariaçõesDoEscritório[[#Headers],[Ago]]),1),INDEX(PlanejamentoDeEscritório[],,1),0),MATCH(VariaçõesDoEscritório[[#Headers],[Ago]],PlanejamentoDeEscritório[#Headers],0))-INDEX(EscritórioReal[],MATCH(INDEX(VariaçõesDoEscritório[],ROW()-ROW(VariaçõesDoEscritório[[#Headers],[Ago]]),1),INDEX(EscritórioReal[],,1),0),MATCH(VariaçõesDoEscritório[[#Headers],[Ago]],EscritórioReal[#Headers],0))","v":{"v":600,"d":"R$ 600.00"}},{"$f":"INDEX(PlanejamentoDeEscritório[],MATCH(INDEX(VariaçõesDoEscritório[],ROW()-ROW(VariaçõesDoEscritório[[#Headers],[Set]]),1),INDEX(PlanejamentoDeEscritório[],,1),0),MATCH(VariaçõesDoEscritório[[#Headers],[Set]],PlanejamentoDeEscritório[#Headers],0))-INDEX(EscritórioReal[],MATCH(INDEX(VariaçõesDoEscritório[],ROW()-ROW(VariaçõesDoEscritório[[#Headers],[Set]]),1),INDEX(EscritórioReal[],,1),0),MATCH(VariaçõesDoEscritório[[#Headers],[Set]],EscritórioReal[#Headers],0))","v":{"v":600,"d":"R$ 600.00"}},{"$f":"INDEX(PlanejamentoDeEscritório[],MATCH(INDEX(VariaçõesDoEscritório[],ROW()-ROW(VariaçõesDoEscritório[[#Headers],[Out]]),1),INDEX(PlanejamentoDeEscritório[],,1),0),MATCH(VariaçõesDoEscritório[[#Headers],[Out]],PlanejamentoDeEscritório[#Headers],0))-INDEX(EscritórioReal[],MATCH(INDEX(VariaçõesDoEscritório[],ROW()-ROW(VariaçõesDoEscritório[[#Headers],[Out]]),1),INDEX(EscritórioReal[],,1),0),MATCH(VariaçõesDoEscritório[[#Headers],[Out]],EscritórioReal[#Headers],0))","v":{"v":600,"d":"R$ 600.00"}},{"$f":"INDEX(PlanejamentoDeEscritório[],MATCH(INDEX(VariaçõesDoEscritório[],ROW()-ROW(VariaçõesDoEscritório[[#Headers],[Nov]]),1),INDEX(PlanejamentoDeEscritório[],,1),0),MATCH(VariaçõesDoEscritório[[#Headers],[Nov]],PlanejamentoDeEscritório[#Headers],0))-INDEX(EscritórioReal[],MATCH(INDEX(VariaçõesDoEscritório[],ROW()-ROW(VariaçõesDoEscritório[[#Headers],[Nov]]),1),INDEX(EscritórioReal[],,1),0),MATCH(VariaçõesDoEscritório[[#Headers],[Nov]],EscritórioReal[#Headers],0))","v":{"v":600,"d":"R$ 600.00"}},{"$f":"INDEX(PlanejamentoDeEscritório[],MATCH(INDEX(VariaçõesDoEscritório[],ROW()-ROW(VariaçõesDoEscritório[[#Headers],[Dez]]),1),INDEX(PlanejamentoDeEscritório[],,1),0),MATCH(VariaçõesDoEscritório[[#Headers],[Dez]],PlanejamentoDeEscritório[#Headers],0))-INDEX(EscritórioReal[],MATCH(INDEX(VariaçõesDoEscritório[],ROW()-ROW(VariaçõesDoEscritório[[#Headers],[Dez]]),1),INDEX(EscritórioReal[],,1),0),MATCH(VariaçõesDoEscritório[[#Headers],[Dez]],EscritórioReal[#Headers],0))","v":{"v":600,"d":"R$ 600.00"}},{"$f":"SUM(VariaçõesDoEscritório[[#This Row],[Jan]:[Dez]])","v":{"v":3600,"d":"R$ 3,600.00"}}]
[null,"Subtotal",{"$f":"SUBTOTAL(109,VariaçõesDoEscritório[Jan])","v":{"v":-17,"d":"-R$ 17.00"}},{"$f":"SUBTOTAL(109,VariaçõesDoEscritório[Fev])","v":{"v":72,"d":"R$ 72.00"}},{"$f":"SUBTOTAL(109,VariaçõesDoEscritório[Mar])","v":{"v":78,"d":"R$ 78.00"}},{"$f":"SUBTOTAL(109,VariaçõesDoEscritório[Abr])","v":{"v":-141,"d":"-R$ 141.00"}},{"$f":"SUBTOTAL(109,VariaçõesDoEscritório[Maio])","v":{"v":-38,"d":"-R$ 38.00"}},{"$f":"SUBTOTAL(109,VariaçõesDoEscritório[Jun])","v":{"v":16,"d":"R$ 16.00"}},{"$f":"SUBTOTAL(109,VariaçõesDoEscritório[Jul])","v":{"v":11470,"d":"R$ 11,470.00"}},{"$f":"SUBTOTAL(109,VariaçõesDoEscritório[Ago])","v":{"v":11470,"d":"R$ 11,470.00"}},{"$f":"SUBTOTAL(109,VariaçõesDoEscritório[Set])","v":{"v":11470,"d":"R$ 11,470.00"}},{"$f":"SUBTOTAL(109,VariaçõesDoEscritório[Out])","v":{"v":11470,"d":"R$ 11,470.00"}},{"$f":"SUBTOTAL(109,VariaçõesDoEscritório[Nov])","v":{"v":11770,"d":"R$ 11,770.00"}},{"$f":"SUBTOTAL(109,VariaçõesDoEscritório[Dez])","v":{"v":11770,"d":"R$ 11,770.00"}},{"$f":"SUBTOTAL(109,VariaçõesDoEscritório[ANO])","v":{"v":69390,"d":"R$ 69,390.00"}}]
[]
[null,"Custos de marketing","Jan","Fev","Mar","Abr","Maio","Jun","Jul","Ago","Set","Out","Nov","Dez","ANO"]
[null,"Hospedagem de site",{"$f":"INDEX(PlanejamentoDeMarketing[],MATCH(INDEX(VariaçõesDeMarketing[],ROW()-ROW(VariaçõesDeMarketing[[#Headers],[Jan]]),1),INDEX(PlanejamentoDeMarketing[],,1),0),MATCH(VariaçõesDeMarketing[[#Headers],[Jan]],PlanejamentoDeMarketing[#Headers],0))-INDEX(MarketingReal[],MATCH(INDEX(VariaçõesDeMarketing[],ROW()-ROW(VariaçõesDeMarketing[[#Headers],[Jan]]),1),INDEX(PlanejamentoDeMarketing[],,1),0),MATCH(VariaçõesDeMarketing[[#Headers],[Jan]],MarketingReal[#Headers],0))","v":{"v":0,"d":"R$ 0.00"}},{"$f":"INDEX(PlanejamentoDeMarketing[],MATCH(INDEX(VariaçõesDeMarketing[],ROW()-ROW(VariaçõesDeMarketing[[#Headers],[Fev]]),1),INDEX(PlanejamentoDeMarketing[],,1),0),MATCH(VariaçõesDeMarketing[[#Headers],[Fev]],PlanejamentoDeMarketing[#Headers],0))-INDEX(MarketingReal[],MATCH(INDEX(VariaçõesDeMarketing[],ROW()-ROW(VariaçõesDeMarketing[[#Headers],[Fev]]),1),INDEX(PlanejamentoDeMarketing[],,1),0),MATCH(VariaçõesDeMarketing[[#Headers],[Fev]],MarketingReal[#Headers],0))","v":{"v":0,"d":"R$ 0.00"}},{"$f":"INDEX(PlanejamentoDeMarketing[],MATCH(INDEX(VariaçõesDeMarketing[],ROW()-ROW(VariaçõesDeMarketing[[#Headers],[Mar]]),1),INDEX(PlanejamentoDeMarketing[],,1),0),MATCH(VariaçõesDeMarketing[[#Headers],[Mar]],PlanejamentoDeMarketing[#Headers],0))-INDEX(MarketingReal[],MATCH(INDEX(VariaçõesDeMarketing[],ROW()-ROW(VariaçõesDeMarketing[[#Headers],[Mar]]),1),INDEX(PlanejamentoDeMarketing[],,1),0),MATCH(VariaçõesDeMarketing[[#Headers],[Mar]],MarketingReal[#Headers],0))","v":{"v":0,"d":"R$ 0.00"}},{"$f":"INDEX(PlanejamentoDeMarketing[],MATCH(INDEX(VariaçõesDeMarketing[],ROW()-ROW(VariaçõesDeMarketing[[#Headers],[Abr]]),1),INDEX(PlanejamentoDeMarketing[],,1),0),MATCH(VariaçõesDeMarketing[[#Headers],[Abr]],PlanejamentoDeMarketing[#Headers],0))-INDEX(MarketingReal[],MATCH(INDEX(VariaçõesDeMarketing[],ROW()-ROW(VariaçõesDeMarketing[[#Headers],[Abr]]),1),INDEX(PlanejamentoDeMarketing[],,1),0),MATCH(VariaçõesDeMarketing[[#Headers],[Abr]],MarketingReal[#Headers],0))","v":{"v":0,"d":"R$ 0.00"}},{"$f":"INDEX(PlanejamentoDeMarketing[],MATCH(INDEX(VariaçõesDeMarketing[],ROW()-ROW(VariaçõesDeMarketing[[#Headers],[Maio]]),1),INDEX(PlanejamentoDeMarketing[],,1),0),MATCH(VariaçõesDeMarketing[[#Headers],[Maio]],PlanejamentoDeMarketing[#Headers],0))-INDEX(MarketingReal[],MATCH(INDEX(VariaçõesDeMarketing[],ROW()-ROW(VariaçõesDeMarketing[[#Headers],[Maio]]),1),INDEX(PlanejamentoDeMarketing[],,1),0),MATCH(VariaçõesDeMarketing[[#Headers],[Maio]],MarketingReal[#Headers],0))","v":{"v":0,"d":"R$ 0.00"}},{"$f":"INDEX(PlanejamentoDeMarketing[],MATCH(INDEX(VariaçõesDeMarketing[],ROW()-ROW(VariaçõesDeMarketing[[#Headers],[Jun]]),1),INDEX(PlanejamentoDeMarketing[],,1),0),MATCH(VariaçõesDeMarketing[[#Headers],[Jun]],PlanejamentoDeMarketing[#Headers],0))-INDEX(MarketingReal[],MATCH(INDEX(VariaçõesDeMarketing[],ROW()-ROW(VariaçõesDeMarketing[[#Headers],[Jun]]),1),INDEX(PlanejamentoDeMarketing[],,1),0),MATCH(VariaçõesDeMarketing[[#Headers],[Jun]],MarketingReal[#Headers],0))","v":{"v":0,"d":"R$ 0.00"}},{"$f":"INDEX(PlanejamentoDeMarketing[],MATCH(INDEX(VariaçõesDeMarketing[],ROW()-ROW(VariaçõesDeMarketing[[#Headers],[Jul]]),1),INDEX(PlanejamentoDeMarketing[],,1),0),MATCH(VariaçõesDeMarketing[[#Headers],[Jul]],PlanejamentoDeMarketing[#Headers],0))-INDEX(MarketingReal[],MATCH(INDEX(VariaçõesDeMarketing[],ROW()-ROW(VariaçõesDeMarketing[[#Headers],[Jul]]),1),INDEX(PlanejamentoDeMarketing[],,1),0),MATCH(VariaçõesDeMarketing[[#Headers],[Jul]],MarketingReal[#Headers],0))","v":{"v":500,"d":"R$ 500.00"}},{"$f":"INDEX(PlanejamentoDeMarketing[],MATCH(INDEX(VariaçõesDeMarketing[],ROW()-ROW(VariaçõesDeMarketing[[#Headers],[Ago]]),1),INDEX(PlanejamentoDeMarketing[],,1),0),MATCH(VariaçõesDeMarketing[[#Headers],[Ago]],PlanejamentoDeMarketing[#Headers],0))-INDEX(MarketingReal[],MATCH(INDEX(VariaçõesDeMarketing[],ROW()-ROW(VariaçõesDeMarketing[[#Headers],[Ago]]),1),INDEX(PlanejamentoDeMarketing[],,1),0),MATCH(VariaçõesDeMarketing[[#Headers],[Ago]],MarketingReal[#Headers],0))","v":{"v":500,"d":"R$ 500.00"}},{"$f":"INDEX(PlanejamentoDeMarketing[],MATCH(INDEX(VariaçõesDeMarketing[],ROW()-ROW(VariaçõesDeMarketing[[#Headers],[Set]]),1),INDEX(PlanejamentoDeMarketing[],,1),0),MATCH(VariaçõesDeMarketing[[#Headers],[Set]],PlanejamentoDeMarketing[#Headers],0))-INDEX(MarketingReal[],MATCH(INDEX(VariaçõesDeMarketing[],ROW()-ROW(VariaçõesDeMarketing[[#Headers],[Set]]),1),INDEX(PlanejamentoDeMarketing[],,1),0),MATCH(VariaçõesDeMarketing[[#Headers],[Set]],MarketingReal[#Headers],0))","v":{"v":500,"d":"R$ 500.00"}},{"$f":"INDEX(PlanejamentoDeMarketing[],MATCH(INDEX(VariaçõesDeMarketing[],ROW()-ROW(VariaçõesDeMarketing[[#Headers],[Out]]),1),INDEX(PlanejamentoDeMarketing[],,1),0),MATCH(VariaçõesDeMarketing[[#Headers],[Out]],PlanejamentoDeMarketing[#Headers],0))-INDEX(MarketingReal[],MATCH(INDEX(VariaçõesDeMarketing[],ROW()-ROW(VariaçõesDeMarketing[[#Headers],[Out]]),1),INDEX(PlanejamentoDeMarketing[],,1),0),MATCH(VariaçõesDeMarketing[[#Headers],[Out]],MarketingReal[#Headers],0))","v":{"v":500,"d":"R$ 500.00"}},{"$f":"INDEX(PlanejamentoDeMarketing[],MATCH(INDEX(VariaçõesDeMarketing[],ROW()-ROW(VariaçõesDeMarketing[[#Headers],[Nov]]),1),INDEX(PlanejamentoDeMarketing[],,1),0),MATCH(VariaçõesDeMarketing[[#Headers],[Nov]],PlanejamentoDeMarketing[#Headers],0))-INDEX(MarketingReal[],MATCH(INDEX(VariaçõesDeMarketing[],ROW()-ROW(VariaçõesDeMarketing[[#Headers],[Nov]]),1),INDEX(PlanejamentoDeMarketing[],,1),0),MATCH(VariaçõesDeMarketing[[#Headers],[Nov]],MarketingReal[#Headers],0))","v":{"v":500,"d":"R$ 500.00"}},{"$f":"INDEX(PlanejamentoDeMarketing[],MATCH(INDEX(VariaçõesDeMarketing[],ROW()-ROW(VariaçõesDeMarketing[[#Headers],[Dez]]),1),INDEX(PlanejamentoDeMarketing[],,1),0),MATCH(VariaçõesDeMarketing[[#Headers],[Dez]],PlanejamentoDeMarketing[#Headers],0))-INDEX(MarketingReal[],MATCH(INDEX(VariaçõesDeMarketing[],ROW()-ROW(VariaçõesDeMarketing[[#Headers],[Dez]]),1),INDEX(PlanejamentoDeMarketing[],,1),0),MATCH(VariaçõesDeMarketing[[#Headers],[Dez]],MarketingReal[#Headers],0))","v":{"v":500,"d":"R$ 500.00"}},{"$f":"SUM(VariaçõesDeMarketing[[#This Row],[Jan]:[Dez]])","v":{"v":3000,"d":"R$ 3,000.00"}}]
[null,"Atualizações do site",{"$f":"INDEX(PlanejamentoDeMarketing[],MATCH(INDEX(VariaçõesDeMarketing[],ROW()-ROW(VariaçõesDeMarketing[[#Headers],[Jan]]),1),INDEX(PlanejamentoDeMarketing[],,1),0),MATCH(VariaçõesDeMarketing[[#Headers],[Jan]],PlanejamentoDeMarketing[#Headers],0))-INDEX(MarketingReal[],MATCH(INDEX(VariaçõesDeMarketing[],ROW()-ROW(VariaçõesDeMarketing[[#Headers],[Jan]]),1),INDEX(PlanejamentoDeMarketing[],,1),0),MATCH(VariaçõesDeMarketing[[#Headers],[Jan]],MarketingReal[#Headers],0))","v":{"v":0,"d":"R$ 0.00"}},{"$f":"INDEX(PlanejamentoDeMarketing[],MATCH(INDEX(VariaçõesDeMarketing[],ROW()-ROW(VariaçõesDeMarketing[[#Headers],[Fev]]),1),INDEX(PlanejamentoDeMarketing[],,1),0),MATCH(VariaçõesDeMarketing[[#Headers],[Fev]],PlanejamentoDeMarketing[#Headers],0))-INDEX(MarketingReal[],MATCH(INDEX(VariaçõesDeMarketing[],ROW()-ROW(VariaçõesDeMarketing[[#Headers],[Fev]]),1),INDEX(PlanejamentoDeMarketing[],,1),0),MATCH(VariaçõesDeMarketing[[#Headers],[Fev]],MarketingReal[#Headers],0))","v":{"v":0,"d":"R$ 0.00"}},{"$f":"INDEX(PlanejamentoDeMarketing[],MATCH(INDEX(VariaçõesDeMarketing[],ROW()-ROW(VariaçõesDeMarketing[[#Headers],[Mar]]),1),INDEX(PlanejamentoDeMarketing[],,1),0),MATCH(VariaçõesDeMarketing[[#Headers],[Mar]],PlanejamentoDeMarketing[#Headers],0))-INDEX(MarketingReal[],MATCH(INDEX(VariaçõesDeMarketing[],ROW()-ROW(VariaçõesDeMarketing[[#Headers],[Mar]]),1),INDEX(PlanejamentoDeMarketing[],,1),0),MATCH(VariaçõesDeMarketing[[#Headers],[Mar]],MarketingReal[#Headers],0))","v":{"v":0,"d":"R$ 0.00"}},{"$f":"INDEX(PlanejamentoDeMarketing[],MATCH(INDEX(VariaçõesDeMarketing[],ROW()-ROW(VariaçõesDeMarketing[[#Headers],[Abr]]),1),INDEX(PlanejamentoDeMarketing[],,1),0),MATCH(VariaçõesDeMarketing[[#Headers],[Abr]],PlanejamentoDeMarketing[#Headers],0))-INDEX(MarketingReal[],MATCH(INDEX(VariaçõesDeMarketing[],ROW()-ROW(VariaçõesDeMarketing[[#Headers],[Abr]]),1),INDEX(PlanejamentoDeMarketing[],,1),0),MATCH(VariaçõesDeMarketing[[#Headers],[Abr]],MarketingReal[#Headers],0))","v":{"v":0,"d":"R$ 0.00"}},{"$f":"INDEX(PlanejamentoDeMarketing[],MATCH(INDEX(VariaçõesDeMarketing[],ROW()-ROW(VariaçõesDeMarketing[[#Headers],[Maio]]),1),INDEX(PlanejamentoDeMarketing[],,1),0),MATCH(VariaçõesDeMarketing[[#Headers],[Maio]],PlanejamentoDeMarketing[#Headers],0))-INDEX(MarketingReal[],MATCH(INDEX(VariaçõesDeMarketing[],ROW()-ROW(VariaçõesDeMarketing[[#Headers],[Maio]]),1),INDEX(PlanejamentoDeMarketing[],,1),0),MATCH(VariaçõesDeMarketing[[#Headers],[Maio]],MarketingReal[#Headers],0))","v":{"v":0,"d":"R$ 0.00"}},{"$f":"INDEX(PlanejamentoDeMarketing[],MATCH(INDEX(VariaçõesDeMarketing[],ROW()-ROW(VariaçõesDeMarketing[[#Headers],[Jun]]),1),INDEX(PlanejamentoDeMarketing[],,1),0),MATCH(VariaçõesDeMarketing[[#Headers],[Jun]],PlanejamentoDeMarketing[#Headers],0))-INDEX(MarketingReal[],MATCH(INDEX(VariaçõesDeMarketing[],ROW()-ROW(VariaçõesDeMarketing[[#Headers],[Jun]]),1),INDEX(PlanejamentoDeMarketing[],,1),0),MATCH(VariaçõesDeMarketing[[#Headers],[Jun]],MarketingReal[#Headers],0))","v":{"v":-500,"d":"-R$ 500.00"}},{"$f":"INDEX(PlanejamentoDeMarketing[],MATCH(INDEX(VariaçõesDeMarketing[],ROW()-ROW(VariaçõesDeMarketing[[#Headers],[Jul]]),1),INDEX(PlanejamentoDeMarketing[],,1),0),MATCH(VariaçõesDeMarketing[[#Headers],[Jul]],PlanejamentoDeMarketing[#Headers],0))-INDEX(MarketingReal[],MATCH(INDEX(VariaçõesDeMarketing[],ROW()-ROW(VariaçõesDeMarketing[[#Headers],[Jul]]),1),INDEX(PlanejamentoDeMarketing[],,1),0),MATCH(VariaçõesDeMarketing[[#Headers],[Jul]],MarketingReal[#Headers],0))","v":{"v":200,"d":"R$ 200.00"}},{"$f":"INDEX(PlanejamentoDeMarketing[],MATCH(INDEX(VariaçõesDeMarketing[],ROW()-ROW(VariaçõesDeMarketing[[#Headers],[Ago]]),1),INDEX(PlanejamentoDeMarketing[],,1),0),MATCH(VariaçõesDeMarketing[[#Headers],[Ago]],PlanejamentoDeMarketing[#Headers],0))-INDEX(MarketingReal[],MATCH(INDEX(VariaçõesDeMarketing[],ROW()-ROW(VariaçõesDeMarketing[[#Headers],[Ago]]),1),INDEX(PlanejamentoDeMarketing[],,1),0),MATCH(VariaçõesDeMarketing[[#Headers],[Ago]],MarketingReal[#Headers],0))","v":{"v":200,"d":"R$ 200.00"}},{"$f":"INDEX(PlanejamentoDeMarketing[],MATCH(INDEX(VariaçõesDeMarketing[],ROW()-ROW(VariaçõesDeMarketing[[#Headers],[Set]]),1),INDEX(PlanejamentoDeMarketing[],,1),0),MATCH(VariaçõesDeMarketing[[#Headers],[Set]],PlanejamentoDeMarketing[#Headers],0))-INDEX(MarketingReal[],MATCH(INDEX(VariaçõesDeMarketing[],ROW()-ROW(VariaçõesDeMarketing[[#Headers],[Set]]),1),INDEX(PlanejamentoDeMarketing[],,1),0),MATCH(VariaçõesDeMarketing[[#Headers],[Set]],MarketingReal[#Headers],0))","v":{"v":200,"d":"R$ 200.00"}},{"$f":"INDEX(PlanejamentoDeMarketing[],MATCH(INDEX(VariaçõesDeMarketing[],ROW()-ROW(VariaçõesDeMarketing[[#Headers],[Out]]),1),INDEX(PlanejamentoDeMarketing[],,1),0),MATCH(VariaçõesDeMarketing[[#Headers],[Out]],PlanejamentoDeMarketing[#Headers],0))-INDEX(MarketingReal[],MATCH(INDEX(VariaçõesDeMarketing[],ROW()-ROW(VariaçõesDeMarketing[[#Headers],[Out]]),1),INDEX(PlanejamentoDeMarketing[],,1),0),MATCH(VariaçõesDeMarketing[[#Headers],[Out]],MarketingReal[#Headers],0))","v":{"v":200,"d":"R$ 200.00"}},{"$f":"INDEX(PlanejamentoDeMarketing[],MATCH(INDEX(VariaçõesDeMarketing[],ROW()-ROW(VariaçõesDeMarketing[[#Headers],[Nov]]),1),INDEX(PlanejamentoDeMarketing[],,1),0),MATCH(VariaçõesDeMarketing[[#Headers],[Nov]],PlanejamentoDeMarketing[#Headers],0))-INDEX(MarketingReal[],MATCH(INDEX(VariaçõesDeMarketing[],ROW()-ROW(VariaçõesDeMarketing[[#Headers],[Nov]]),1),INDEX(PlanejamentoDeMarketing[],,1),0),MATCH(VariaçõesDeMarketing[[#Headers],[Nov]],MarketingReal[#Headers],0))","v":{"v":200,"d":"R$ 200.00"}},{"$f":"INDEX(PlanejamentoDeMarketing[],MATCH(INDEX(VariaçõesDeMarketing[],ROW()-ROW(VariaçõesDeMarketing[[#Headers],[Dez]]),1),INDEX(PlanejamentoDeMarketing[],,1),0),MATCH(VariaçõesDeMarketing[[#Headers],[Dez]],PlanejamentoDeMarketing[#Headers],0))-INDEX(MarketingReal[],MATCH(INDEX(VariaçõesDeMarketing[],ROW()-ROW(VariaçõesDeMarketing[[#Headers],[Dez]]),1),INDEX(PlanejamentoDeMarketing[],,1),0),MATCH(VariaçõesDeMarketing[[#Headers],[Dez]],MarketingReal[#Headers],0))","v":{"v":1000,"d":"R$ 1,000.00"}},{"$f":"SUM(VariaçõesDeMarketing[[#This Row],[Jan]:[Dez]])","v":{"v":1500,"d":"R$ 1,500.00"}}]
[null,"Preparação de materiais de referência",{"$f":"INDEX(PlanejamentoDeMarketing[],MATCH(INDEX(VariaçõesDeMarketing[],ROW()-ROW(VariaçõesDeMarketing[[#Headers],[Jan]]),1),INDEX(PlanejamentoDeMarketing[],,1),0),MATCH(VariaçõesDeMarketing[[#Headers],[Jan]],PlanejamentoDeMarketing[#Headers],0))-INDEX(MarketingReal[],MATCH(INDEX(VariaçõesDeMarketing[],ROW()-ROW(VariaçõesDeMarketing[[#Headers],[Jan]]),1),INDEX(PlanejamentoDeMarketing[],,1),0),MATCH(VariaçõesDeMarketing[[#Headers],[Jan]],MarketingReal[#Headers],0))","v":{"v":200,"d":"R$ 200.00"}},{"$f":"INDEX(PlanejamentoDeMarketing[],MATCH(INDEX(VariaçõesDeMarketing[],ROW()-ROW(VariaçõesDeMarketing[[#Headers],[Fev]]),1),INDEX(PlanejamentoDeMarketing[],,1),0),MATCH(VariaçõesDeMarketing[[#Headers],[Fev]],PlanejamentoDeMarketing[#Headers],0))-INDEX(MarketingReal[],MATCH(INDEX(VariaçõesDeMarketing[],ROW()-ROW(VariaçõesDeMarketing[[#Headers],[Fev]]),1),INDEX(PlanejamentoDeMarketing[],,1),0),MATCH(VariaçõesDeMarketing[[#Headers],[Fev]],MarketingReal[#Headers],0))","v":{"v":0,"d":"R$ 0.00"}},{"$f":"INDEX(PlanejamentoDeMarketing[],MATCH(INDEX(VariaçõesDeMarketing[],ROW()-ROW(VariaçõesDeMarketing[[#Headers],[Mar]]),1),INDEX(PlanejamentoDeMarketing[],,1),0),MATCH(VariaçõesDeMarketing[[#Headers],[Mar]],PlanejamentoDeMarketing[#Headers],0))-INDEX(MarketingReal[],MATCH(INDEX(VariaçõesDeMarketing[],ROW()-ROW(VariaçõesDeMarketing[[#Headers],[Mar]]),1),INDEX(PlanejamentoDeMarketing[],,1),0),MATCH(VariaçõesDeMarketing[[#Headers],[Mar]],MarketingReal[#Headers],0))","v":{"v":0,"d":"R$ 0.00"}},{"$f":"INDEX(PlanejamentoDeMarketing[],MATCH(INDEX(VariaçõesDeMarketing[],ROW()-ROW(VariaçõesDeMarketing[[#Headers],[Abr]]),1),INDEX(PlanejamentoDeMarketing[],,1),0),MATCH(VariaçõesDeMarketing[[#Headers],[Abr]],PlanejamentoDeMarketing[#Headers],0))-INDEX(MarketingReal[],MATCH(INDEX(VariaçõesDeMarketing[],ROW()-ROW(VariaçõesDeMarketing[[#Headers],[Abr]]),1),INDEX(PlanejamentoDeMarketing[],,1),0),MATCH(VariaçõesDeMarketing[[#Headers],[Abr]],MarketingReal[#Headers],0))","v":{"v":-500,"d":"-R$ 500.00"}},{"$f":"INDEX(PlanejamentoDeMarketing[],MATCH(INDEX(VariaçõesDeMarketing[],ROW()-ROW(VariaçõesDeMarketing[[#Headers],[Maio]]),1),INDEX(PlanejamentoDeMarketing[],,1),0),MATCH(VariaçõesDeMarketing[[#Headers],[Maio]],PlanejamentoDeMarketing[#Headers],0))-INDEX(MarketingReal[],MATCH(INDEX(VariaçõesDeMarketing[],ROW()-ROW(VariaçõesDeMarketing[[#Headers],[Maio]]),1),INDEX(PlanejamentoDeMarketing[],,1),0),MATCH(VariaçõesDeMarketing[[#Headers],[Maio]],MarketingReal[#Headers],0))","v":{"v":0,"d":"R$ 0.00"}},{"$f":"INDEX(PlanejamentoDeMarketing[],MATCH(INDEX(VariaçõesDeMarketing[],ROW()-ROW(VariaçõesDeMarketing[[#Headers],[Jun]]),1),INDEX(PlanejamentoDeMarketing[],,1),0),MATCH(VariaçõesDeMarketing[[#Headers],[Jun]],PlanejamentoDeMarketing[#Headers],0))-INDEX(MarketingReal[],MATCH(INDEX(VariaçõesDeMarketing[],ROW()-ROW(VariaçõesDeMarketing[[#Headers],[Jun]]),1),INDEX(PlanejamentoDeMarketing[],,1),0),MATCH(VariaçõesDeMarketing[[#Headers],[Jun]],MarketingReal[#Headers],0))","v":{"v":0,"d":"R$ 0.00"}},{"$f":"INDEX(PlanejamentoDeMarketing[],MATCH(INDEX(VariaçõesDeMarketing[],ROW()-ROW(VariaçõesDeMarketing[[#Headers],[Jul]]),1),INDEX(PlanejamentoDeMarketing[],,1),0),MATCH(VariaçõesDeMarketing[[#Headers],[Jul]],PlanejamentoDeMarketing[#Headers],0))-INDEX(MarketingReal[],MATCH(INDEX(VariaçõesDeMarketing[],ROW()-ROW(VariaçõesDeMarketing[[#Headers],[Jul]]),1),INDEX(PlanejamentoDeMarketing[],,1),0),MATCH(VariaçõesDeMarketing[[#Headers],[Jul]],MarketingReal[#Headers],0))","v":{"v":5000,"d":"R$ 5,000.00"}},{"$f":"INDEX(PlanejamentoDeMarketing[],MATCH(INDEX(VariaçõesDeMarketing[],ROW()-ROW(VariaçõesDeMarketing[[#Headers],[Ago]]),1),INDEX(PlanejamentoDeMarketing[],,1),0),MATCH(VariaçõesDeMarketing[[#Headers],[Ago]],PlanejamentoDeMarketing[#Headers],0))-INDEX(MarketingReal[],MATCH(INDEX(VariaçõesDeMarketing[],ROW()-ROW(VariaçõesDeMarketing[[#Headers],[Ago]]),1),INDEX(PlanejamentoDeMarketing[],,1),0),MATCH(VariaçõesDeMarketing[[#Headers],[Ago]],MarketingReal[#Headers],0))","v":{"v":0,"d":"R$ 0.00"}},{"$f":"INDEX(PlanejamentoDeMarketing[],MATCH(INDEX(VariaçõesDeMarketing[],ROW()-ROW(VariaçõesDeMarketing[[#Headers],[Set]]),1),INDEX(PlanejamentoDeMarketing[],,1),0),MATCH(VariaçõesDeMarketing[[#Headers],[Set]],PlanejamentoDeMarketing[#Headers],0))-INDEX(MarketingReal[],MATCH(INDEX(VariaçõesDeMarketing[],ROW()-ROW(VariaçõesDeMarketing[[#Headers],[Set]]),1),INDEX(PlanejamentoDeMarketing[],,1),0),MATCH(VariaçõesDeMarketing[[#Headers],[Set]],MarketingReal[#Headers],0))","v":{"v":0,"d":"R$ 0.00"}},{"$f":"INDEX(PlanejamentoDeMarketing[],MATCH(INDEX(VariaçõesDeMarketing[],ROW()-ROW(VariaçõesDeMarketing[[#Headers],[Out]]),1),INDEX(PlanejamentoDeMarketing[],,1),0),MATCH(VariaçõesDeMarketing[[#Headers],[Out]],PlanejamentoDeMarketing[#Headers],0))-INDEX(MarketingReal[],MATCH(INDEX(VariaçõesDeMarketing[],ROW()-ROW(VariaçõesDeMarketing[[#Headers],[Out]]),1),INDEX(PlanejamentoDeMarketing[],,1),0),MATCH(VariaçõesDeMarketing[[#Headers],[Out]],MarketingReal[#Headers],0))","v":{"v":5000,"d":"R$ 5,000.00"}},{"$f":"INDEX(PlanejamentoDeMarketing[],MATCH(INDEX(VariaçõesDeMarketing[],ROW()-ROW(VariaçõesDeMarketing[[#Headers],[Nov]]),1),INDEX(PlanejamentoDeMarketing[],,1),0),MATCH(VariaçõesDeMarketing[[#Headers],[Nov]],PlanejamentoDeMarketing[#Headers],0))-INDEX(MarketingReal[],MATCH(INDEX(VariaçõesDeMarketing[],ROW()-ROW(VariaçõesDeMarketing[[#Headers],[Nov]]),1),INDEX(PlanejamentoDeMarketing[],,1),0),MATCH(VariaçõesDeMarketing[[#Headers],[Nov]],MarketingReal[#Headers],0))","v":{"v":0,"d":"R$ 0.00"}},{"$f":"INDEX(PlanejamentoDeMarketing[],MATCH(INDEX(VariaçõesDeMarketing[],ROW()-ROW(VariaçõesDeMarketing[[#Headers],[Dez]]),1),INDEX(PlanejamentoDeMarketing[],,1),0),MATCH(VariaçõesDeMarketing[[#Headers],[Dez]],PlanejamentoDeMarketing[#Headers],0))-INDEX(MarketingReal[],MATCH(INDEX(VariaçõesDeMarketing[],ROW()-ROW(VariaçõesDeMarketing[[#Headers],[Dez]]),1),INDEX(PlanejamentoDeMarketing[],,1),0),MATCH(VariaçõesDeMarketing[[#Headers],[Dez]],MarketingReal[#Headers],0))","v":{"v":0,"d":"R$ 0.00"}},{"$f":"SUM(VariaçõesDeMarketing[[#This Row],[Jan]:[Dez]])","v":{"v":9700,"d":"R$ 9,700.00"}}]
[null,"Impressão de materiais de referência",{"$f":"INDEX(PlanejamentoDeMarketing[],MATCH(INDEX(VariaçõesDeMarketing[],ROW()-ROW(VariaçõesDeMarketing[[#Headers],[Jan]]),1),INDEX(PlanejamentoDeMarketing[],,1),0),MATCH(VariaçõesDeMarketing[[#Headers],[Jan]],PlanejamentoDeMarketing[#Headers],0))-INDEX(MarketingReal[],MATCH(INDEX(VariaçõesDeMarketing[],ROW()-ROW(VariaçõesDeMarketing[[#Headers],[Jan]]),1),INDEX(PlanejamentoDeMarketing[],,1),0),MATCH(VariaçõesDeMarketing[[#Headers],[Jan]],MarketingReal[#Headers],0))","v":{"v":100,"d":"R$ 100.00"}},{"$f":"INDEX(PlanejamentoDeMarketing[],MATCH(INDEX(VariaçõesDeMarketing[],ROW()-ROW(VariaçõesDeMarketing[[#Headers],[Fev]]),1),INDEX(PlanejamentoDeMarketing[],,1),0),MATCH(VariaçõesDeMarketing[[#Headers],[Fev]],PlanejamentoDeMarketing[#Headers],0))-INDEX(MarketingReal[],MATCH(INDEX(VariaçõesDeMarketing[],ROW()-ROW(VariaçõesDeMarketing[[#Headers],[Fev]]),1),INDEX(PlanejamentoDeMarketing[],,1),0),MATCH(VariaçõesDeMarketing[[#Headers],[Fev]],MarketingReal[#Headers],0))","v":{"v":-300,"d":"-R$ 300.00"}},{"$f":"INDEX(PlanejamentoDeMarketing[],MATCH(INDEX(VariaçõesDeMarketing[],ROW()-ROW(VariaçõesDeMarketing[[#Headers],[Mar]]),1),INDEX(PlanejamentoDeMarketing[],,1),0),MATCH(VariaçõesDeMarketing[[#Headers],[Mar]],PlanejamentoDeMarketing[#Headers],0))-INDEX(MarketingReal[],MATCH(INDEX(VariaçõesDeMarketing[],ROW()-ROW(VariaçõesDeMarketing[[#Headers],[Mar]]),1),INDEX(PlanejamentoDeMarketing[],,1),0),MATCH(VariaçõesDeMarketing[[#Headers],[Mar]],MarketingReal[#Headers],0))","v":{"v":100,"d":"R$ 100.00"}},{"$f":"INDEX(PlanejamentoDeMarketing[],MATCH(INDEX(VariaçõesDeMarketing[],ROW()-ROW(VariaçõesDeMarketing[[#Headers],[Abr]]),1),INDEX(PlanejamentoDeMarketing[],,1),0),MATCH(VariaçõesDeMarketing[[#Headers],[Abr]],PlanejamentoDeMarketing[#Headers],0))-INDEX(MarketingReal[],MATCH(INDEX(VariaçõesDeMarketing[],ROW()-ROW(VariaçõesDeMarketing[[#Headers],[Abr]]),1),INDEX(PlanejamentoDeMarketing[],,1),0),MATCH(VariaçõesDeMarketing[[#Headers],[Abr]],MarketingReal[#Headers],0))","v":{"v":100,"d":"R$ 100.00"}},{"$f":"INDEX(PlanejamentoDeMarketing[],MATCH(INDEX(VariaçõesDeMarketing[],ROW()-ROW(VariaçõesDeMarketing[[#Headers],[Maio]]),1),INDEX(PlanejamentoDeMarketing[],,1),0),MATCH(VariaçõesDeMarketing[[#Headers],[Maio]],PlanejamentoDeMarketing[#Headers],0))-INDEX(MarketingReal[],MATCH(INDEX(VariaçõesDeMarketing[],ROW()-ROW(VariaçõesDeMarketing[[#Headers],[Maio]]),1),INDEX(PlanejamentoDeMarketing[],,1),0),MATCH(VariaçõesDeMarketing[[#Headers],[Maio]],MarketingReal[#Headers],0))","v":{"v":-400,"d":"-R$ 400.00"}},{"$f":"INDEX(PlanejamentoDeMarketing[],MATCH(INDEX(VariaçõesDeMarketing[],ROW()-ROW(VariaçõesDeMarketing[[#Headers],[Jun]]),1),INDEX(PlanejamentoDeMarketing[],,1),0),MATCH(VariaçõesDeMarketing[[#Headers],[Jun]],PlanejamentoDeMarketing[#Headers],0))-INDEX(MarketingReal[],MATCH(INDEX(VariaçõesDeMarketing[],ROW()-ROW(VariaçõesDeMarketing[[#Headers],[Jun]]),1),INDEX(PlanejamentoDeMarketing[],,1),0),MATCH(VariaçõesDeMarketing[[#Headers],[Jun]],MarketingReal[#Headers],0))","v":{"v":20,"d":"R$ 20.00"}},{"$f":"INDEX(PlanejamentoDeMarketing[],MATCH(INDEX(VariaçõesDeMarketing[],ROW()-ROW(VariaçõesDeMarketing[[#Headers],[Jul]]),1),INDEX(PlanejamentoDeMarketing[],,1),0),MATCH(VariaçõesDeMarketing[[#Headers],[Jul]],PlanejamentoDeMarketing[#Headers],0))-INDEX(MarketingReal[],MATCH(INDEX(VariaçõesDeMarketing[],ROW()-ROW(VariaçõesDeMarketing[[#Headers],[Jul]]),1),INDEX(PlanejamentoDeMarketing[],,1),0),MATCH(VariaçõesDeMarketing[[#Headers],[Jul]],MarketingReal[#Headers],0))","v":{"v":200,"d":"R$ 200.00"}},{"$f":"INDEX(PlanejamentoDeMarketing[],MATCH(INDEX(VariaçõesDeMarketing[],ROW()-ROW(VariaçõesDeMarketing[[#Headers],[Ago]]),1),INDEX(PlanejamentoDeMarketing[],,1),0),MATCH(VariaçõesDeMarketing[[#Headers],[Ago]],PlanejamentoDeMarketing[#Headers],0))-INDEX(MarketingReal[],MATCH(INDEX(VariaçõesDeMarketing[],ROW()-ROW(VariaçõesDeMarketing[[#Headers],[Ago]]),1),INDEX(PlanejamentoDeMarketing[],,1),0),MATCH(VariaçõesDeMarketing[[#Headers],[Ago]],MarketingReal[#Headers],0))","v":{"v":200,"d":"R$ 200.00"}},{"$f":"INDEX(PlanejamentoDeMarketing[],MATCH(INDEX(VariaçõesDeMarketing[],ROW()-ROW(VariaçõesDeMarketing[[#Headers],[Set]]),1),INDEX(PlanejamentoDeMarketing[],,1),0),MATCH(VariaçõesDeMarketing[[#Headers],[Set]],PlanejamentoDeMarketing[#Headers],0))-INDEX(MarketingReal[],MATCH(INDEX(VariaçõesDeMarketing[],ROW()-ROW(VariaçõesDeMarketing[[#Headers],[Set]]),1),INDEX(PlanejamentoDeMarketing[],,1),0),MATCH(VariaçõesDeMarketing[[#Headers],[Set]],MarketingReal[#Headers],0))","v":{"v":200,"d":"R$ 200.00"}},{"$f":"INDEX(PlanejamentoDeMarketing[],MATCH(INDEX(VariaçõesDeMarketing[],ROW()-ROW(VariaçõesDeMarketing[[#Headers],[Out]]),1),INDEX(PlanejamentoDeMarketing[],,1),0),MATCH(VariaçõesDeMarketing[[#Headers],[Out]],PlanejamentoDeMarketing[#Headers],0))-INDEX(MarketingReal[],MATCH(INDEX(VariaçõesDeMarketing[],ROW()-ROW(VariaçõesDeMarketing[[#Headers],[Out]]),1),INDEX(PlanejamentoDeMarketing[],,1),0),MATCH(VariaçõesDeMarketing[[#Headers],[Out]],MarketingReal[#Headers],0))","v":{"v":200,"d":"R$ 200.00"}},{"$f":"INDEX(PlanejamentoDeMarketing[],MATCH(INDEX(VariaçõesDeMarketing[],ROW()-ROW(VariaçõesDeMarketing[[#Headers],[Nov]]),1),INDEX(PlanejamentoDeMarketing[],,1),0),MATCH(VariaçõesDeMarketing[[#Headers],[Nov]],PlanejamentoDeMarketing[#Headers],0))-INDEX(MarketingReal[],MATCH(INDEX(VariaçõesDeMarketing[],ROW()-ROW(VariaçõesDeMarketing[[#Headers],[Nov]]),1),INDEX(PlanejamentoDeMarketing[],,1),0),MATCH(VariaçõesDeMarketing[[#Headers],[Nov]],MarketingReal[#Headers],0))","v":{"v":200,"d":"R$ 200.00"}},{"$f":"INDEX(PlanejamentoDeMarketing[],MATCH(INDEX(VariaçõesDeMarketing[],ROW()-ROW(VariaçõesDeMarketing[[#Headers],[Dez]]),1),INDEX(PlanejamentoDeMarketing[],,1),0),MATCH(VariaçõesDeMarketing[[#Headers],[Dez]],PlanejamentoDeMarketing[#Headers],0))-INDEX(MarketingReal[],MATCH(INDEX(VariaçõesDeMarketing[],ROW()-ROW(VariaçõesDeMarketing[[#Headers],[Dez]]),1),INDEX(PlanejamentoDeMarketing[],,1),0),MATCH(VariaçõesDeMarketing[[#Headers],[Dez]],MarketingReal[#Headers],0))","v":{"v":200,"d":"R$ 200.00"}},{"$f":"SUM(VariaçõesDeMarketing[[#This Row],[Jan]:[Dez]])","v":{"v":820,"d":"R$ 820.00"}}]
[null,"Eventos de marketing",{"$f":"INDEX(PlanejamentoDeMarketing[],MATCH(INDEX(VariaçõesDeMarketing[],ROW()-ROW(VariaçõesDeMarketing[[#Headers],[Jan]]),1),INDEX(PlanejamentoDeMarketing[],,1),0),MATCH(VariaçõesDeMarketing[[#Headers],[Jan]],PlanejamentoDeMarketing[#Headers],0))-INDEX(MarketingReal[],MATCH(INDEX(VariaçõesDeMarketing[],ROW()-ROW(VariaçõesDeMarketing[[#Headers],[Jan]]),1),INDEX(PlanejamentoDeMarketing[],,1),0),MATCH(VariaçõesDeMarketing[[#Headers],[Jan]],MarketingReal[#Headers],0))","v":{"v":200,"d":"R$ 200.00"}},{"$f":"INDEX(PlanejamentoDeMarketing[],MATCH(INDEX(VariaçõesDeMarketing[],ROW()-ROW(VariaçõesDeMarketing[[#Headers],[Fev]]),1),INDEX(PlanejamentoDeMarketing[],,1),0),MATCH(VariaçõesDeMarketing[[#Headers],[Fev]],PlanejamentoDeMarketing[#Headers],0))-INDEX(MarketingReal[],MATCH(INDEX(VariaçõesDeMarketing[],ROW()-ROW(VariaçõesDeMarketing[[#Headers],[Fev]]),1),INDEX(PlanejamentoDeMarketing[],,1),0),MATCH(VariaçõesDeMarketing[[#Headers],[Fev]],MarketingReal[#Headers],0))","v":{"v":-200,"d":"-R$ 200.00"}},{"$f":"INDEX(PlanejamentoDeMarketing[],MATCH(INDEX(VariaçõesDeMarketing[],ROW()-ROW(VariaçõesDeMarketing[[#Headers],[Mar]]),1),INDEX(PlanejamentoDeMarketing[],,1),0),MATCH(VariaçõesDeMarketing[[#Headers],[Mar]],PlanejamentoDeMarketing[#Headers],0))-INDEX(MarketingReal[],MATCH(INDEX(VariaçõesDeMarketing[],ROW()-ROW(VariaçõesDeMarketing[[#Headers],[Mar]]),1),INDEX(PlanejamentoDeMarketing[],,1),0),MATCH(VariaçõesDeMarketing[[#Headers],[Mar]],MarketingReal[#Headers],0))","v":{"v":-200,"d":"-R$ 200.00"}},{"$f":"INDEX(PlanejamentoDeMarketing[],MATCH(INDEX(VariaçõesDeMarketing[],ROW()-ROW(VariaçõesDeMarketing[[#Headers],[Abr]]),1),INDEX(PlanejamentoDeMarketing[],,1),0),MATCH(VariaçõesDeMarketing[[#Headers],[Abr]],PlanejamentoDeMarketing[#Headers],0))-INDEX(MarketingReal[],MATCH(INDEX(VariaçõesDeMarketing[],ROW()-ROW(VariaçõesDeMarketing[[#Headers],[Abr]]),1),INDEX(PlanejamentoDeMarketing[],,1),0),MATCH(VariaçõesDeMarketing[[#Headers],[Abr]],MarketingReal[#Headers],0))","v":{"v":300,"d":"R$ 300.00"}},{"$f":"INDEX(PlanejamentoDeMarketing[],MATCH(INDEX(VariaçõesDeMarketing[],ROW()-ROW(VariaçõesDeMarketing[[#Headers],[Maio]]),1),INDEX(PlanejamentoDeMarketing[],,1),0),MATCH(VariaçõesDeMarketing[[#Headers],[Maio]],PlanejamentoDeMarketing[#Headers],0))-INDEX(MarketingReal[],MATCH(INDEX(VariaçõesDeMarketing[],ROW()-ROW(VariaçõesDeMarketing[[#Headers],[Maio]]),1),INDEX(PlanejamentoDeMarketing[],,1),0),MATCH(VariaçõesDeMarketing[[#Headers],[Maio]],MarketingReal[#Headers],0))","v":{"v":500,"d":"R$ 500.00"}},{"$f":"INDEX(PlanejamentoDeMarketing[],MATCH(INDEX(VariaçõesDeMarketing[],ROW()-ROW(VariaçõesDeMarketing[[#Headers],[Jun]]),1),INDEX(PlanejamentoDeMarketing[],,1),0),MATCH(VariaçõesDeMarketing[[#Headers],[Jun]],PlanejamentoDeMarketing[#Headers],0))-INDEX(MarketingReal[],MATCH(INDEX(VariaçõesDeMarketing[],ROW()-ROW(VariaçõesDeMarketing[[#Headers],[Jun]]),1),INDEX(PlanejamentoDeMarketing[],,1),0),MATCH(VariaçõesDeMarketing[[#Headers],[Jun]],MarketingReal[#Headers],0))","v":{"v":-300,"d":"-R$ 300.00"}},{"$f":"INDEX(PlanejamentoDeMarketing[],MATCH(INDEX(VariaçõesDeMarketing[],ROW()-ROW(VariaçõesDeMarketing[[#Headers],[Jul]]),1),INDEX(PlanejamentoDeMarketing[],,1),0),MATCH(VariaçõesDeMarketing[[#Headers],[Jul]],PlanejamentoDeMarketing[#Headers],0))-INDEX(MarketingReal[],MATCH(INDEX(VariaçõesDeMarketing[],ROW()-ROW(VariaçõesDeMarketing[[#Headers],[Jul]]),1),INDEX(PlanejamentoDeMarketing[],,1),0),MATCH(VariaçõesDeMarketing[[#Headers],[Jul]],MarketingReal[#Headers],0))","v":{"v":2000,"d":"R$ 2,000.00"}},{"$f":"INDEX(PlanejamentoDeMarketing[],MATCH(INDEX(VariaçõesDeMarketing[],ROW()-ROW(VariaçõesDeMarketing[[#Headers],[Ago]]),1),INDEX(PlanejamentoDeMarketing[],,1),0),MATCH(VariaçõesDeMarketing[[#Headers],[Ago]],PlanejamentoDeMarketing[#Headers],0))-INDEX(MarketingReal[],MATCH(INDEX(VariaçõesDeMarketing[],ROW()-ROW(VariaçõesDeMarketing[[#Headers],[Ago]]),1),INDEX(PlanejamentoDeMarketing[],,1),0),MATCH(VariaçõesDeMarketing[[#Headers],[Ago]],MarketingReal[#Headers],0))","v":{"v":5000,"d":"R$ 5,000.00"}},{"$f":"INDEX(PlanejamentoDeMarketing[],MATCH(INDEX(VariaçõesDeMarketing[],ROW()-ROW(VariaçõesDeMarketing[[#Headers],[Set]]),1),INDEX(PlanejamentoDeMarketing[],,1),0),MATCH(VariaçõesDeMarketing[[#Headers],[Set]],PlanejamentoDeMarketing[#Headers],0))-INDEX(MarketingReal[],MATCH(INDEX(VariaçõesDeMarketing[],ROW()-ROW(VariaçõesDeMarketing[[#Headers],[Set]]),1),INDEX(PlanejamentoDeMarketing[],,1),0),MATCH(VariaçõesDeMarketing[[#Headers],[Set]],MarketingReal[#Headers],0))","v":{"v":2000,"d":"R$ 2,000.00"}},{"$f":"INDEX(PlanejamentoDeMarketing[],MATCH(INDEX(VariaçõesDeMarketing[],ROW()-ROW(VariaçõesDeMarketing[[#Headers],[Out]]),1),INDEX(PlanejamentoDeMarketing[],,1),0),MATCH(VariaçõesDeMarketing[[#Headers],[Out]],PlanejamentoDeMarketing[#Headers],0))-INDEX(MarketingReal[],MATCH(INDEX(VariaçõesDeMarketing[],ROW()-ROW(VariaçõesDeMarketing[[#Headers],[Out]]),1),INDEX(PlanejamentoDeMarketing[],,1),0),MATCH(VariaçõesDeMarketing[[#Headers],[Out]],MarketingReal[#Headers],0))","v":{"v":2000,"d":"R$ 2,000.00"}},{"$f":"INDEX(PlanejamentoDeMarketing[],MATCH(INDEX(VariaçõesDeMarketing[],ROW()-ROW(VariaçõesDeMarketing[[#Headers],[Nov]]),1),INDEX(PlanejamentoDeMarketing[],,1),0),MATCH(VariaçõesDeMarketing[[#Headers],[Nov]],PlanejamentoDeMarketing[#Headers],0))-INDEX(MarketingReal[],MATCH(INDEX(VariaçõesDeMarketing[],ROW()-ROW(VariaçõesDeMarketing[[#Headers],[Nov]]),1),INDEX(PlanejamentoDeMarketing[],,1),0),MATCH(VariaçõesDeMarketing[[#Headers],[Nov]],MarketingReal[#Headers],0))","v":{"v":2000,"d":"R$ 2,000.00"}},{"$f":"INDEX(PlanejamentoDeMarketing[],MATCH(INDEX(VariaçõesDeMarketing[],ROW()-ROW(VariaçõesDeMarketing[[#Headers],[Dez]]),1),INDEX(PlanejamentoDeMarketing[],,1),0),MATCH(VariaçõesDeMarketing[[#Headers],[Dez]],PlanejamentoDeMarketing[#Headers],0))-INDEX(MarketingReal[],MATCH(INDEX(VariaçõesDeMarketing[],ROW()-ROW(VariaçõesDeMarketing[[#Headers],[Dez]]),1),INDEX(PlanejamentoDeMarketing[],,1),0),MATCH(VariaçõesDeMarketing[[#Headers],[Dez]],MarketingReal[#Headers],0))","v":{"v":5000,"d":"R$ 5,000.00"}},{"$f":"SUM(VariaçõesDeMarketing[[#This Row],[Jan]:[Dez]])","v":{"v":18300,"d":"R$ 18,300.00"}}]
[null,"Despesas diversas",{"$f":"INDEX(PlanejamentoDeMarketing[],MATCH(INDEX(VariaçõesDeMarketing[],ROW()-ROW(VariaçõesDeMarketing[[#Headers],[Jan]]),1),INDEX(PlanejamentoDeMarketing[],,1),0),MATCH(VariaçõesDeMarketing[[#Headers],[Jan]],PlanejamentoDeMarketing[#Headers],0))-INDEX(MarketingReal[],MATCH(INDEX(VariaçõesDeMarketing[],ROW()-ROW(VariaçõesDeMarketing[[#Headers],[Jan]]),1),INDEX(PlanejamentoDeMarketing[],,1),0),MATCH(VariaçõesDeMarketing[[#Headers],[Jan]],MarketingReal[#Headers],0))","v":{"v":55,"d":"R$ 55.00"}},{"$f":"INDEX(PlanejamentoDeMarketing[],MATCH(INDEX(VariaçõesDeMarketing[],ROW()-ROW(VariaçõesDeMarketing[[#Headers],[Fev]]),1),INDEX(PlanejamentoDeMarketing[],,1),0),MATCH(VariaçõesDeMarketing[[#Headers],[Fev]],PlanejamentoDeMarketing[#Headers],0))-INDEX(MarketingReal[],MATCH(INDEX(VariaçõesDeMarketing[],ROW()-ROW(VariaçõesDeMarketing[[#Headers],[Fev]]),1),INDEX(PlanejamentoDeMarketing[],,1),0),MATCH(VariaçõesDeMarketing[[#Headers],[Fev]],MarketingReal[#Headers],0))","v":{"v":44,"d":"R$ 44.00"}},{"$f":"INDEX(PlanejamentoDeMarketing[],MATCH(INDEX(VariaçõesDeMarketing[],ROW()-ROW(VariaçõesDeMarketing[[#Headers],[Mar]]),1),INDEX(PlanejamentoDeMarketing[],,1),0),MATCH(VariaçõesDeMarketing[[#Headers],[Mar]],PlanejamentoDeMarketing[#Headers],0))-INDEX(MarketingReal[],MATCH(INDEX(VariaçõesDeMarketing[],ROW()-ROW(VariaçõesDeMarketing[[#Headers],[Mar]]),1),INDEX(PlanejamentoDeMarketing[],,1),0),MATCH(VariaçõesDeMarketing[[#Headers],[Mar]],MarketingReal[#Headers],0))","v":{"v":77,"d":"R$ 77.00"}},{"$f":"INDEX(PlanejamentoDeMarketing[],MATCH(INDEX(VariaçõesDeMarketing[],ROW()-ROW(VariaçõesDeMarketing[[#Headers],[Abr]]),1),INDEX(PlanejamentoDeMarketing[],,1),0),MATCH(VariaçõesDeMarketing[[#Headers],[Abr]],PlanejamentoDeMarketing[#Headers],0))-INDEX(MarketingReal[],MATCH(INDEX(VariaçõesDeMarketing[],ROW()-ROW(VariaçõesDeMarketing[[#Headers],[Abr]]),1),INDEX(PlanejamentoDeMarketing[],,1),0),MATCH(VariaçõesDeMarketing[[#Headers],[Abr]],MarketingReal[#Headers],0))","v":{"v":-23,"d":"-R$ 23.00"}},{"$f":"INDEX(PlanejamentoDeMarketing[],MATCH(INDEX(VariaçõesDeMarketing[],ROW()-ROW(VariaçõesDeMarketing[[#Headers],[Maio]]),1),INDEX(PlanejamentoDeMarketing[],,1),0),MATCH(VariaçõesDeMarketing[[#Headers],[Maio]],PlanejamentoDeMarketing[#Headers],0))-INDEX(MarketingReal[],MATCH(INDEX(VariaçõesDeMarketing[],ROW()-ROW(VariaçõesDeMarketing[[#Headers],[Maio]]),1),INDEX(PlanejamentoDeMarketing[],,1),0),MATCH(VariaçõesDeMarketing[[#Headers],[Maio]],MarketingReal[#Headers],0))","v":{"v":13,"d":"R$ 13.00"}},{"$f":"INDEX(PlanejamentoDeMarketing[],MATCH(INDEX(VariaçõesDeMarketing[],ROW()-ROW(VariaçõesDeMarketing[[#Headers],[Jun]]),1),INDEX(PlanejamentoDeMarketing[],,1),0),MATCH(VariaçõesDeMarketing[[#Headers],[Jun]],PlanejamentoDeMarketing[#Headers],0))-INDEX(MarketingReal[],MATCH(INDEX(VariaçõesDeMarketing[],ROW()-ROW(VariaçõesDeMarketing[[#Headers],[Jun]]),1),INDEX(PlanejamentoDeMarketing[],,1),0),MATCH(VariaçõesDeMarketing[[#Headers],[Jun]],MarketingReal[#Headers],0))","v":{"v":-45,"d":"-R$ 45.00"}},{"$f":"INDEX(PlanejamentoDeMarketing[],MATCH(INDEX(VariaçõesDeMarketing[],ROW()-ROW(VariaçõesDeMarketing[[#Headers],[Jul]]),1),INDEX(PlanejamentoDeMarketing[],,1),0),MATCH(VariaçõesDeMarketing[[#Headers],[Jul]],PlanejamentoDeMarketing[#Headers],0))-INDEX(MarketingReal[],MATCH(INDEX(VariaçõesDeMarketing[],ROW()-ROW(VariaçõesDeMarketing[[#Headers],[Jul]]),1),INDEX(PlanejamentoDeMarketing[],,1),0),MATCH(VariaçõesDeMarketing[[#Headers],[Jul]],MarketingReal[#Headers],0))","v":{"v":200,"d":"R$ 200.00"}},{"$f":"INDEX(PlanejamentoDeMarketing[],MATCH(INDEX(VariaçõesDeMarketing[],ROW()-ROW(VariaçõesDeMarketing[[#Headers],[Ago]]),1),INDEX(PlanejamentoDeMarketing[],,1),0),MATCH(VariaçõesDeMarketing[[#Headers],[Ago]],PlanejamentoDeMarketing[#Headers],0))-INDEX(MarketingReal[],MATCH(INDEX(VariaçõesDeMarketing[],ROW()-ROW(VariaçõesDeMarketing[[#Headers],[Ago]]),1),INDEX(PlanejamentoDeMarketing[],,1),0),MATCH(VariaçõesDeMarketing[[#Headers],[Ago]],MarketingReal[#Headers],0))","v":{"v":200,"d":"R$ 200.00"}},{"$f":"INDEX(PlanejamentoDeMarketing[],MATCH(INDEX(VariaçõesDeMarketing[],ROW()-ROW(VariaçõesDeMarketing[[#Headers],[Set]]),1),INDEX(PlanejamentoDeMarketing[],,1),0),MATCH(VariaçõesDeMarketing[[#Headers],[Set]],PlanejamentoDeMarketing[#Headers],0))-INDEX(MarketingReal[],MATCH(INDEX(VariaçõesDeMarketing[],ROW()-ROW(VariaçõesDeMarketing[[#Headers],[Set]]),1),INDEX(PlanejamentoDeMarketing[],,1),0),MATCH(VariaçõesDeMarketing[[#Headers],[Set]],MarketingReal[#Headers],0))","v":{"v":200,"d":"R$ 200.00"}},{"$f":"INDEX(PlanejamentoDeMarketing[],MATCH(INDEX(VariaçõesDeMarketing[],ROW()-ROW(VariaçõesDeMarketing[[#Headers],[Out]]),1),INDEX(PlanejamentoDeMarketing[],,1),0),MATCH(VariaçõesDeMarketing[[#Headers],[Out]],PlanejamentoDeMarketing[#Headers],0))-INDEX(MarketingReal[],MATCH(INDEX(VariaçõesDeMarketing[],ROW()-ROW(VariaçõesDeMarketing[[#Headers],[Out]]),1),INDEX(PlanejamentoDeMarketing[],,1),0),MATCH(VariaçõesDeMarketing[[#Headers],[Out]],MarketingReal[#Headers],0))","v":{"v":200,"d":"R$ 200.00"}},{"$f":"INDEX(PlanejamentoDeMarketing[],MATCH(INDEX(VariaçõesDeMarketing[],ROW()-ROW(VariaçõesDeMarketing[[#Headers],[Nov]]),1),INDEX(PlanejamentoDeMarketing[],,1),0),MATCH(VariaçõesDeMarketing[[#Headers],[Nov]],PlanejamentoDeMarketing[#Headers],0))-INDEX(MarketingReal[],MATCH(INDEX(VariaçõesDeMarketing[],ROW()-ROW(VariaçõesDeMarketing[[#Headers],[Nov]]),1),INDEX(PlanejamentoDeMarketing[],,1),0),MATCH(VariaçõesDeMarketing[[#Headers],[Nov]],MarketingReal[#Headers],0))","v":{"v":200,"d":"R$ 200.00"}},{"$f":"INDEX(PlanejamentoDeMarketing[],MATCH(INDEX(VariaçõesDeMarketing[],ROW()-ROW(VariaçõesDeMarketing[[#Headers],[Dez]]),1),INDEX(PlanejamentoDeMarketing[],,1),0),MATCH(VariaçõesDeMarketing[[#Headers],[Dez]],PlanejamentoDeMarketing[#Headers],0))-INDEX(MarketingReal[],MATCH(INDEX(VariaçõesDeMarketing[],ROW()-ROW(VariaçõesDeMarketing[[#Headers],[Dez]]),1),INDEX(PlanejamentoDeMarketing[],,1),0),MATCH(VariaçõesDeMarketing[[#Headers],[Dez]],MarketingReal[#Headers],0))","v":{"v":200,"d":"R$ 200.00"}},{"$f":"SUM(VariaçõesDeMarketing[[#This Row],[Jan]:[Dez]])","v":{"v":1321,"d":"R$ 1,321.00"}}]
[null,"Subtotal",{"$f":"SUBTOTAL(109,VariaçõesDeMarketing[Jan])","v":{"v":555,"d":"R$ 555.00"}},{"$f":"SUBTOTAL(109,VariaçõesDeMarketing[Fev])","v":{"v":-456,"d":"-R$ 456.00"}},{"$f":"SUBTOTAL(109,VariaçõesDeMarketing[Mar])","v":{"v":-23,"d":"-R$ 23.00"}},{"$f":"SUBTOTAL(109,VariaçõesDeMarketing[Abr])","v":{"v":-123,"d":"-R$ 123.00"}},{"$f":"SUBTOTAL(109,VariaçõesDeMarketing[Maio])","v":{"v":113,"d":"R$ 113.00"}},{"$f":"SUBTOTAL(109,VariaçõesDeMarketing[Jun])","v":{"v":-825,"d":"-R$ 825.00"}},{"$f":"SUBTOTAL(109,VariaçõesDeMarketing[Jul])","v":{"v":8100,"d":"R$ 8,100.00"}},{"$f":"SUBTOTAL(109,VariaçõesDeMarketing[Ago])","v":{"v":6100,"d":"R$ 6,100.00"}},{"$f":"SUBTOTAL(109,VariaçõesDeMarketing[Set])","v":{"v":3100,"d":"R$ 3,100.00"}},{"$f":"SUBTOTAL(109,VariaçõesDeMarketing[Out])","v":{"v":8100,"d":"R$ 8,100.00"}},{"$f":"SUBTOTAL(109,VariaçõesDeMarketing[Nov])","v":{"v":3100,"d":"R$ 3,100.00"}},{"$f":"SUBTOTAL(109,VariaçõesDeMarketing[Dez])","v":{"v":6900,"d":"R$ 6,900.00"}},{"$f":"SUBTOTAL(109,VariaçõesDeMarketing[ANO])","v":{"v":34641,"d":"R$ 34,641.00"}}]
[]
[null,"Viagem/Treinamento","Jan","Fev","Mar","Abr","Maio","Jun","Jul","Ago","Set","Out","Nov","Dez","ANO"]
[null,"Sessões de treinamento",{"$f":"INDEX(PlanejamentoDeViagemETreinamento[],MATCH(INDEX(VariaçõesDeViagensETreinamentos[],ROW()-ROW(VariaçõesDeViagensETreinamentos[[#Headers],[Jan]]),1),INDEX(PlanejamentoDeViagemETreinamento[],,1),0),MATCH(VariaçõesDeViagensETreinamentos[[#Headers],[Jan]],PlanejamentoDeViagemETreinamento[#Headers],0))-INDEX(RealViagemETreinamento[],MATCH(INDEX(VariaçõesDeViagensETreinamentos[],ROW()-ROW(VariaçõesDeViagensETreinamentos[[#Headers],[Jan]]),1),INDEX(PlanejamentoDeViagemETreinamento[],,1),0),MATCH(VariaçõesDeViagensETreinamentos[[#Headers],[Jan]],RealViagemETreinamento[#Headers],0))","v":{"v":400,"d":"R$ 400.00"}},{"$f":"INDEX(PlanejamentoDeViagemETreinamento[],MATCH(INDEX(VariaçõesDeViagensETreinamentos[],ROW()-ROW(VariaçõesDeViagensETreinamentos[[#Headers],[Fev]]),1),INDEX(PlanejamentoDeViagemETreinamento[],,1),0),MATCH(VariaçõesDeViagensETreinamentos[[#Headers],[Fev]],PlanejamentoDeViagemETreinamento[#Headers],0))-INDEX(RealViagemETreinamento[],MATCH(INDEX(VariaçõesDeViagensETreinamentos[],ROW()-ROW(VariaçõesDeViagensETreinamentos[[#Headers],[Fev]]),1),INDEX(PlanejamentoDeViagemETreinamento[],,1),0),MATCH(VariaçõesDeViagensETreinamentos[[#Headers],[Fev]],RealViagemETreinamento[#Headers],0))","v":{"v":-400,"d":"-R$ 400.00"}},{"$f":"INDEX(PlanejamentoDeViagemETreinamento[],MATCH(INDEX(VariaçõesDeViagensETreinamentos[],ROW()-ROW(VariaçõesDeViagensETreinamentos[[#Headers],[Mar]]),1),INDEX(PlanejamentoDeViagemETreinamento[],,1),0),MATCH(VariaçõesDeViagensETreinamentos[[#Headers],[Mar]],PlanejamentoDeViagemETreinamento[#Headers],0))-INDEX(RealViagemETreinamento[],MATCH(INDEX(VariaçõesDeViagensETreinamentos[],ROW()-ROW(VariaçõesDeViagensETreinamentos[[#Headers],[Mar]]),1),INDEX(PlanejamentoDeViagemETreinamento[],,1),0),MATCH(VariaçõesDeViagensETreinamentos[[#Headers],[Mar]],RealViagemETreinamento[#Headers],0))","v":{"v":600,"d":"R$ 600.00"}},{"$f":"INDEX(PlanejamentoDeViagemETreinamento[],MATCH(INDEX(VariaçõesDeViagensETreinamentos[],ROW()-ROW(VariaçõesDeViagensETreinamentos[[#Headers],[Abr]]),1),INDEX(PlanejamentoDeViagemETreinamento[],,1),0),MATCH(VariaçõesDeViagensETreinamentos[[#Headers],[Abr]],PlanejamentoDeViagemETreinamento[#Headers],0))-INDEX(RealViagemETreinamento[],MATCH(INDEX(VariaçõesDeViagensETreinamentos[],ROW()-ROW(VariaçõesDeViagensETreinamentos[[#Headers],[Abr]]),1),INDEX(PlanejamentoDeViagemETreinamento[],,1),0),MATCH(VariaçõesDeViagensETreinamentos[[#Headers],[Abr]],RealViagemETreinamento[#Headers],0))","v":{"v":400,"d":"R$ 400.00"}},{"$f":"INDEX(PlanejamentoDeViagemETreinamento[],MATCH(INDEX(VariaçõesDeViagensETreinamentos[],ROW()-ROW(VariaçõesDeViagensETreinamentos[[#Headers],[Maio]]),1),INDEX(PlanejamentoDeViagemETreinamento[],,1),0),MATCH(VariaçõesDeViagensETreinamentos[[#Headers],[Maio]],PlanejamentoDeViagemETreinamento[#Headers],0))-INDEX(RealViagemETreinamento[],MATCH(INDEX(VariaçõesDeViagensETreinamentos[],ROW()-ROW(VariaçõesDeViagensETreinamentos[[#Headers],[Maio]]),1),INDEX(PlanejamentoDeViagemETreinamento[],,1),0),MATCH(VariaçõesDeViagensETreinamentos[[#Headers],[Maio]],RealViagemETreinamento[#Headers],0))","v":{"v":800,"d":"R$ 800.00"}},{"$f":"INDEX(PlanejamentoDeViagemETreinamento[],MATCH(INDEX(VariaçõesDeViagensETreinamentos[],ROW()-ROW(VariaçõesDeViagensETreinamentos[[#Headers],[Jun]]),1),INDEX(PlanejamentoDeViagemETreinamento[],,1),0),MATCH(VariaçõesDeViagensETreinamentos[[#Headers],[Jun]],PlanejamentoDeViagemETreinamento[#Headers],0))-INDEX(RealViagemETreinamento[],MATCH(INDEX(VariaçõesDeViagensETreinamentos[],ROW()-ROW(VariaçõesDeViagensETreinamentos[[#Headers],[Jun]]),1),INDEX(PlanejamentoDeViagemETreinamento[],,1),0),MATCH(VariaçõesDeViagensETreinamentos[[#Headers],[Jun]],RealViagemETreinamento[#Headers],0))","v":{"v":-800,"d":"-R$ 800.00"}},{"$f":"INDEX(PlanejamentoDeViagemETreinamento[],MATCH(INDEX(VariaçõesDeViagensETreinamentos[],ROW()-ROW(VariaçõesDeViagensETreinamentos[[#Headers],[Jul]]),1),INDEX(PlanejamentoDeViagemETreinamento[],,1),0),MATCH(VariaçõesDeViagensETreinamentos[[#Headers],[Jul]],PlanejamentoDeViagemETreinamento[#Headers],0))-INDEX(RealViagemETreinamento[],MATCH(INDEX(VariaçõesDeViagensETreinamentos[],ROW()-ROW(VariaçõesDeViagensETreinamentos[[#Headers],[Jul]]),1),INDEX(PlanejamentoDeViagemETreinamento[],,1),0),MATCH(VariaçõesDeViagensETreinamentos[[#Headers],[Jul]],RealViagemETreinamento[#Headers],0))","v":{"v":2000,"d":"R$ 2,000.00"}},{"$f":"INDEX(PlanejamentoDeViagemETreinamento[],MATCH(INDEX(VariaçõesDeViagensETreinamentos[],ROW()-ROW(VariaçõesDeViagensETreinamentos[[#Headers],[Ago]]),1),INDEX(PlanejamentoDeViagemETreinamento[],,1),0),MATCH(VariaçõesDeViagensETreinamentos[[#Headers],[Ago]],PlanejamentoDeViagemETreinamento[#Headers],0))-INDEX(RealViagemETreinamento[],MATCH(INDEX(VariaçõesDeViagensETreinamentos[],ROW()-ROW(VariaçõesDeViagensETreinamentos[[#Headers],[Ago]]),1),INDEX(PlanejamentoDeViagemETreinamento[],,1),0),MATCH(VariaçõesDeViagensETreinamentos[[#Headers],[Ago]],RealViagemETreinamento[#Headers],0))","v":{"v":2000,"d":"R$ 2,000.00"}},{"$f":"INDEX(PlanejamentoDeViagemETreinamento[],MATCH(INDEX(VariaçõesDeViagensETreinamentos[],ROW()-ROW(VariaçõesDeViagensETreinamentos[[#Headers],[Set]]),1),INDEX(PlanejamentoDeViagemETreinamento[],,1),0),MATCH(VariaçõesDeViagensETreinamentos[[#Headers],[Set]],PlanejamentoDeViagemETreinamento[#Headers],0))-INDEX(RealViagemETreinamento[],MATCH(INDEX(VariaçõesDeViagensETreinamentos[],ROW()-ROW(VariaçõesDeViagensETreinamentos[[#Headers],[Set]]),1),INDEX(PlanejamentoDeViagemETreinamento[],,1),0),MATCH(VariaçõesDeViagensETreinamentos[[#Headers],[Set]],RealViagemETreinamento[#Headers],0))","v":{"v":2000,"d":"R$ 2,000.00"}},{"$f":"INDEX(PlanejamentoDeViagemETreinamento[],MATCH(INDEX(VariaçõesDeViagensETreinamentos[],ROW()-ROW(VariaçõesDeViagensETreinamentos[[#Headers],[Out]]),1),INDEX(PlanejamentoDeViagemETreinamento[],,1),0),MATCH(VariaçõesDeViagensETreinamentos[[#Headers],[Out]],PlanejamentoDeViagemETreinamento[#Headers],0))-INDEX(RealViagemETreinamento[],MATCH(INDEX(VariaçõesDeViagensETreinamentos[],ROW()-ROW(VariaçõesDeViagensETreinamentos[[#Headers],[Out]]),1),INDEX(PlanejamentoDeViagemETreinamento[],,1),0),MATCH(VariaçõesDeViagensETreinamentos[[#Headers],[Out]],RealViagemETreinamento[#Headers],0))","v":{"v":2000,"d":"R$ 2,000.00"}},{"$f":"INDEX(PlanejamentoDeViagemETreinamento[],MATCH(INDEX(VariaçõesDeViagensETreinamentos[],ROW()-ROW(VariaçõesDeViagensETreinamentos[[#Headers],[Nov]]),1),INDEX(PlanejamentoDeViagemETreinamento[],,1),0),MATCH(VariaçõesDeViagensETreinamentos[[#Headers],[Nov]],PlanejamentoDeViagemETreinamento[#Headers],0))-INDEX(RealViagemETreinamento[],MATCH(INDEX(VariaçõesDeViagensETreinamentos[],ROW()-ROW(VariaçõesDeViagensETreinamentos[[#Headers],[Nov]]),1),INDEX(PlanejamentoDeViagemETreinamento[],,1),0),MATCH(VariaçõesDeViagensETreinamentos[[#Headers],[Nov]],RealViagemETreinamento[#Headers],0))","v":{"v":2000,"d":"R$ 2,000.00"}},{"$f":"INDEX(PlanejamentoDeViagemETreinamento[],MATCH(INDEX(VariaçõesDeViagensETreinamentos[],ROW()-ROW(VariaçõesDeViagensETreinamentos[[#Headers],[Dez]]),1),INDEX(PlanejamentoDeViagemETreinamento[],,1),0),MATCH(VariaçõesDeViagensETreinamentos[[#Headers],[Dez]],PlanejamentoDeViagemETreinamento[#Headers],0))-INDEX(RealViagemETreinamento[],MATCH(INDEX(VariaçõesDeViagensETreinamentos[],ROW()-ROW(VariaçõesDeViagensETreinamentos[[#Headers],[Dez]]),1),INDEX(PlanejamentoDeViagemETreinamento[],,1),0),MATCH(VariaçõesDeViagensETreinamentos[[#Headers],[Dez]],RealViagemETreinamento[#Headers],0))","v":{"v":2000,"d":"R$ 2,000.00"}},{"$f":"SUM(VariaçõesDeViagensETreinamentos[[#This Row],[Jan]:[Dez]])","v":{"v":13000,"d":"R$ 13,000.00"}}]
[null,"Custos com viagens para treinamento",{"$f":"INDEX(PlanejamentoDeViagemETreinamento[],MATCH(INDEX(VariaçõesDeViagensETreinamentos[],ROW()-ROW(VariaçõesDeViagensETreinamentos[[#Headers],[Jan]]),1),INDEX(PlanejamentoDeViagemETreinamento[],,1),0),MATCH(VariaçõesDeViagensETreinamentos[[#Headers],[Jan]],PlanejamentoDeViagemETreinamento[#Headers],0))-INDEX(RealViagemETreinamento[],MATCH(INDEX(VariaçõesDeViagensETreinamentos[],ROW()-ROW(VariaçõesDeViagensETreinamentos[[#Headers],[Jan]]),1),INDEX(PlanejamentoDeViagemETreinamento[],,1),0),MATCH(VariaçõesDeViagensETreinamentos[[#Headers],[Jan]],RealViagemETreinamento[#Headers],0))","v":{"v":800,"d":"R$ 800.00"}},{"$f":"INDEX(PlanejamentoDeViagemETreinamento[],MATCH(INDEX(VariaçõesDeViagensETreinamentos[],ROW()-ROW(VariaçõesDeViagensETreinamentos[[#Headers],[Fev]]),1),INDEX(PlanejamentoDeViagemETreinamento[],,1),0),MATCH(VariaçõesDeViagensETreinamentos[[#Headers],[Fev]],PlanejamentoDeViagemETreinamento[#Headers],0))-INDEX(RealViagemETreinamento[],MATCH(INDEX(VariaçõesDeViagensETreinamentos[],ROW()-ROW(VariaçõesDeViagensETreinamentos[[#Headers],[Fev]]),1),INDEX(PlanejamentoDeViagemETreinamento[],,1),0),MATCH(VariaçõesDeViagensETreinamentos[[#Headers],[Fev]],RealViagemETreinamento[#Headers],0))","v":{"v":-200,"d":"-R$ 200.00"}},{"$f":"INDEX(PlanejamentoDeViagemETreinamento[],MATCH(INDEX(VariaçõesDeViagensETreinamentos[],ROW()-ROW(VariaçõesDeViagensETreinamentos[[#Headers],[Mar]]),1),INDEX(PlanejamentoDeViagemETreinamento[],,1),0),MATCH(VariaçõesDeViagensETreinamentos[[#Headers],[Mar]],PlanejamentoDeViagemETreinamento[#Headers],0))-INDEX(RealViagemETreinamento[],MATCH(INDEX(VariaçõesDeViagensETreinamentos[],ROW()-ROW(VariaçõesDeViagensETreinamentos[[#Headers],[Mar]]),1),INDEX(PlanejamentoDeViagemETreinamento[],,1),0),MATCH(VariaçõesDeViagensETreinamentos[[#Headers],[Mar]],RealViagemETreinamento[#Headers],0))","v":{"v":600,"d":"R$ 600.00"}},{"$f":"INDEX(PlanejamentoDeViagemETreinamento[],MATCH(INDEX(VariaçõesDeViagensETreinamentos[],ROW()-ROW(VariaçõesDeViagensETreinamentos[[#Headers],[Abr]]),1),INDEX(PlanejamentoDeViagemETreinamento[],,1),0),MATCH(VariaçõesDeViagensETreinamentos[[#Headers],[Abr]],PlanejamentoDeViagemETreinamento[#Headers],0))-INDEX(RealViagemETreinamento[],MATCH(INDEX(VariaçõesDeViagensETreinamentos[],ROW()-ROW(VariaçõesDeViagensETreinamentos[[#Headers],[Abr]]),1),INDEX(PlanejamentoDeViagemETreinamento[],,1),0),MATCH(VariaçõesDeViagensETreinamentos[[#Headers],[Abr]],RealViagemETreinamento[#Headers],0))","v":{"v":800,"d":"R$ 800.00"}},{"$f":"INDEX(PlanejamentoDeViagemETreinamento[],MATCH(INDEX(VariaçõesDeViagensETreinamentos[],ROW()-ROW(VariaçõesDeViagensETreinamentos[[#Headers],[Maio]]),1),INDEX(PlanejamentoDeViagemETreinamento[],,1),0),MATCH(VariaçõesDeViagensETreinamentos[[#Headers],[Maio]],PlanejamentoDeViagemETreinamento[#Headers],0))-INDEX(RealViagemETreinamento[],MATCH(INDEX(VariaçõesDeViagensETreinamentos[],ROW()-ROW(VariaçõesDeViagensETreinamentos[[#Headers],[Maio]]),1),INDEX(PlanejamentoDeViagemETreinamento[],,1),0),MATCH(VariaçõesDeViagensETreinamentos[[#Headers],[Maio]],RealViagemETreinamento[#Headers],0))","v":{"v":1200,"d":"R$ 1,200.00"}},{"$f":"INDEX(PlanejamentoDeViagemETreinamento[],MATCH(INDEX(VariaçõesDeViagensETreinamentos[],ROW()-ROW(VariaçõesDeViagensETreinamentos[[#Headers],[Jun]]),1),INDEX(PlanejamentoDeViagemETreinamento[],,1),0),MATCH(VariaçõesDeViagensETreinamentos[[#Headers],[Jun]],PlanejamentoDeViagemETreinamento[#Headers],0))-INDEX(RealViagemETreinamento[],MATCH(INDEX(VariaçõesDeViagensETreinamentos[],ROW()-ROW(VariaçõesDeViagensETreinamentos[[#Headers],[Jun]]),1),INDEX(PlanejamentoDeViagemETreinamento[],,1),0),MATCH(VariaçõesDeViagensETreinamentos[[#Headers],[Jun]],RealViagemETreinamento[#Headers],0))","v":{"v":-1500,"d":"-R$ 1,500.00"}},{"$f":"INDEX(PlanejamentoDeViagemETreinamento[],MATCH(INDEX(VariaçõesDeViagensETreinamentos[],ROW()-ROW(VariaçõesDeViagensETreinamentos[[#Headers],[Jul]]),1),INDEX(PlanejamentoDeViagemETreinamento[],,1),0),MATCH(VariaçõesDeViagensETreinamentos[[#Headers],[Jul]],PlanejamentoDeViagemETreinamento[#Headers],0))-INDEX(RealViagemETreinamento[],MATCH(INDEX(VariaçõesDeViagensETreinamentos[],ROW()-ROW(VariaçõesDeViagensETreinamentos[[#Headers],[Jul]]),1),INDEX(PlanejamentoDeViagemETreinamento[],,1),0),MATCH(VariaçõesDeViagensETreinamentos[[#Headers],[Jul]],RealViagemETreinamento[#Headers],0))","v":{"v":2000,"d":"R$ 2,000.00"}},{"$f":"INDEX(PlanejamentoDeViagemETreinamento[],MATCH(INDEX(VariaçõesDeViagensETreinamentos[],ROW()-ROW(VariaçõesDeViagensETreinamentos[[#Headers],[Ago]]),1),INDEX(PlanejamentoDeViagemETreinamento[],,1),0),MATCH(VariaçõesDeViagensETreinamentos[[#Headers],[Ago]],PlanejamentoDeViagemETreinamento[#Headers],0))-INDEX(RealViagemETreinamento[],MATCH(INDEX(VariaçõesDeViagensETreinamentos[],ROW()-ROW(VariaçõesDeViagensETreinamentos[[#Headers],[Ago]]),1),INDEX(PlanejamentoDeViagemETreinamento[],,1),0),MATCH(VariaçõesDeViagensETreinamentos[[#Headers],[Ago]],RealViagemETreinamento[#Headers],0))","v":{"v":2000,"d":"R$ 2,000.00"}},{"$f":"INDEX(PlanejamentoDeViagemETreinamento[],MATCH(INDEX(VariaçõesDeViagensETreinamentos[],ROW()-ROW(VariaçõesDeViagensETreinamentos[[#Headers],[Set]]),1),INDEX(PlanejamentoDeViagemETreinamento[],,1),0),MATCH(VariaçõesDeViagensETreinamentos[[#Headers],[Set]],PlanejamentoDeViagemETreinamento[#Headers],0))-INDEX(RealViagemETreinamento[],MATCH(INDEX(VariaçõesDeViagensETreinamentos[],ROW()-ROW(VariaçõesDeViagensETreinamentos[[#Headers],[Set]]),1),INDEX(PlanejamentoDeViagemETreinamento[],,1),0),MATCH(VariaçõesDeViagensETreinamentos[[#Headers],[Set]],RealViagemETreinamento[#Headers],0))","v":{"v":2000,"d":"R$ 2,000.00"}},{"$f":"INDEX(PlanejamentoDeViagemETreinamento[],MATCH(INDEX(VariaçõesDeViagensETreinamentos[],ROW()-ROW(VariaçõesDeViagensETreinamentos[[#Headers],[Out]]),1),INDEX(PlanejamentoDeViagemETreinamento[],,1),0),MATCH(VariaçõesDeViagensETreinamentos[[#Headers],[Out]],PlanejamentoDeViagemETreinamento[#Headers],0))-INDEX(RealViagemETreinamento[],MATCH(INDEX(VariaçõesDeViagensETreinamentos[],ROW()-ROW(VariaçõesDeViagensETreinamentos[[#Headers],[Out]]),1),INDEX(PlanejamentoDeViagemETreinamento[],,1),0),MATCH(VariaçõesDeViagensETreinamentos[[#Headers],[Out]],RealViagemETreinamento[#Headers],0))","v":{"v":2000,"d":"R$ 2,000.00"}},{"$f":"INDEX(PlanejamentoDeViagemETreinamento[],MATCH(INDEX(VariaçõesDeViagensETreinamentos[],ROW()-ROW(VariaçõesDeViagensETreinamentos[[#Headers],[Nov]]),1),INDEX(PlanejamentoDeViagemETreinamento[],,1),0),MATCH(VariaçõesDeViagensETreinamentos[[#Headers],[Nov]],PlanejamentoDeViagemETreinamento[#Headers],0))-INDEX(RealViagemETreinamento[],MATCH(INDEX(VariaçõesDeViagensETreinamentos[],ROW()-ROW(VariaçõesDeViagensETreinamentos[[#Headers],[Nov]]),1),INDEX(PlanejamentoDeViagemETreinamento[],,1),0),MATCH(VariaçõesDeViagensETreinamentos[[#Headers],[Nov]],RealViagemETreinamento[#Headers],0))","v":{"v":2000,"d":"R$ 2,000.00"}},{"$f":"INDEX(PlanejamentoDeViagemETreinamento[],MATCH(INDEX(VariaçõesDeViagensETreinamentos[],ROW()-ROW(VariaçõesDeViagensETreinamentos[[#Headers],[Dez]]),1),INDEX(PlanejamentoDeViagemETreinamento[],,1),0),MATCH(VariaçõesDeViagensETreinamentos[[#Headers],[Dez]],PlanejamentoDeViagemETreinamento[#Headers],0))-INDEX(RealViagemETreinamento[],MATCH(INDEX(VariaçõesDeViagensETreinamentos[],ROW()-ROW(VariaçõesDeViagensETreinamentos[[#Headers],[Dez]]),1),INDEX(PlanejamentoDeViagemETreinamento[],,1),0),MATCH(VariaçõesDeViagensETreinamentos[[#Headers],[Dez]],RealViagemETreinamento[#Headers],0))","v":{"v":2000,"d":"R$ 2,000.00"}},{"$f":"SUM(VariaçõesDeViagensETreinamentos[[#This Row],[Jan]:[Dez]])","v":{"v":13700,"d":"R$ 13,700.00"}}]
[null,"Subtotal",{"$f":"SUBTOTAL(109,VariaçõesDeViagensETreinamentos[Jan])","v":{"v":1200,"d":"R$ 1,200.00"}},{"$f":"SUBTOTAL(109,VariaçõesDeViagensETreinamentos[Fev])","v":{"v":-600,"d":"-R$ 600.00"}},{"$f":"SUBTOTAL(109,VariaçõesDeViagensETreinamentos[Mar])","v":{"v":1200,"d":"R$ 1,200.00"}},{"$f":"SUBTOTAL(109,VariaçõesDeViagensETreinamentos[Abr])","v":{"v":1200,"d":"R$ 1,200.00"}},{"$f":"SUBTOTAL(109,VariaçõesDeViagensETreinamentos[Maio])","v":{"v":2000,"d":"R$ 2,000.00"}},{"$f":"SUBTOTAL(109,VariaçõesDeViagensETreinamentos[Jun])","v":{"v":-2300,"d":"-R$ 2,300.00"}},{"$f":"SUBTOTAL(109,VariaçõesDeViagensETreinamentos[Jul])","v":{"v":4000,"d":"R$ 4,000.00"}},{"$f":"SUBTOTAL(109,VariaçõesDeViagensETreinamentos[Ago])","v":{"v":4000,"d":"R$ 4,000.00"}},{"$f":"SUBTOTAL(109,VariaçõesDeViagensETreinamentos[Set])","v":{"v":4000,"d":"R$ 4,000.00"}},{"$f":"SUBTOTAL(109,VariaçõesDeViagensETreinamentos[Out])","v":{"v":4000,"d":"R$ 4,000.00"}},{"$f":"SUBTOTAL(109,VariaçõesDeViagensETreinamentos[Nov])","v":{"v":4000,"d":"R$ 4,000.00"}},{"$f":"SUBTOTAL(109,VariaçõesDeViagensETreinamentos[Dez])","v":{"v":4000,"d":"R$ 4,000.00"}},{"$f":"SUBTOTAL(109,VariaçõesDeViagensETreinamentos[ANO])","v":{"v":26700,"d":"R$ 26,700.00"}}]
[]
[null,"TOTAIS","Jan","Fev","Mar","Abr","Mai","Jun","Jul","Ago","Set","Out","Nov","Dez","Ano"]
[null,"Despesas mensais reais",{"$f":"VariaçõesDeViagensETreinamentos[[#Totals],[Jan]]+VariaçõesDeMarketing[[#Totals],[Jan]]+VariaçõesDoEscritório[[#Totals],[Jan]]+VariaçõesDeFuncionários[[#Totals],[Jan]]","v":{"v":1738,"d":"R$ 1,738.00"}},{"$f":"VariaçõesDeViagensETreinamentos[[#Totals],[Fev]]+VariaçõesDeMarketing[[#Totals],[Fev]]+VariaçõesDoEscritório[[#Totals],[Fev]]+VariaçõesDeFuncionários[[#Totals],[Fev]]","v":{"v":-984,"d":"-R$ 984.00"}},{"$f":"VariaçõesDeViagensETreinamentos[[#Totals],[Mar]]+VariaçõesDeMarketing[[#Totals],[Mar]]+VariaçõesDoEscritório[[#Totals],[Mar]]+VariaçõesDeFuncionários[[#Totals],[Mar]]","v":{"v":1255,"d":"R$ 1,255.00"}},{"$f":"VariaçõesDeViagensETreinamentos[[#Totals],[Abr]]+VariaçõesDeMarketing[[#Totals],[Abr]]+VariaçõesDoEscritório[[#Totals],[Abr]]+VariaçõesDeFuncionários[[#Totals],[Abr]]","v":{"v":301,"d":"R$ 301.00"}},{"$f":"VariaçõesDeViagensETreinamentos[[#Totals],[Maio]]+VariaçõesDeMarketing[[#Totals],[Maio]]+VariaçõesDoEscritório[[#Totals],[Maio]]+VariaçõesDeFuncionários[[#Totals],[Maio]]","v":{"v":1440,"d":"R$ 1,440.00"}},{"$f":"VariaçõesDeViagensETreinamentos[[#Totals],[Jun]]+VariaçõesDeMarketing[[#Totals],[Jun]]+VariaçõesDoEscritório[[#Totals],[Jun]]+VariaçõesDeFuncionários[[#Totals],[Jun]]","v":{"v":-3744,"d":"-R$ 3,744.00"}},{"$f":"VariaçõesDeViagensETreinamentos[[#Totals],[Jul]]+VariaçõesDeMarketing[[#Totals],[Jul]]+VariaçõesDoEscritório[[#Totals],[Jul]]+VariaçõesDeFuncionários[[#Totals],[Jul]]","v":{"v":134695,"d":"R$ 134,695.00"}},{"$f":"VariaçõesDeViagensETreinamentos[[#Totals],[Ago]]+VariaçõesDeMarketing[[#Totals],[Ago]]+VariaçõesDoEscritório[[#Totals],[Ago]]+VariaçõesDeFuncionários[[#Totals],[Ago]]","v":{"v":138918,"d":"R$ 138,918.00"}},{"$f":"VariaçõesDeViagensETreinamentos[[#Totals],[Set]]+VariaçõesDeMarketing[[#Totals],[Set]]+VariaçõesDoEscritório[[#Totals],[Set]]+VariaçõesDeFuncionários[[#Totals],[Set]]","v":{"v":135918,"d":"R$ 135,918.00"}},{"$f":"VariaçõesDeViagensETreinamentos[[#Totals],[Out]]+VariaçõesDeMarketing[[#Totals],[Out]]+VariaçõesDoEscritório[[#Totals],[Out]]+VariaçõesDeFuncionários[[#Totals],[Out]]","v":{"v":140918,"d":"R$ 140,918.00"}},{"$f":"VariaçõesDeViagensETreinamentos[[#Totals],[Nov]]+VariaçõesDeMarketing[[#Totals],[Nov]]+VariaçõesDoEscritório[[#Totals],[Nov]]+VariaçõesDeFuncionários[[#Totals],[Nov]]","v":{"v":136218,"d":"R$ 136,218.00"}},{"$f":"VariaçõesDeViagensETreinamentos[[#Totals],[Dez]]+VariaçõesDeMarketing[[#Totals],[Dez]]+VariaçõesDoEscritório[[#Totals],[Dez]]+VariaçõesDeFuncionários[[#Totals],[Dez]]","v":{"v":140018,"d":"R$ 140,018.00"}},{"$f":"VariaçõesDeViagensETreinamentos[[#Totals],[ANO]]+VariaçõesDeMarketing[[#Totals],[ANO]]+VariaçõesDoEscritório[[#Totals],[ANO]]+VariaçõesDeFuncionários[[#Totals],[ANO]]","v":{"v":826691,"d":"R$ 826,691.00"}}]
[null,"TOTAL Despesas reais",{"$f":"SUM($C$36:C36)","v":{"v":1738,"d":"R$ 1,738.00"}},{"$f":"SUM($C$36:D36)","v":{"v":754,"d":"R$ 754.00"}},{"$f":"SUM($C$36:E36)","v":{"v":2009,"d":"R$ 2,009.00"}},{"$f":"SUM($C$36:F36)","v":{"v":2310,"d":"R$ 2,310.00"}},{"$f":"SUM($C$36:G36)","v":{"v":3750,"d":"R$ 3,750.00"}},{"$f":"SUM($C$36:H36)","v":{"v":6,"d":"R$ 6.00"}},{"$f":"SUM($C$36:I36)","v":{"v":134701,"d":"R$ 134,701.00"}},{"$f":"SUM($C$36:J36)","v":{"v":273619,"d":"R$ 273,619.00"}},{"$f":"SUM($C$36:K36)","v":{"v":409537,"d":"R$ 409,537.00"}},{"$f":"SUM($C$36:L36)","v":{"v":550455,"d":"R$ 550,455.00"}},{"$f":"SUM($C$36:M36)","v":{"v":686673,"d":"R$ 686,673.00"}},{"$f":"SUM($C$36:N36)","v":{"v":826691,"d":"R$ 826,691.00"}}]

{"sheet":"ANÁLISE DE DESPESAS","index":4,"n_rows":10,"n_cols":16,"rows_kept":10,"merged":[[2,4,2,6],[11,1,11,5]]}
[{"$nulls":6}," ",{"$nulls":8}," "]
[null,{"$f":"'DESPESAS PLANEJADAS'!B2:D3","v":"Nome da Empresa"}]
[{"$nulls":4},{"$f":"título_da_planilha","v":"Estimativas detalhadas de despesas"}]
[]
[null,"Categoria de Despesas","Despesas Planejadas","Despesas reais","Variações de Despesas","Porcentagem da Variação"]
[null,"Custos com Funcionários",{"$f":"PlanejamentoDeFuncionário[[#Totals],[ANO]]","v":{"v":1355090,"d":"R$ 1,355,090.00"}},{"$f":"FuncionárioReal[[#Totals],[ANO]]","v":{"v":659130,"d":"R$ 659,130.00"}},{"$f":"C6-D6","v":{"v":695960,"d":"R$ 695,960.00"}},{"$f":"E6/C6","v":{"v":0.5135895032802249,"d":"51%"}}]
[null,{"$f":"'DESPESAS PLANEJADAS'!B10","v":"Custos do escritório"},{"$f":"PlanejamentoDeEscritório[[#Totals],[ANO]]","v":{"v":138740,"d":"R$ 138,740.00"}},{"$f":"EscritórioReal[[#Totals],[ANO]]","v":{"v":69350,"d":"R$ 69,350.00"}},{"$f":"C7-D7","v":{"v":69390,"d":"R$ 69,390.00"}},{"$f":"E7/C7","v":{"v":0.5001441545336601,"d":"50%"}}]
[null,{"$f":"'DESPESAS PLANEJADAS'!B21","v":"Custos de marketing"},{"$f":"PlanejamentoDeMarketing[[#Totals],[ANO]]","v":{"v":67800,"d":"R$ 67,800.00"}},{"$f":"MarketingReal[[#Totals],[ANO]]","v":{"v":33159,"d":"R$ 33,159.00"}},{"$f":"C8-D8","v":{"v":34641,"d":"R$ 34,641.00"}},{"$f":"E8/C8","v":{"v":0.510929203539823,"d":"51%"}}]
[null,{"$f":"'DESPESAS PLANEJADAS'!B30","v":"Viagem/Treinamento"},{"$f":"PlanejamentoDeViagemETreinamento[[#Totals],[ANO]]","v":{"v":48000,"d":"R$ 48,000.00"}},{"$f":"RealViagemETreinamento[[#Totals],[ANO]]","v":{"v":21300,"d":"R$ 21,300.00"}},{"$f":"C9-D9","v":{"v":26700,"d":"R$ 26,700.00"}},{"$f":"E9/C9","v":{"v":0.55625,"d":"56%"}}]
[null,{"$f":"'DESPESAS PLANEJADAS'!B35","v":"TOTAIS"},{"$f":"'DESPESAS PLANEJADAS'!O36","v":{"v":1609630,"d":"R$ 1,609,630.00"}},{"$f":"'DESPESAS REAIS'!O36","v":{"v":782939,"d":"R$ 782,939.00"}},{"$f":"C10-D10","v":{"v":826691,"d":"R$ 826,691.00"}},{"$f":"E10/C10","v":{"v":0.5135907009685455,"d":"51%"}}]